{"text_format":"1","workbook":"xlsx","n_sheets":2,"sheets":["السجل","مواظبة"],"not_rendered":{"charts":0,"images":0,"macros":1,"external_links":0,"defined_names":21,"comments":0,"pivot_tables":0},"unopened":[],"bounds":{"document_bytes":16777216,"sheet_cells":100000,"rows_first":2000,"rows_last":500,"rows_between":2000,"halvings":0,"cell_chars":16384,"cell_head_chars":4096},"cells_cut":0,"cells_raw":0,"read":"whole","date_system":"1900"}

{"sheet":"السجل","index":0,"n_rows":1531,"n_cols":25,"rows_kept":1531,"cut":false,"hidden":false,"merged":[[0,2,0,3],[1,2,1,3],[2,2,2,3],[5,10,7,10],[3,12,3,18],[5,2,7,2],[5,3,7,3],[5,8,7,8],[5,9,7,9],[5,7,7,7],[5,4,7,4],[5,5,7,5],[5,6,7,6],[3,2,3,11],[5,11,7,11]]}
[null,null,null,null,null,null,null,null,null,null,null,null,null,null,null,null,null,null,1,null,1,1,1,null,1]
[]
[]
[null,null,"سجــــــــل قيــــــــد جميــــع تلاميـــــــذ المدرســــة  للعــــــام الــدراســـــي 2018/2017م"]
[]
[null,null,"م","اســـــــم التـلميذ","الفرقــة","الفصل","اسم الفصل","النـــوع","حالة القيد ","الديـانــة","الجنسية","تاريــــخ الميــــلاد"]
[]
[]
[]
[null,null,"م","اســـــــم التـلميذ","الفرقــة","الفصل","اسم الفصل","النـــوع","حالة القيد ","الديـانــة","الجنسية","تاريــــخ الميــــلاد"]
[null,null,{"$f":"C7","v":0},"اروى هانى صابر اسماعيل",1,1,{"$f":"\" \"&E11&\" / \"&F11&\" \"","v":" 1 / 1 "},"أنثى","مستجد","مسلم","مصرى","2011-09-01","عامل","أنثى","مستجد","مسلم","مصرى","يتيم","منتظم"]
[null,null,{"$f":"C8","v":0},"ايات عبود امام امام",1,1,{"$f":"\" \"&E12&\" / \"&F12&\" \"","v":" 1 / 1 "},"أنثى","مستجد","مسلم","مصرى","2010-07-23","موظف","ذكر","منقول","مسيحى","غير مصرى","مرأة معيلة","متسرب"]
[null,null,{"$f":"C10","v":"م"},"ايمان جمال سيد عبدالحكيم",1,1," 1 / 1 ","أنثى","مستجد","مسلم","مصرى","2011-09-01","مدرس",null,"باق",null,null,"غارمين","منقطع"]
[null,null,0,"بسمله محمد طه على",1,1," 1 / 1 ","أنثى","مستجد","مسلم","مصرى","2011-01-25","دكتور",null,"حكم قانون",null,null,"غير قادرين"]
[null,null,0,"بشرى محمد على محمد",1,1," 1 / 1 ","أنثى","مستجد","مسلم","مصرى","2011-01-13","مهندس",null,null,null,null,"تربية وتعليم"]
[null,null,"م","جنى جمال عبدالحق سيد",1,1," 1 / 1 ","أنثى","مستجد","مسلم","مصرى","2011-07-01","تاجر",null,null,null,null,"أبناء العاملين"]
[null,null,0,"جنى محمد رمضان جمعه",1,1," 1 / 1 ","أنثى","مستجد","مسلم","مصرى","2011-06-01","فلاح"]
[null,null,0,"جهاد والى اسماعيل والى",1,1," 1 / 1 ","أنثى","مستجد","مسلم","مصرى","2011-03-12","سباك"]
[null,null,"م","حبيبه بلال عثمان حسين",1,1," 1 / 1 ","أنثى","مستجد","مسلم","مصرى","2010-10-25","نقاش"]
[null,null,0,"حبيبه عرفات احمد عبدالوهاب",1,1," 1 / 1 ","أنثى","مستجد","مسلم","مصرى","2010-12-05","كهربائى"]
[null,null,0,"حسناء عبدالنبى ابراهيم محمد",1,1," 1 / 1 ","أنثى","مستجد","مسلم","مصرى","2010-09-15","حداد"]
[null,null,"م","دنيا محمود رجب محمد",1,1," 1 / 1 ","أنثى","مستجد","مسلم","مصرى","2010-07-01","نجار"]
[null,null,0,"رحاب عبدالمقصود على عبدالمقصود",1,1," 1 / 1 ","أنثى","مستجد","مسلم","مصرى","2010-03-25","لحام"]
[null,null,0,"رحمه كارم عبدالفضيل برشه",1,1," 1 / 1 ","أنثى","مستجد","مسلم","مصرى","2011-01-01","سائق"]
[null,null,"م","روان محمد محمد عبدالمقصود",1,1," 1 / 1 ","أنثى","مستجد","مسلم","مصرى","2011-03-21","عفشجى"]
[null,null,0,"روضه شعبان ابراهيم شعبان",1,1," 1 / 1 ","أنثى","مستجد","مسلم","مصرى","2010-11-21","جزمجى"]
[null,null,0,"ساره مصطفى مجاهد عاشور",1,1," 1 / 1 ","أنثى","مستجد","مسلم","مصرى","2011-09-29","متوفى"]
[null,null,"م","سما عصام عيد رمضان",1,1," 1 / 1 ","أنثى","مستجد","مسلم","مصرى","2011-08-12","مبلط"]
[null,null,0,"شروق شعبان شحات عبدالجواد",1,1," 1 / 1 ","أنثى","مستجد","مسلم","مصرى","2011-03-01","بنا"]
[null,null,0,"شروق عارف جمعه محمد",1,1," 1 / 1 ","أنثى","مستجد","مسلم","مصرى","2010-11-01","محار"]
[null,null,"م","شمس عبدالنبى يوسف احمد",1,1," 1 / 1 ","أنثى","مستجد","مسلم","مصرى","2011-09-26","حفار"]
[null,null,0,"شهد حسنى محمد حسنى",1,1," 1 / 1 ","أنثى","مستجد","مسلم","مصرى","2011-09-28","رسام"]
[null,null,0,"شهد هانى سيد على",1,1," 1 / 1 ","أنثى","مستجد","مسلم","مصرى","2011-03-29","فنان"]
[null,null,"م","ضحى فتحى غانم محمد",1,1," 1 / 1 ","أنثى","مستجد","مسلم","مصرى","2011-01-01","ضابط"]
[null,null,0,"فاطمه حامد فرج عبدالمقصود",1,1," 1 / 1 ","أنثى","مستجد","مسلم","مصرى","2011-02-05","أمين مخزن"]
[null,null,0,"فاطمه عبدالعزيز احمد عبدالخالق",1,1," 1 / 1 ","أنثى","مستجد","مسلم","مصرى","2011-01-07","أمين شرطة"]
[null,null,"م","فايزه محمد عبدالحق سيد",1,1," 1 / 1 ","أنثى","مستجد","مسلم","مصرى","2011-09-20","نحات"]
[null,null,0,"ليلى هيثم عاشور حواش",1,1," 1 / 1 ","أنثى","مستجد","مسلم","مصرى","2011-09-30"]
[null,null,0,"مروه عبدالتواب فهمى احمد",1,1," 1 / 1 ","أنثى","مستجد","مسلم","مصرى","2011-03-15"]
[null,null,"م","مريم جبريل مرزوق عابد",1,1," 1 / 1 ","أنثى","مستجد","مسلم","مصرى","2011-03-06"]
[null,null,0,"مريم خالد ابوعبده عبدالنعيم",1,1," 1 / 1 ","أنثى","مستجد","مسلم","مصرى","2009-10-10"]
[null,null,0,"مريم محمد فهمى شاكر",1,1," 1 / 1 ","أنثى","مستجد","مسلم","مصرى","2010-08-24"]
[null,null,"م","ملك رمضان يحى ربيع",1,1," 1 / 1 ","أنثى","مستجد","مسلم","مصرى","2011-09-28"]
[null,null,0,"ملك محمود احمد على",1,1," 1 / 1 ","أنثى","مستجد","مسلم","مصرى","2011-09-01"]
[null,null,0,"ملكه رمضان علام حسين",1,1," 1 / 1 ","أنثى","مستجد","مسلم","مصرى","2010-10-25"]
[null,null,"م","منه عمرو عاشور محمد",1,1," 1 / 1 ","أنثى","مستجد","مسلم","مصرى","2011-03-12"]
[null,null,0,"منى وليد فوزى عبداللا",1,1," 1 / 1 ","أنثى","مستجد","مسلم","مصرى","2011-01-09"]
[null,null,0,"ندى اشرف محمد محمود",1,1," 1 / 1 ","أنثى","مستجد","مسلم","مصرى","2011-05-29"]
[null,null,"م","ندى عبدالنبى محمد غريب",1,1," 1 / 1 ","أنثى","مستجد","مسلم","مصرى","2010-12-09"]
[null,null,0,"ندى مصطفى اسماعيل رمضان",1,1," 1 / 1 ","أنثى","مستجد","مسلم","مصرى","2011-05-04"]
[null,null,0,"نعمه اسامه عبدالتواب عرفه",1,1," 1 / 1 ","أنثى","مستجد","مسلم","مصرى","2011-07-10"]
[null,null,"م","نهى احمد عادل امام",1,1," 1 / 1 ","أنثى","مستجد","مسلم","مصرى","2011-09-25"]
[null,null,0,"نورا هانى محمد حميد",1,1," 1 / 1 ","أنثى","مستجد","مسلم","مصرى","2011-06-17"]
[null,null,0,"هدير منصور ربيع عبدالمقصود",1,1," 1 / 1 ","أنثى","مستجد","مسلم","مصرى","2009-07-05"]
[null,null,"م","ياسمين صبرى منصور زكى",1,1," 1 / 1 ","أنثى","مستجد","مسلم","مصرى","2011-05-17"]
[null,null,0,"ابراهيم صابر ابراهيم محمد",1,1," 1 / 1 ","ذكر","مستجد","مسلم","مصرى","2010-11-03"]
[null,null,0,"احمد احمد على عبده",1,1," 1 / 1 ","ذكر","مستجد","مسلم","مصرى","2011-08-10"]
[null,null,"م","احمد طه ابراهيم دسوقى",1,1," 1 / 1 ","ذكر","مستجد","مسلم","مصرى","2011-09-15"]
[null,null,0,"احمد عيد نجدى محمود",1,1," 1 / 1 ","ذكر","مستجد","مسلم","مصرى","2011-04-03"]
[null,null,0,"ادهم كمال سالم حسين",1,1," 1 / 1 ","ذكر","مستجد","مسلم","مصرى","2010-05-14"]
[null,null,"م","ايمن رمضان سيد شاكر",1,1," 1 / 1 ","ذكر","مستجد","مسلم","مصرى","2010-02-07"]
[null,null,0,"بلال صفوت فوزى عبدالله",1,1," 1 / 1 ","ذكر","مستجد","مسلم","مصرى","2010-04-21"]
[null,null,0,"توفيق تامر عيد توفيق",1,1," 1 / 1 ","ذكر","مستجد","مسلم","مصرى","2011-01-20"]
[null,null,"م","حازم طه سعودى محمود",1,1," 1 / 1 ","ذكر","مستجد","مسلم","مصرى","2011-05-20"]
[null,null,0,"حسن نوبى عبدالتواب عبدالفضيل",1,1," 1 / 1 ","ذكر","مستجد","مسلم","مصرى","2011-04-12"]
[null,null,0,"حماده على محمد عمر",1,1," 1 / 1 ","ذكر","مستجد","مسلم","مصرى","2011-07-21"]
[null,null,"م","خالد حسام حسن فاروق",1,1," 1 / 1 ","ذكر","مستجد","مسلم","مصرى","2011-04-16"]
[null,null,0,"رجب عماد رجب عبدالسلام",1,1," 1 / 1 ","ذكر","مستجد","مسلم","مصرى","2011-05-01"]
[null,null,0,"زياد اسماعيل عبدالتواب رجب",1,1," 1 / 1 ","ذكر","مستجد","مسلم","مصرى","2010-11-11"]
[null,null,"م","زياد طارق قدرى محمود",1,1," 1 / 1 ","ذكر","مستجد","مسلم","مصرى","2011-08-23"]
[null,null,0,"سامى محمود سعد احمد",1,1," 1 / 1 ","ذكر","مستجد","مسلم","مصرى","2010-08-21"]
[null,null,0,"سعيد هانى محمد محمد",1,1," 1 / 1 ","ذكر","مستجد","مسلم","مصرى","2011-08-20"]
[null,null,"م","صابر ممدوح محمد عبدالحكيم",1,1," 1 / 1 ","ذكر","مستجد","مسلم","مصرى","2011-04-05"]
[null,null,0,"طه اسماعيل عبدالتواب اسماعيل",1,1," 1 / 1 ","ذكر","مستجد","مسلم","مصرى","2010-10-10"]
[null,null,{"$f":"C72","v":0},"عادل خالد عوض محمد",1,1,{"$f":"\" \"&E75&\" / \"&F75&\" \"","v":" 1 / 1 "},"ذكر","مستجد","مسلم","مصرى","2010-10-30"]
[null,null,"م","عاشور حسنى عاشور خميس",1,1," 1 / 1 ","ذكر","مستجد","مسلم","مصرى","2011-06-23"]
[null,null,0,"عبدالرازق عبدالظاهر طه محمد",1,1," 1 / 1 ","ذكر","مستجد","مسلم","مصرى","2011-08-21"]
[null,null,0,"عبدالرحمن رمضان عادل عبدالرحمن",1,1," 1 / 1 ","ذكر","مستجد","مسلم","مصرى","2011-02-11"]
[null,null,"م","عبدالرحمن طه محمد اسماعيل",1,1," 1 / 1 ","ذكر","مستجد","مسلم","مصرى","2010-12-15"]
[null,null,0,"عبدالرحمن هشام ابوبكر احمد ",1,1," 1 / 1 ","ذكر","مستجد","مسلم","مصرى","2009-09-26"]
[null,null,0,"عبدالله حامد امام حمد",1,1," 1 / 1 ","ذكر","مستجد","مسلم","مصرى","2011-07-05"]
[null,null,"م","عبدالله عزت محمد على",1,1," 1 / 1 ","ذكر","مستجد","مسلم","مصرى","2010-09-01"]
[null,null,0,"عزت رمضان مراد سيد",1,1," 1 / 1 ","ذكر","مستجد","مسلم","مصرى","2011-02-07"]
[null,null,0,"على حسام محمد امام",1,1," 1 / 1 ","ذكر","مستجد","مسلم","مصرى","2011-08-08"]
[null,null,"م","على على عبدالسلام عبداللاه",1,1," 1 / 1 ","ذكر","مستجد","مسلم","مصرى","2011-07-29"]
[null,null,0,"عمر رجب محمد غريب",1,1," 1 / 1 ","ذكر","مستجد","مسلم","مصرى","2011-09-27"]
[null,null,0,"عمر يوسف جمال محمد",1,1," 1 / 1 ","ذكر","مستجد","مسلم","مصرى","2011-09-06"]
[null,null,"م","فتحى ايمن محمد طه",1,1," 1 / 1 ","ذكر","مستجد","مسلم","مصرى","2011-05-15"]
[null,null,0,"كريم سيد محمد عبدالموجود",1,1," 1 / 1 ","ذكر","مستجد","مسلم","مصرى","2011-09-14"]
[null,null,0,"مجاهد علاء مجاهد عاشور",1,1," 1 / 1 ","ذكر","مستجد","مسلم","مصرى","2010-10-21"]
[null,null,"م","محمد تامر محمد جمعه",1,1," 1 / 1 ","ذكر","مستجد","مسلم","مصرى","2011-03-25"]
[null,null,0,"محمد حسان على سالم",1,1," 1 / 1 ","ذكر","مستجد","مسلم","مصرى","2011-05-13"]
[null,null,0,"محمد رمضان عادل عبدالرحمن",1,1," 1 / 1 ","ذكر","مستجد","مسلم","مصرى","2011-02-11"]
[null,null,"م","محمد سيد محمود سيد",1,1," 1 / 1 ","ذكر","مستجد","مسلم","مصرى","2011-02-07"]
[null,null,0,"محمد عادل عبدالحميد جمعه",1,1," 1 / 1 ","ذكر","مستجد","مسلم","مصرى","2011-06-11"]
[null,null,0,"محمد على عبدالسلام عبداللاه",1,1," 1 / 1 ","ذكر","مستجد","مسلم","مصرى","2011-07-29"]
[null,null,"م","محمد محمود ابراهيم يوسف",1,1," 1 / 1 ","ذكر","مستجد","مسلم","مصرى","2011-08-26"]
[null,null,0,"محمد يحى محمد محمد",1,1," 1 / 1 ","ذكر","مستجد","مسلم","مصرى","2011-01-10"]
[null,null,0,"محمود عبدالتواب قدرى عبدالمقصود",1,1," 1 / 1 ","ذكر","مستجد","مسلم","مصرى","2010-11-01"]
[null,null,"م","مصطفى حماده مجاهد عاشور",1,1," 1 / 1 ","ذكر","مستجد","مسلم","مصرى","2011-06-13"]
[null,null,0,"مصطفى محمد عبده محمد",1,1," 1 / 1 ","ذكر","مستجد","مسلم","مصرى","2011-09-24"]
[null,null,0,"معاذ عاطف شعبان هنداوى",1,1," 1 / 1 ","ذكر","مستجد","مسلم","مصرى","2011-05-18"]
[null,null,"م","ياسر رمضان خميس محمد",1,1," 1 / 1 ","ذكر","مستجد","مسلم","مصرى","2009-12-24"]
[null,null,0,"يوسف طه احمد طه",1,1," 1 / 1 ","ذكر","مستجد","مسلم","مصرى","2011-09-10"]
[null,null,0,"يوسف محمد صلاح جمعه",1,1," 1 / 1 ","ذكر","مستجد","مسلم","مصرى","2011-05-24"]
[null,null,"م","اسراء عبدالله رشدى على",1,2," 1 / 2 ","أنثى","مستجد","مسلم","مصرى","2011-03-19"]
[null,null,0,"ايمان ابوزيد عبدالمقصود سيد",1,2," 1 / 2 ","أنثى","مستجد","مسلم","مصرى","2010-11-15"]
[null,null,0,"ايه عكاشه كامل عكاشه",1,2," 1 / 2 ","أنثى","مستجد","مسلم","مصرى","2010-11-27"]
[null,null,"م","بسنت جمعه صبرى جمعه",1,2," 1 / 2 ","أنثى","مستجد","مسلم","مصرى","2011-07-04"]
[null,null,0,"جميله اشرف احمد عكاشه",1,2," 1 / 2 ","أنثى","مستجد","مسلم","مصرى","2011-01-10"]
[null,null,0,"جنى حازم سيد محمد",1,2," 1 / 2 ","أنثى","مستجد","مسلم","مصرى","2011-08-08"]
[null,null,"م","جنى محمد عويس محمد",1,2," 1 / 2 ","أنثى","مستجد","مسلم","مصرى","2011-02-17"]
[null,null,0,"جوليا معروف صابر هنداوى",1,2," 1 / 2 ","أنثى","مستجد","مسلم","مصرى","2010-02-28"]
[null,null,0,"حبيبه حازم رمضان حسين",1,2," 1 / 2 ","أنثى","مستجد","مسلم","مصرى","2011-01-12"]
[null,null,"م","حبيبه على حسنى احمد",1,2," 1 / 2 ","أنثى","مستجد","مسلم","مصرى","2010-12-07"]
[null,null,0,"حنان احمد عبدالرحمن غنيم",1,2," 1 / 2 ","أنثى","مستجد","مسلم","مصرى","2011-04-26"]
[null,null,0,"دينا احمد عبدالحق سيد",1,2," 1 / 2 ","أنثى","مستجد","مسلم","مصرى","2011-02-13"]
[null,null,"م","رحمه عاشور رمضان ابوسريع",1,2," 1 / 2 ","أنثى","مستجد","مسلم","مصرى","2011-06-08"]
[null,null,0,"رضوه خالد طه ابراهيم",1,2," 1 / 2 ","أنثى","مستجد","مسلم","مصرى","2011-08-09"]
[null,null,0,"رودينا اسماعيل عبدالوهاب اسماعيل",1,2," 1 / 2 ","أنثى","مستجد","مسلم","مصرى","2011-07-22"]
[null,null,"م","زينب رمضان حفنى سيد",1,2," 1 / 2 ","أنثى","مستجد","مسلم","مصرى","2011-09-20"]
[null,null,0,"ساميه رجب ثابت ثابت",1,2," 1 / 2 ","أنثى","مستجد","مسلم","مصرى","2011-09-28"]
[null,null,0,"سهى صلاح محمود محمد",1,2," 1 / 2 ","أنثى","مستجد","مسلم","مصرى","2011-09-09"]
[null,null,"م","شروق قدرى حمدى قدرى",1,2," 1 / 2 ","أنثى","مستجد","مسلم","مصرى","2011-07-18"]
[null,null,0,"شهد احمد ربيع عبدالمعطى",1,2," 1 / 2 ","أنثى","مستجد","مسلم","مصرى","2011-04-16"]
[null,null,0,"شهد رجب امام عبدالحكيم",1,2," 1 / 2 ","أنثى","مستجد","مسلم","مصرى","2010-10-10"]
[null,null,"م","شهنده اسعد على محمد",1,2," 1 / 2 ","أنثى","مستجد","مسلم","مصرى","2010-06-10"]
[null,null,0,"عفاف صابر محمود احمد",1,2," 1 / 2 ","أنثى","مستجد","مسلم","مصرى","2011-08-09"]
[null,null,0,"فاطمه حسن على سالم",1,2," 1 / 2 ","أنثى","مستجد","مسلم","مصرى","2010-11-10"]
[null,null,"م","فاطمه فاروق فتحى سيد",1,2," 1 / 2 ","أنثى","مستجد","مسلم","مصرى","2011-03-09"]
[null,null,0,"فرحه اشرف مرزوق عابد",1,2," 1 / 2 ","أنثى","مستجد","مسلم","مصرى","2011-06-06"]
[null,null,0,"كريمه محمود سعودى محمود",1,2," 1 / 2 ","أنثى","مستجد","مسلم","مصرى","2011-02-02"]
[null,null,"م","ماجده اسماعيل محمود سيد",1,2," 1 / 2 ","أنثى","مستجد","مسلم","مصرى","2010-10-24"]
[null,null,0,"مروه محمود محمد اسماعيل",1,2," 1 / 2 ","أنثى","مستجد","مسلم","مصرى","2010-10-10"]
[null,null,0,"مريم جمال شعبان عبدالحميد",1,2," 1 / 2 ","أنثى","مستجد","مسلم","مصرى","2010-11-23"]
[null,null,"م","مريم مؤمن عبدالمنعم احمد",1,2," 1 / 2 ","أنثى","مستجد","مسلم","مصرى","2011-01-14"]
[null,null,0,"مريم وليد محمد محمود",1,2," 1 / 2 ","أنثى","مستجد","مسلم","مصرى","2011-05-01"]
[null,null,0,"ملك شعبان عبدالكريم سيد",1,2," 1 / 2 ","أنثى","مستجد","مسلم","مصرى","2011-03-12"]
[null,null,{"$f":"C136","v":"م"},"ملك محمود شعبان عبدالحميد",1,2,{"$f":"\" \"&E139&\" / \"&F139&\" \"","v":" 1 / 2 "},"أنثى","مستجد","مسلم","مصرى","2010-10-15"]
[null,null,0,"منار سعودى فهمى محمود",1,2," 1 / 2 ","أنثى","مستجد","مسلم","مصرى","2011-02-20"]
[null,null,0,"منى احمد عبدالحق سيد",1,2," 1 / 2 ","أنثى","مستجد","مسلم","مصرى","2011-02-13"]
[null,null,"م","مي عماد فوزي عبدالله",1,2," 1 / 2 ","أنثى","مستجد","مسلم","مصرى","2011-03-22"]
[null,null,0,"ندى رجب احمد خميس",1,2," 1 / 2 ","أنثى","مستجد","مسلم","مصرى","2011-09-25"]
[null,null,0,"ندى عزت حماد عبدالفتاح",1,2," 1 / 2 ","أنثى","مستجد","مسلم","مصرى","2011-09-01"]
[null,null,"م","ندى يحى رمضان منصور",1,2," 1 / 2 ","أنثى","مستجد","مسلم","مصرى","2011-04-27"]
[null,null,0,"نعمه خليل عبدالتواب خليل",1,2," 1 / 2 ","أنثى","مستجد","مسلم","مصرى","2011-02-08"]
[null,null,0,"نورا صابر ابوالغيط على",1,2," 1 / 2 ","أنثى","مستجد","مسلم","مصرى","2010-11-01"]
[null,null,"م","نيره احمد جمال محمد",1,2," 1 / 2 ","أنثى","مستجد","مسلم","مصرى","2011-09-29"]
[null,null,0,"هناء علاء محمد رياض",1,2," 1 / 2 ","أنثى","مستجد","مسلم","مصرى","2011-06-03"]
[null,null,0,"ياسمين نصر ابراهيم حسن",1,2," 1 / 2 ","أنثى","مستجد","مسلم","مصرى","2011-07-25"]
[null,null,"م","ابراهيم صبرى عبدالخالق عبدالفتاح",1,2," 1 / 2 ","ذكر","مستجد","مسلم","مصرى","2011-05-12"]
[null,null,0,"احمد شكرى مصطفى رجب",1,2," 1 / 2 ","ذكر","مستجد","مسلم","مصرى","2010-11-01"]
[null,null,0,"احمد عزت سيد على",1,2," 1 / 2 ","ذكر","مستجد","مسلم","مصرى","2011-05-07"]
[null,null,"م","احمد محمد منتصر محمد",1,2," 1 / 2 ","ذكر","مستجد","مسلم","مصرى","2010-12-10"]
[null,null,0,"اسامه محمد محمد طه",1,2," 1 / 2 ","ذكر","مستجد","مسلم","مصرى","2011-06-30"]
[null,null,0,"باسم عبدالمقصود سيد عبدالمقصود",1,2," 1 / 2 ","ذكر","مستجد","مسلم","مصرى","2011-09-12"]
[null,null,"م","بلال عبدالسلام سلامه حسن",1,2," 1 / 2 ","ذكر","مستجد","مسلم","مصرى","2011-07-17"]
[null,null,0,"جمال عاطف سيد احمد فرغل",1,2," 1 / 2 ","ذكر","مستجد","مسلم","مصرى","2011-05-28"]
[null,null,0,"حامد عبدالفتاح عادل عبدالفتاح",1,2," 1 / 2 ","ذكر","مستجد","مسلم","مصرى","2010-10-17"]
[null,null,"م","حسنى خالد احمد حسنى",1,2," 1 / 2 ","ذكر","مستجد","مسلم","مصرى","2011-07-29"]
[null,null,0,"حمدى محمود محمد محمود",1,2," 1 / 2 ","ذكر","مستجد","مسلم","مصرى","2011-08-17"]
[null,null,0,"رمضان صبرى رمضان خميس",1,2," 1 / 2 ","ذكر","مستجد","مسلم","مصرى","2011-07-12"]
[null,null,"م","زياد اسماعيل عبده مبروك",1,2," 1 / 2 ","ذكر","مستجد","مسلم","مصرى","2011-06-01"]
[null,null,0,"زياد محمد سيد محمد",1,2," 1 / 2 ","ذكر","مستجد","مسلم","مصرى","2010-11-01"]
[null,null,0,"سراج سعيد عبدالخالق طه",1,2," 1 / 2 ","ذكر","مستجد","مسلم","مصرى","2011-06-23"]
[null,null,"م","سيد صالح محمود يوسف",1,2," 1 / 2 ","ذكر","مستجد","مسلم","مصرى","2011-03-08"]
[null,null,0,"شيمى سيد عبدالتواب سيد",1,2," 1 / 2 ","ذكر","مستجد","مسلم","مصرى","2011-08-21"]
[null,null,0,"صبرى سعيد صبرى محمد",1,2," 1 / 2 ","ذكر","مستجد","مسلم","مصرى","2010-11-20"]
[null,null,"م","طه محمد طه رمضان",1,2," 1 / 2 ","ذكر","مستجد","مسلم","مصرى","2010-12-16"]
[null,null,0,"عادل صابر عادل مرزوق",1,2," 1 / 2 ","ذكر","مستجد","مسلم","مصرى","2010-10-10"]
[null,null,0,"عاطف رمضان رجب محمود",1,2," 1 / 2 ","ذكر","مستجد","مسلم","مصرى","2011-01-29"]
[null,null,"م","عبدالرحمن انور صالح محمود",1,2," 1 / 2 ","ذكر","مستجد","مسلم","مصرى","2010-10-12"]
[null,null,0,"عبدالرحمن سلامه عبدالحكيم عبدالمقصود",1,2," 1 / 2 ","ذكر","مستجد","مسلم","مصرى","2011-02-07"]
[null,null,0,"عبدالرحمن عبدالتواب فاروق عبدالله",1,2," 1 / 2 ","ذكر","مستجد","مسلم","مصرى","2011-01-08"]
[null,null,"م","عبدالعزيز حامد عبدالعزيز عبدالتواب",1,2," 1 / 2 ","ذكر","مستجد","مسلم","مصرى","2011-08-11"]
[null,null,0,"عبدالله حسين شعبان عبدالحميد",1,2," 1 / 2 ","ذكر","مستجد","مسلم","مصرى","2011-07-14"]
[null,null,0,"عبدالله عزت محمد على درويش",1,2," 1 / 2 ","ذكر","مستجد","مسلم","مصرى","2009-07-31"]
[null,null,"م","عصام رجب جمعه ابوطالب",1,2," 1 / 2 ","ذكر","مستجد","مسلم","مصرى","2011-01-10"]
[null,null,0,"على خميس داود سيد",1,2," 1 / 2 ","ذكر","مستجد","مسلم","مصرى","2011-07-14"]
[null,null,0,"على محمد عبدالفضيل درويش",1,2," 1 / 2 ","ذكر","مستجد","مسلم","مصرى","2010-10-06"]
[null,null,"م","عمر سليمان رشدى عبدالمقصود",1,2," 1 / 2 ","ذكر","مستجد","مسلم","مصرى","2010-12-02"]
[null,null,0,"عمرو ربيع عبدالعاطى ربيع",1,2," 1 / 2 ","ذكر","مستجد","مسلم","مصرى","2010-11-22"]
[null,null,0,"فهد صابر جمعه محمد",1,2," 1 / 2 ","ذكر","مستجد","مسلم","مصرى","2011-06-03"]
[null,null,"م","كريم عيد فتحى جمعه",1,2," 1 / 2 ","ذكر","مستجد","مسلم","مصرى","2011-04-21"]
[null,null,0,"محمد ابوزيد عبده على",1,2," 1 / 2 ","ذكر","مستجد","مسلم","مصرى","2011-08-01"]
[null,null,0,"محمد اشرف مرزوق عابد",1,2," 1 / 2 ","ذكر","مستجد","مسلم","مصرى","2011-06-06"]
[null,null,"م","محمد حسام حسن فاروق",1,2," 1 / 2 ","ذكر","مستجد","مسلم","مصرى","2010-03-16"]
[null,null,0,"محمد حسين حسن على",1,2," 1 / 2 ","ذكر","مستجد","مسلم","مصرى","2010-07-13"]
[null,null,0,"محمد رمضان يوسف محمود",1,2," 1 / 2 ","ذكر","مستجد","مسلم","مصرى","2011-05-01"]
[null,null,"م","محمد شرف يسرى على",1,2," 1 / 2 ","ذكر","مستجد","مسلم","مصرى","2010-11-15"]
[null,null,0,"محمد عبده محمود على",1,2," 1 / 2 ","ذكر","مستجد","مسلم","مصرى","2011-02-25"]
[null,null,0,"محمد عمر عبدالتواب اسماعيل",1,2," 1 / 2 ","ذكر","مستجد","مسلم","مصرى","2010-10-01"]
[null,null,"م","محمد محمود زيدان عاشور",1,2," 1 / 2 ","ذكر","مستجد","مسلم","مصرى","2010-12-01"]
[null,null,0,"محمد يوسف عنتر جاد الرب",1,2," 1 / 2 ","ذكر","مستجد","مسلم","مصرى","2011-10-01"]
[null,null,0,"محمود ماهر يوسف ابوبكر",1,2," 1 / 2 ","ذكر","مستجد","مسلم","مصرى","2011-09-01"]
[null,null,"م","مصطفى علاء جمعه موسى",1,2," 1 / 2 ","ذكر","مستجد","مسلم","مصرى","2011-08-15"]
[null,null,0,"مصطفى محمد محمد داود",1,2," 1 / 2 ","ذكر","مستجد","مسلم","مصرى","2011-06-18"]
[null,null,0,"نور رمضان احمد اسماعيل",1,2," 1 / 2 ","ذكر","مستجد","مسلم","مصرى","2010-11-05"]
[null,null,"م","ياسين عبدالنبى سيد عبدالحكيم",1,2," 1 / 2 ","ذكر","مستجد","مسلم","مصرى","2010-10-18"]
[null,null,0,"يوسف عبدالله رشدى عنكيلى",1,2," 1 / 2 ","ذكر","مستجد","مسلم","مصرى","2011-04-06"]
[null,null,0,"يوسف محمد عبدالرافع عبدالحميد",1,2," 1 / 2 ","ذكر","مستجد","مسلم","مصرى","2010-08-21"]
[null,null,"م","اسماء رمضان طه محمد",1,3," 1 / 3 ","أنثى","مستجد","مسلم","مصرى","2010-07-22"]
[null,null,{"$f":"C200","v":0},"ايمان احمد سعيد عبدالحكيم",1,3,{"$f":"\" \"&E203&\" / \"&F203&\" \"","v":" 1 / 3 "},"أنثى","مستجد","مسلم","مصرى","2011-01-30"]
[null,null,0,"بدريه محمود ناصر جمعه",1,3," 1 / 3 ","أنثى","مستجد","مسلم","مصرى","2010-11-25"]
[null,null,"م","بشرى الحاج محمد سيد",1,3," 1 / 3 ","أنثى","مستجد","مسلم","مصرى","2010-11-28"]
[null,null,0,"جنى احمد منصور زكى",1,3," 1 / 3 ","أنثى","مستجد","مسلم","مصرى","2011-03-05"]
[null,null,0,"جنى عبدالنبى صلاح فرج",1,3," 1 / 3 ","أنثى","مستجد","مسلم","مصرى","2011-03-05"]
[null,null,"م","جهاد صابر سيد حسن",1,3," 1 / 3 ","أنثى","مستجد","مسلم","مصرى","2011-03-16"]
[null,null,0,"جومانا عمرو محمد حسن",1,3," 1 / 3 ","أنثى","مستجد","مسلم","مصرى","2011-08-30"]
[null,null,0,"حبيبه سيد حامد محمود",1,3," 1 / 3 ","أنثى","مستجد","مسلم","مصرى","2011-04-25"]
[null,null,"م","حبيبه ناصر على احمد",1,3," 1 / 3 ","أنثى","مستجد","مسلم","مصرى","2011-04-23"]
[null,null,0,"دعاء عبدالتواب احمد محمود",1,3," 1 / 3 ","أنثى","مستجد","مسلم","مصرى","2010-12-25"]
[null,null,0,"دينا عزام علي عبدالوارث",1,3," 1 / 3 ","أنثى","مستجد","مسلم","مصرى","2011-01-29"]
[null,null,"م","رحمه عماد يوسف محمود",1,3," 1 / 3 ","أنثى","مستجد","مسلم","مصرى","2011-05-21"]
[null,null,0,"رنا محمد رجب عبدالله",1,3," 1 / 3 ","أنثى","مستجد","مسلم","مصرى","2011-01-26"]
[null,null,0,"رودينا رجب رضا على على",1,3," 1 / 3 ","أنثى","مستجد","مسلم","مصرى","2011-05-03"]
[null,null,"م","ساره احمد عاشور محمد",1,3," 1 / 3 ","أنثى","مستجد","مسلم","مصرى","2011-04-07"]
[null,null,0,"ساميه محمد ابراهيم محمد",1,3," 1 / 3 ","أنثى","مستجد","مسلم","مصرى","2010-12-19"]
[null,null,0,"شروق شعبان رجب امام",1,3," 1 / 3 ","أنثى","مستجد","مسلم","مصرى","2011-08-28"]
[null,null,"م","شروق ممدوح عيد طه",1,3," 1 / 3 ","أنثى","مستجد","مسلم","مصرى","2011-04-06"]
[null,null,0,"شهد حسانين رجب عبدالعزيز",1,3," 1 / 3 ","أنثى","مستجد","مسلم","مصرى","2011-05-10"]
[null,null,0,"شهد هانى حسن حسين",1,3," 1 / 3 ","أنثى","مستجد","مسلم","مصرى","2010-09-01"]
[null,null,"م","شيماء حسين عبدالحكيم حسين",1,3," 1 / 3 ","أنثى","مستجد","مسلم","مصرى","2011-05-27"]
[null,null,0,"فاطمه احمد احمد عبدالجواد",1,3," 1 / 3 ","أنثى","مستجد","مسلم","مصرى","2010-10-24"]
[null,null,0,"فاطمه رمضان رمضان سيد",1,3," 1 / 3 ","أنثى","مستجد","مسلم","مصرى","2011-06-06"]
[null,null,"م","فاطمه فرحات عبدالحليم جمعه",1,3," 1 / 3 ","أنثى","مستجد","مسلم","مصرى","2011-01-01"]
[null,null,0,"كنوز محمد فتحى فوزى",1,3," 1 / 3 ","أنثى","مستجد","مسلم","مصرى","2011-09-20"]
[null,null,0,"متاع محمد على ابراهيم",1,3," 1 / 3 ","أنثى","مستجد","مسلم","مصرى","2011-06-06"]
[null,null,"م","مريم تقى عبدالتواب عبدالفضيل",1,3," 1 / 3 ","أنثى","مستجد","مسلم","مصرى","2011-04-12"]
[null,null,0,"مريم جمعه عباس عباس بكر",1,3," 1 / 3 ","أنثى","مستجد","مسلم","مصرى","2011-05-04"]
[null,null,0,"مريم محمد عيد طه",1,3," 1 / 3 ","أنثى","مستجد","مسلم","مصرى","2010-11-04"]
[null,null,"م","ملك رأفت عبدالفتاح عبداللاه",1,3," 1 / 3 ","أنثى","مستجد","مسلم","مصرى","2011-04-25"]
[null,null,0,"ملك علاء كرم جلال",1,3," 1 / 3 ","أنثى","مستجد","مسلم","مصرى","2010-11-10"]
[null,null,0,"ملك منصور احمد مهنى",1,3," 1 / 3 ","أنثى","مستجد","مسلم","مصرى","2011-07-23"]
[null,null,"م","منه رمضان كمال احمد",1,3," 1 / 3 ","أنثى","مستجد","مسلم","مصرى","2011-05-01"]
[null,null,0,"منى عماد محمود عبدالجواد",1,3," 1 / 3 ","أنثى","مستجد","مسلم","مصرى","2010-11-15"]
[null,null,0,"نجاة محمد اسماعيل امبابى",1,3," 1 / 3 ","أنثى","مستجد","مسلم","مصرى","2011-03-20"]
[null,null,"م","ندى عبدالمعين محمد جمعه",1,3," 1 / 3 ","أنثى","مستجد","مسلم","مصرى","2011-03-16"]
[null,null,0,"ندى محمد سيد محمد شعراوى",1,3," 1 / 3 ","أنثى","مستجد","مسلم","مصرى","2011-02-15"]
[null,null,0,"نسمه على عزت على",1,3," 1 / 3 ","أنثى","مستجد","مسلم","مصرى","2011-09-19"]
[null,null,"م","نهله عبدالنبى صادق سيد",1,3," 1 / 3 ","أنثى","مستجد","مسلم","مصرى","2011-06-15"]
[null,null,0,"نورا عبدالتواب فوزى محمد",1,3," 1 / 3 ","أنثى","مستجد","مسلم","مصرى","2011-04-01"]
[null,null,0,"هدى اشرف اسماعيل امبابى",1,3," 1 / 3 ","أنثى","مستجد","مسلم","مصرى","2011-03-26"]
[null,null,"م","ياسمين حسن سعيد حسن",1,3," 1 / 3 ","أنثى","مستجد","مسلم","مصرى","2010-01-02"]
[null,null,0,"ابراهيم تامر محمد ابراهيم",1,3," 1 / 3 ","ذكر","مستجد","مسلم","مصرى","2011-05-26"]
[null,null,0,"ابراهيم يحى عبدالنبى حسن",1,3," 1 / 3 ","ذكر","مستجد","مسلم","مصرى","2011-09-04"]
[null,null,"م","احمد ضاحى عبدالتواب عبدالفضيل",1,3," 1 / 3 ","ذكر","مستجد","مسلم","مصرى","2011-07-10"]
[null,null,0,"احمد على رجب محمد",1,3," 1 / 3 ","ذكر","مستجد","مسلم","مصرى","2011-03-12"]
[null,null,0,"ادهم عبدالتواب سلامه طه",1,3," 1 / 3 ","ذكر","مستجد","مسلم","مصرى","2011-03-16"]
[null,null,"م","اشرف حازم محمد عباس",1,3," 1 / 3 ","ذكر","مستجد","مسلم","مصرى","2011-09-01"]
[null,null,0,"بلال زايد دخيل عبدالونيس",1,3," 1 / 3 ","ذكر","مستجد","مسلم","مصرى","2011-07-05"]
[null,null,0,"بلال عيد حسن حسن",1,3," 1 / 3 ","ذكر","مستجد","مسلم","مصرى","2011-10-01"]
[null,null,"م","جمعه عماد عيد توفيق",1,3," 1 / 3 ","ذكر","مستجد","مسلم","مصرى","2011-02-04"]
[null,null,0,"حسن سمير حسن بيومى",1,3," 1 / 3 ","ذكر","مستجد","مسلم","مصرى","2011-09-29"]
[null,null,0,"حماده حسن احمد عمر",1,3," 1 / 3 ","ذكر","مستجد","مسلم","مصرى","2011-03-23"]
[null,null,"م","حمزه محمد على محمد",1,3," 1 / 3 ","ذكر","مستجد","مسلم","مصرى","2011-07-28"]
[null,null,0,"رجب عزت حنفى محمود",1,3," 1 / 3 ","ذكر","مستجد","مسلم","مصرى","2011-10-01"]
[null,null,0,"زياد ابراهيم جلال ابراهيم",1,3," 1 / 3 ","ذكر","مستجد","مسلم","مصرى","2011-08-02"]
[null,null,"م","زياد حسنى عبده جمعه",1,3," 1 / 3 ","ذكر","مستجد","مسلم","مصرى","2011-05-03"]
[null,null,0,"زياد يوسف على احمد",1,3," 1 / 3 ","ذكر","مستجد","مسلم","مصرى","2011-05-26"]
[null,null,0,"سعيد محمد عبدالتواب اسماعيل",1,3," 1 / 3 ","ذكر","مستجد","مسلم","مصرى","2011-06-15"]
[null,null,"م","سيف ابراهيم عبدالحميد خليل",1,3," 1 / 3 ","ذكر","مستجد","مسلم","مصرى","2011-03-25"]
[null,null,0,"صابر رمضان صادق محمد",1,3," 1 / 3 ","ذكر","مستجد","مسلم","مصرى","2010-10-25"]
[null,null,0,"طارق خالد احمد اسماعيل",1,3," 1 / 3 ","ذكر","مستجد","مسلم","مصرى","2010-11-19"]
[null,null,"م","طه محمد عبود امام",1,3," 1 / 3 ","ذكر","مستجد","مسلم","مصرى","2010-12-14"]
[null,null,0,"عادل محمود عمار محمود",1,3," 1 / 3 ","ذكر","مستجد","مسلم","مصرى","2011-05-01"]
[null,null,{"$f":"C264","v":0},"عبدالتواب محمد عبدالتواب محمد",1,3,{"$f":"\" \"&E267&\" / \"&F267&\" \"","v":" 1 / 3 "},"ذكر","مستجد","مسلم","مصرى","2011-01-15"]
[null,null,"م","عبدالرحمن خالد محمود عبدالمنعم",1,3," 1 / 3 ","ذكر","مستجد","مسلم","مصرى","2011-09-14"]
[null,null,0,"عبدالرحمن طه عبدالوارث خليل",1,3," 1 / 3 ","ذكر","مستجد","مسلم","مصرى","2010-12-17"]
[null,null,0,"عبدالرحمن على سعد على",1,3," 1 / 3 ","ذكر","مستجد","مسلم","مصرى","2011-04-04"]
[null,null,"م","عبدالله احمد عاشور محمد",1,3," 1 / 3 ","ذكر","مستجد","مسلم","مصرى","2011-06-07"]
[null,null,0,"عبدالله طه رجب جمعه",1,3," 1 / 3 ","ذكر","مستجد","مسلم","مصرى","2010-08-15"]
[null,null,0,"عبدالله محمد عبدالخالق احمد",1,3," 1 / 3 ","ذكر","مستجد","مسلم","مصرى","2011-04-03"]
[null,null,"م","علاء محمد يوسف محمود",1,3," 1 / 3 ","ذكر","مستجد","مسلم","مصرى","2011-09-13"]
[null,null,0,"على دياب ابوالغيط حسين",1,3," 1 / 3 ","ذكر","مستجد","مسلم","مصرى","2011-03-16"]
[null,null,0,"عمر اسماعيل عبده مبروك",1,3," 1 / 3 ","ذكر","مستجد","مسلم","مصرى","2011-04-02"]
[null,null,"م","عمر كمال سعد على",1,3," 1 / 3 ","ذكر","مستجد","مسلم","مصرى","2011-08-18"]
[null,null,0,"عيد ابراهيم على احمد",1,3," 1 / 3 ","ذكر","مستجد","مسلم","مصرى","2010-10-25"]
[null,null,0,"كريم احمد سيد عبدالعال",1,3," 1 / 3 ","ذكر","مستجد","مسلم","مصرى","2011-09-06"]
[null,null,"م","كريم فتحى احمد خضير",1,3," 1 / 3 ","ذكر","مستجد","مسلم","مصرى","2010-12-12"]
[null,null,0,"محمد احمد فتحى احمد",1,3," 1 / 3 ","ذكر","مستجد","مسلم","مصرى","2011-03-29"]
[null,null,0,"محمد حسان رجب جمعه",1,3," 1 / 3 ","ذكر","مستجد","مسلم","مصرى","2011-01-30"]
[null,null,"م","محمد حمد على سيد",1,3," 1 / 3 ","ذكر","مستجد","مسلم","مصرى","2011-03-25"]
[null,null,0,"محمد سعد عاشور محمد",1,3," 1 / 3 ","ذكر","مستجد","مسلم","مصرى","2010-12-15"]
[null,null,0,"محمد صلاح عطا على خلاف",1,3," 1 / 3 ","ذكر","مستجد","مسلم","مصرى","2011-07-03"]
[null,null,"م","محمد عرفات احمد عبدالوهاب",1,3," 1 / 3 ","ذكر","مستجد","مسلم","مصرى","2010-12-05"]
[null,null,0,"محمد مجدى على احمد",1,3," 1 / 3 ","ذكر","مستجد","مسلم","مصرى","2011-04-01"]
[null,null,0,"محمد نجدى محمد على",1,3," 1 / 3 ","ذكر","مستجد","مسلم","مصرى","2011-09-28"]
[null,null,"م","محمود صلاح محمود محمد",1,3," 1 / 3 ","ذكر","مستجد","مسلم","مصرى","2011-09-09"]
[null,null,0,"محمود محمد فضل عبدالحميد",1,3," 1 / 3 ","ذكر","مستجد","مسلم","مصرى","2011-07-21"]
[null,null,0,"مصطفى محمد شحات عبدالجواد",1,3," 1 / 3 ","ذكر","مستجد","مسلم","مصرى","2010-12-01"]
[null,null,"م","مصطفى محمود رشدى عنكيلى",1,3," 1 / 3 ","ذكر","مستجد","مسلم","مصرى","2011-06-10"]
[null,null,0,"نور شكرى اسماعيل اسماعيل",1,3," 1 / 3 ","ذكر","مستجد","مسلم","مصرى","2010-11-18"]
[null,null,0,"يوسف سمير منصور زكى",1,3," 1 / 3 ","ذكر","مستجد","مسلم","مصرى","2011-01-27"]
[null,null,"م","يوسف عيد محمد عبده",1,3," 1 / 3 ","ذكر","مستجد","مسلم","مصرى","2011-01-01"]
[null,null,0,"يوسف محمود طه محمد",1,3," 1 / 3 ","ذكر","مستجد","مسلم","مصرى","2010-12-16"]
[null,null,0,"اسماء حسنى شافعى خليل",2,1," 2 / 1 ","أنثى","منقول","مسلم","مصرى","2010-01-01"]
[null,null,"م","امل عبدالله عبدالتواب عبدالله",2,1," 2 / 1 ","أنثى","منقول","مسلم","مصرى","2010-03-03"]
[null,null,0,"انجى شعبان رجب امام",2,1," 2 / 1 ","أنثى","منقول","مسلم","مصرى","2010-07-02"]
[null,null,0,"ايه رمضان فتحى رمضان",2,1," 2 / 1 ","أنثى","منقول","مسلم","مصرى","2010-05-26"]
[null,null,"م","بسمله احمد فتحى زكى",2,1," 2 / 1 ","أنثى","منقول","مسلم","مصرى","2010-02-05"]
[null,null,0,"جويريه عبدالرازق دردير محمد",2,1," 2 / 1 ","أنثى","حكم قانون","مسلم","مصرى","2010-07-16"]
[null,null,0,"حبيبه حجاج محمد شعبان",2,1," 2 / 1 ","أنثى","منقول","مسلم","مصرى","2010-06-22"]
[null,null,"م","حبيبه محمد سالم محمد",2,1," 2 / 1 ","أنثى","منقول","مسلم","مصرى","2010-03-24"]
[null,null,0,"دعاء ايمن محمد محمود",2,1," 2 / 1 ","أنثى","حكم قانون","مسلم","مصرى","2009-10-01"]
[null,null,0,"دعاء تامر ابراهيم محمد",2,1," 2 / 1 ","أنثى","منقول","مسلم","مصرى","2010-09-10"]
[null,null,"م","دنيا حازم سيد حسين",2,1," 2 / 1 ","أنثى","منقول","مسلم","مصرى","2010-04-08"]
[null,null,0,"رحمه عبدالحميد عبدالناصر مهدى",2,1," 2 / 1 ","أنثى","حكم قانون","مسلم","مصرى","2010-04-13"]
[null,null,0,"ريتاج طه محمد طه",2,1," 2 / 1 ","أنثى","حكم قانون","مسلم","مصرى","2010-05-26"]
[null,null,"م","ساره جمعه قدرى على",2,1," 2 / 1 ","أنثى","حكم قانون","مسلم","مصرى","2010-07-21"]
[null,null,0,"سعاد محمد احمد زكى",2,1," 2 / 1 ","أنثى","منقول","مسلم","مصرى","2009-12-09"]
[null,null,0,"سمر عيد عبده مبروك",2,1," 2 / 1 ","أنثى","منقول","مسلم","مصرى","2010-04-21"]
[null,null,"م","سندس صابر عبدالرسول درويش",2,1," 2 / 1 ","أنثى","منقول","مسلم","مصرى","2009-05-29"]
[null,null,0,"شروق هانى على على",2,1," 2 / 1 ","أنثى","منقول","مسلم","مصرى","2010-02-13"]
[null,null,0,"شهد حازم عادل على",2,1," 2 / 1 ","أنثى","منقول","مسلم","مصرى","2010-01-23"]
[null,null,"م","شيماء احمد عادل امام",2,1," 2 / 1 ","أنثى","منقول","مسلم","مصرى","2010-07-01"]
[null,null,0,"عهود صابر عمر عتريس",2,1," 2 / 1 ","أنثى","منقول","مسلم","مصرى","2009-11-10"]
[null,null,0,"فاطمه شعبان اسماعيل امبابى",2,1," 2 / 1 ","أنثى","منقول","مسلم","مصرى","2010-08-08"]
[null,null,"م","فاطمه محمد كامل عكاشه",2,1," 2 / 1 ","أنثى","منقول","مسلم","مصرى","2009-12-04"]
[null,null,0,"مرفت شعبان على عبود",2,1," 2 / 1 ","أنثى","منقول","مسلم","مصرى","2009-06-16"]
[null,null,0,"مريم سامح محمد محمد",2,1," 2 / 1 ","أنثى","منقول","مسلم","مصرى","2010-05-10"]
[null,null,"م","مريم محمد مرسى عبدالرحمن",2,1," 2 / 1 ","أنثى","منقول","مسلم","مصرى","2010-05-02"]
[null,null,0,"ملك احمد صادق درويش",2,1," 2 / 1 ","أنثى","منقول","مسلم","مصرى","2010-01-06"]
[null,null,0,"ملك حسن عادل حسن",2,1," 2 / 1 ","أنثى","منقول","مسلم","مصرى","2010-05-07"]
[null,null,"م","ملك على محمد احمد",2,1," 2 / 1 ","أنثى","منقول","مسلم","مصرى","2010-02-25"]
[null,null,0,"منار حامد فهمى هندى",2,1," 2 / 1 ","أنثى","منقول","مسلم","مصرى","2010-01-20"]
[null,null,0,"منه محمد عبدالتواب معوض",2,1," 2 / 1 ","أنثى","منقول","مسلم","مصرى","2009-10-10"]
[null,null,"م","مى جمعه صبرى جمعه",2,1," 2 / 1 ","أنثى","منقول","مسلم","مصرى","2010-01-09"]
[null,null,0,"ناديه عطيه مصطفى كامل",2,1," 2 / 1 ","أنثى","منقول","مسلم","مصرى","2009-12-01"]
[null,null,0,"نجلاء احمد رمضان امبابى",2,1," 2 / 1 ","أنثى","منقول","مسلم","مصرى","2010-01-01"]
[null,null,{"$f":"C328","v":"م"},"ندا طه محمد عبدالرحمن",2,1,{"$f":"\" \"&E331&\" / \"&F331&\" \"","v":" 2 / 1 "},"أنثى","حكم قانون","مسلم","مصرى","2009-12-07"]
[null,null,0,"نسرين ناصر فتحى جمعه",2,1," 2 / 1 ","أنثى","منقول","مسلم","مصرى","2010-03-04"]
[null,null,0,"نعمه رجب حمدى عطيه",2,1," 2 / 1 ","أنثى","منقول","مسلم","مصرى","2010-08-30"]
[null,null,"م","نور عزت سيد رجب",2,1," 2 / 1 ","أنثى","منقول","مسلم","مصرى","2010-04-11"]
[null,null,0,"نورهان حمدى احمد عبدالوهاب",2,1," 2 / 1 ","أنثى","منقول","مسلم","مصرى","2010-05-03"]
[null,null,0,"نورهان عمر رجب محمد",2,1," 2 / 1 ","أنثى","منقول","مسلم","مصرى","2010-02-24"]
[null,null,"م","هدى احمد على احمد",2,1," 2 / 1 ","أنثى","منقول","مسلم","مصرى","2010-06-30"]
[null,null,0,"هديه محمد محمود على",2,1," 2 / 1 ","أنثى","منقول","مسلم","مصرى","2010-08-22"]
[null,null,0,"يارا اكرم فتحى احمد",2,1," 2 / 1 ","أنثى","منقول","مسلم","مصرى","2010-06-01"]
[null,null,"م","ابراهيم شعبان عبدالرحمن عبدالله",2,1," 2 / 1 ","ذكر","منقول","مسلم","مصرى","2010-01-01"]
[null,null,0,"احمد حسين احمد عاشور",2,1," 2 / 1 ","ذكر","منقول","مسلم","مصرى","2010-02-23"]
[null,null,0,"احمد عادل على عبدالعزيز",2,1," 2 / 1 ","ذكر","منقول","مسلم","مصرى","2010-04-23"]
[null,null,"م","احمد عوض فهمى احمد",2,1," 2 / 1 ","ذكر","منقول","مسلم","مصرى","2010-01-01"]
[null,null,0,"احمد محمد عبدالحكيم محمد",2,1," 2 / 1 ","ذكر","منقول","مسلم","مصرى","2010-09-01"]
[null,null,0,"ادهم رمضان على رمضان",2,1," 2 / 1 ","ذكر","حكم قانون","مسلم","مصرى","2010-01-12"]
[null,null,"م","اسلام رجب رمضان امبابى",2,1," 2 / 1 ","ذكر","منقول","مسلم","مصرى","2010-07-30"]
[null,null,0,"اسماعيل عرفه اسماعيل عبدالعزيز",2,1," 2 / 1 ","ذكر","منقول","مسلم","مصرى","2010-07-04"]
[null,null,0,"بلال محمد منصور يوسف",2,1," 2 / 1 ","ذكر","منقول","مسلم","مصرى","2010-05-07"]
[null,null,"م","حازم على فتحى عبده",2,1," 2 / 1 ","ذكر","منقول","مسلم","مصرى","2009-10-10"]
[null,null,0,"خالد حسنى سيد حسن",2,1," 2 / 1 ","ذكر","منقول","مسلم","مصرى","2009-11-08"]
[null,null,0,"رباح عمر رمضان صالح",2,1," 2 / 1 ","ذكر","منقول","مسلم","مصرى","2009-10-20"]
[null,null,"م","زياد طارق عبدالنبى رياض",2,1," 2 / 1 ","ذكر","منقول","مسلم","مصرى","2010-01-01"]
[null,null,0,"سعيد سعيد محمد عبده",2,1," 2 / 1 ","ذكر","منقول","مسلم","مصرى","2010-07-13"]
[null,null,0,"سيف مبروك عبدالمحسن على",2,1," 2 / 1 ","ذكر","منقول","مسلم","مصرى","2010-08-27"]
[null,null,"م","شعبان حسنى زايد سيد",2,1," 2 / 1 ","ذكر","منقول","مسلم","مصرى","2010-06-28"]
[null,null,0,"طلعت على عبدالتواب محمود",2,1," 2 / 1 ","ذكر","منقول","مسلم","مصرى","2010-08-26"]
[null,null,0,"عادل بدر عادل بدر",2,1," 2 / 1 ","ذكر","منقول","مسلم","مصرى","2009-11-28"]
[null,null,"م","عبدالرحمن ابراهيم حنفى محمود",2,1," 2 / 1 ","ذكر","منقول","مسلم","مصرى","2010-05-07"]
[null,null,0,"عبدالرحمن شريف رشدى عبدالمقصود",2,1," 2 / 1 ","ذكر","حكم قانون","مسلم","مصرى","2010-01-01"]
[null,null,0,"عبدالرحمن عبده محمد داود",2,1," 2 / 1 ","ذكر","حكم قانون","مسلم","مصرى","2010-09-21"]
[null,null,"م","عبدالعال عاطف سيد احمد فرغل",2,1," 2 / 1 ","ذكر","منقول","مسلم","مصرى","2010-06-16"]
[null,null,0,"عبدالله مبروك عبده جمعه",2,1," 2 / 1 ","ذكر","منقول","مسلم","مصرى","2009-01-10"]
[null,null,0,"عزت محمود عبده محمود",2,1," 2 / 1 ","ذكر","منقول","مسلم","مصرى","2010-01-27"]
[null,null,"م","على حسنى عمر بدر",2,1," 2 / 1 ","ذكر","منقول","مسلم","مصرى","2010-01-23"]
[null,null,0,"عمر حسن عبدالتواب محمود",2,1," 2 / 1 ","ذكر","منقول","مسلم","مصرى","2010-03-05"]
[null,null,0,"عمر عادل عاشور خميس",2,1," 2 / 1 ","ذكر","منقول","مسلم","مصرى","2010-06-15"]
[null,null,"م","عنتر اسماعيل عبدالتواب عبدالله",2,1," 2 / 1 ","ذكر","منقول","مسلم","مصرى","2010-03-14"]
[null,null,0,"غانم عمر محمد غانم",2,1," 2 / 1 ","ذكر","منقول","مسلم","مصرى","2010-09-25"]
[null,null,0,"كامل عبدالله كامل عبدالله",2,1," 2 / 1 ","ذكر","منقول","مسلم","مصرى","2010-08-04"]
[null,null,"م","محمد تامر محمد محمود",2,1," 2 / 1 ","ذكر","حكم قانون","مسلم","مصرى","2010-02-26"]
[null,null,0,"محمد سمير عبدالمحسن على",2,1," 2 / 1 ","ذكر","حكم قانون","مسلم","مصرى","2009-11-05"]
[null,null,0,"محمد صابر عدلى محمد",2,1," 2 / 1 ","ذكر","منقول","مسلم","مصرى","2009-07-29"]
[null,null,"م","محمد عاطف جلال خميس",2,1," 2 / 1 ","ذكر","منقول","مسلم","مصرى","2009-12-02"]
[null,null,0,"محمد عمر جمال عبدالحميد",2,1," 2 / 1 ","ذكر","منقول","مسلم","مصرى","2010-05-04"]
[null,null,0,"محمد محمود مصطفى رجب",2,1," 2 / 1 ","ذكر","منقول","مسلم","مصرى","2010-09-07"]
[null,null,"م","محمود احمد محمد احمد",2,1," 2 / 1 ","ذكر","حكم قانون","مسلم","مصرى","2010-06-01"]
[null,null,0,"محمود هانى ابراهيم عيد",2,1," 2 / 1 ","ذكر","منقول","مسلم","مصرى","2010-01-13"]
[null,null,0,"مصطفى محمد عبده بشير",2,1," 2 / 1 ","ذكر","منقول","مسلم","مصرى","2010-01-19"]
[null,null,"م","ممدوح حسن عبدالنبى حسن",2,1," 2 / 1 ","ذكر","منقول","مسلم","مصرى","2010-08-01"]
[null,null,0,"ياسين صديق سعيد صديق",2,1," 2 / 1 ","ذكر","منقول","مسلم","مصرى","2010-10-01"]
[null,null,0,"يوسف ابراهيم جوده فرج",2,1," 2 / 1 ","ذكر","منقول","مسلم","مصرى","2009-02-13"]
[null,null,"م","يوسف صابر على احمد",2,1," 2 / 1 ","ذكر","منقول","مسلم","مصرى","2010-02-06"]
[null,null,0,"اسماء ياسر على محمود",2,2," 2 / 2 ","أنثى","منقول","مسلم","مصرى","2010-04-24"]
[null,null,0,"امنيه علاء سعد احمد",2,2," 2 / 2 ","أنثى","منقول","مسلم","مصرى","2010-08-19"]
[null,null,"م","انجى شلقانى عبدالنبى حسن",2,2," 2 / 2 ","أنثى","منقول","مسلم","مصرى","2010-08-20"]
[null,null,0,"ايه محمد عبدالخالق محمد",2,2," 2 / 2 ","أنثى","منقول","مسلم","مصرى","2010-01-20"]
[null,null,0,"بسنت بدر عيد بدر",2,2," 2 / 2 ","أنثى","منقول","مسلم","مصرى","2009-10-25"]
[null,null,"م","جنى ايمن عبدالفتاح عبود",2,2," 2 / 2 ","أنثى","حكم قانون","مسلم","مصرى","2010-07-14"]
[null,null,0,"حبيبه ابراهيم طه محمد",2,2," 2 / 2 ","أنثى","منقول","مسلم","مصرى","2010-04-18"]
[null,null,0,"حبيبه حماده ناصر محمود",2,2," 2 / 2 ","أنثى","منقول","مسلم","مصرى","2009-12-09"]
[null,null,"م","حبيبه محمد على سيد",2,2," 2 / 2 ","أنثى","منقول","مسلم","مصرى","2010-08-08"]
[null,null,0,"حنين محمد عبدالفضيل زيدان",2,2," 2 / 2 ","أنثى","منقول","مسلم","مصرى","2010-03-20"]
[null,null,0,"دعاء فتحى غانم محمد",2,2," 2 / 2 ","أنثى","حكم قانون","مسلم","مصرى","2009-12-10"]
[null,null,"م","دنيا سعيد سيد محمد",2,2," 2 / 2 ","أنثى","منقول","مسلم","مصرى","2010-08-01"]
[null,null,{"$f":"C392","v":0},"رحمه محمد جادالحق محمد",2,2,{"$f":"\" \"&E395&\" / \"&F395&\" \"","v":" 2 / 2 "},"أنثى","منقول","مسلم","مصرى","2010-06-23"]
[null,null,0,"زينب رمضان جمعه محمود",2,2," 2 / 2 ","أنثى","منقول","مسلم","مصرى","2010-08-13"]
[null,null,"م","ساره عبدالنبى جمعه بيومى",2,2," 2 / 2 ","أنثى","منقول","مسلم","مصرى","2009-01-08"]
[null,null,0,"سلمى سعيد عبدالمنعم سالم",2,2," 2 / 2 ","أنثى","منقول","مسلم","مصرى","2010-07-13"]
[null,null,0,"سميحه اشرف ابوالغيط حسين",2,2," 2 / 2 ","أنثى","منقول","مسلم","مصرى","2010-07-28"]
[null,null,"م","سندس عماد محمد عبده",2,2," 2 / 2 ","أنثى","منقول","مسلم","مصرى","2009-11-13"]
[null,null,0,"شفاء اكرامى محمد محمود",2,2," 2 / 2 ","أنثى","منقول","مسلم","مصرى","2009-11-16"]
[null,null,0,"شهد محمد عاشور حسن",2,2," 2 / 2 ","أنثى","منقول","مسلم","مصرى","2010-04-11"]
[null,null,"م","شيماء عزت فتحى شعبان",2,2," 2 / 2 ","أنثى","منقول","مسلم","مصرى","2009-10-09"]
[null,null,0,"غاده محمد عواد عيد",2,2," 2 / 2 ","أنثى","منقول","مسلم","مصرى","2009-09-21"]
[null,null,0,"فاطمه عماد محمد خليل",2,2," 2 / 2 ","أنثى","منقول","مسلم","مصرى","2010-01-11"]
[null,null,"م","فرحه رجب محمود احمد",2,2," 2 / 2 ","أنثى","حكم قانون","مسلم","مصرى","2010-01-23"]
[null,null,0,"مروه محمد كامل محمد",2,2," 2 / 2 ","أنثى","منقول","مسلم","مصرى","2010-06-10"]
[null,null,0,"مريم على فرج عبدالمقصود",2,2," 2 / 2 ","أنثى","منقول","مسلم","مصرى","2010-09-05"]
[null,null,"م","مريم مصطفى عبدالخالق طه",2,2," 2 / 2 ","أنثى","منقول","مسلم","مصرى","2009-11-10"]
[null,null,0,"ملك احمد عبدالرحمن محمد",2,2," 2 / 2 ","أنثى","منقول","مسلم","مصرى","2010-08-27"]
[null,null,0,"ملك حسين رمضان ابوسريع",2,2," 2 / 2 ","أنثى","منقول","مسلم","مصرى","2009-10-11"]
[null,null,"م","ملك محمد عاشور عبدالخالق",2,2," 2 / 2 ","أنثى","منقول","مسلم","مصرى","2010-06-07"]
[null,null,0,"منار رجب ثابت ثابت",2,2," 2 / 2 ","أنثى","منقول","مسلم","مصرى","2010-02-09"]
[null,null,0,"منه اسماعيل بدوى على",2,2," 2 / 2 ","أنثى","حكم قانون","مسلم","مصرى","2009-10-15"]
[null,null,"م","منى رمضان كمال احمد",2,2," 2 / 2 ","أنثى","منقول","مسلم","مصرى","2009-08-15"]
[null,null,0,"مى سمير عيد محمود",2,2," 2 / 2 ","أنثى","منقول","مسلم","مصرى","2010-06-08"]
[null,null,0,"ناديه هانى حسن سعيد",2,2," 2 / 2 ","أنثى","منقول","مسلم","مصرى","2010-05-09"]
[null,null,"م","نجلاء عيد عبده على",2,2," 2 / 2 ","أنثى","حكم قانون","مسلم","مصرى","2010-03-03"]
[null,null,0,"ندى اشرف عبدالوهاب محمود",2,2," 2 / 2 ","أنثى","منقول","مسلم","مصرى","2010-08-02"]
[null,null,0,"نعمه جمال رجب عبدالحكيم",2,2," 2 / 2 ","أنثى","منقول","مسلم","مصرى","2010-05-01"]
[null,null,"م","نورا عاطف امين احمد",2,2," 2 / 2 ","أنثى","منقول","مسلم","مصرى","2010-03-06"]
[null,null,0,"نورهان رامى سعيد عبدالنعيم",2,2," 2 / 2 ","أنثى","منقول","مسلم","مصرى","2009-11-12"]
[null,null,0,"نورهان منتصر فتحى منتصر",2,2," 2 / 2 ","أنثى","منقول","مسلم","مصرى","2009-12-19"]
[null,null,"م","هناء ابراهيم سعد عاشور",2,2," 2 / 2 ","أنثى","منقول","مسلم","مصرى","2010-03-10"]
[null,null,0,"ياسمين محمد فوزى محمد",2,2," 2 / 2 ","أنثى","منقول","مسلم","مصرى","2010-05-01"]
[null,null,0,"ابراهيم محمد فهمى احمد",2,2," 2 / 2 ","ذكر","منقول","مسلم","مصرى","2010-02-26"]
[null,null,"م","احمد عبدالله احمد على",2,2," 2 / 2 ","ذكر","منقول","مسلم","مصرى","2010-09-10"]
[null,null,0,"احمد مجدى محمد عبدالظاهر",2,2," 2 / 2 ","ذكر","منقول","مسلم","مصرى","2010-02-10"]
[null,null,0,"احمد محمد قدرى عطاالله",2,2," 2 / 2 ","ذكر","منقول","مسلم","مصرى","2010-04-11"]
[null,null,"م","ادهم علاء الدين عبدالله محمد",2,2," 2 / 2 ","ذكر","منقول","مسلم","مصرى","2010-04-25"]
[null,null,0,"اسلام صادق عبدالعظيم صادق",2,2," 2 / 2 ","ذكر","منقول","مسلم","مصرى","2010-04-05"]
[null,null,0,"امين اشرف حامد ابوبكر",2,2," 2 / 2 ","ذكر","منقول","مسلم","مصرى","2010-06-10"]
[null,null,"م","بلال يحيى عبدالمقصود طه",2,2," 2 / 2 ","ذكر","منقول","مسلم","مصرى","2010-05-10"]
[null,null,0,"حامد محمد عبدالرحمن غنيم",2,2," 2 / 2 ","ذكر","منقول","مسلم","مصرى","2009-12-10"]
[null,null,0,"خالد محمد عبدربه شحاته",2,2," 2 / 2 ","ذكر","منقول","مسلم","مصرى","2010-03-15"]
[null,null,"م","رجب على عبدالسلام عبداللاه",2,2," 2 / 2 ","ذكر","منقول","مسلم","مصرى","2009-10-15"]
[null,null,0,"زياد عبدالظاهر عبدالستار مرسى",2,2," 2 / 2 ","ذكر","منقول","مسلم","مصرى","2010-02-05"]
[null,null,0,"سعيد صابر سعيد عابد",2,2," 2 / 2 ","ذكر","حكم قانون","مسلم","مصرى","2010-07-17"]
[null,null,"م","شريف حماده قدرى محمود",2,2," 2 / 2 ","ذكر","منقول","مسلم","مصرى","2010-07-03"]
[null,null,0,"شهاب محمد عبدالحميد مليجى",2,2," 2 / 2 ","ذكر","منقول","مسلم","مصرى","2009-12-27"]
[null,null,0,"طه سعيد محمد امام",2,2," 2 / 2 ","ذكر","منقول","مسلم","مصرى","2010-07-22"]
[null,null,"م","عادل صبحى حسن مغورى",2,2," 2 / 2 ","ذكر","منقول","مسلم","مصرى","2009-07-21"]
[null,null,0,"عبدالرحمن صبرى فهمى شاكر",2,2," 2 / 2 ","ذكر","حكم قانون","مسلم","مصرى","2010-06-23"]
[null,null,0,"عبدالرحمن فرحات طه عبدالصمد",2,2," 2 / 2 ","ذكر","حكم قانون","مسلم","مصرى","2010-02-14"]
[null,null,"م","عبدالعزيز سامى على عبدالعزيز",2,2," 2 / 2 ","ذكر","منقول","مسلم","مصرى","2010-04-01"]
[null,null,0,"عبدالله ابوغنيمه رمضان محمد",2,2," 2 / 2 ","ذكر","منقول","مسلم","مصرى","2009-07-02"]
[null,null,0,"عبدالناصر رمضان اسماعيل رمضان",2,2," 2 / 2 ","ذكر","منقول","مسلم","مصرى","2010-08-23"]
[null,null,"م","علاء مدحت صلاح جمعه",2,2," 2 / 2 ","ذكر","منقول","مسلم","مصرى","2010-06-15"]
[null,null,0,"على رمضان جلال ابراهيم",2,2," 2 / 2 ","ذكر","حكم قانون","مسلم","مصرى","2010-01-02"]
[null,null,0,"عمر خالد عبود عبدالفتاح",2,2," 2 / 2 ","ذكر","منقول","مسلم","مصرى","2010-06-10"]
[null,null,"م","عمر مصطفى احمد اسماعيل",2,2," 2 / 2 ","ذكر","منقول","مسلم","مصرى","2010-08-21"]
[null,null,0,"عويان عمر محمود عبدالعظيم",2,2," 2 / 2 ","ذكر","منقول","مسلم","مصرى","2010-03-12"]
[null,null,0,"فاروق عبدالتواب فاروق محمد",2,2," 2 / 2 ","ذكر","منقول","مسلم","مصرى","2010-03-13"]
[null,null,"م","محروس عبدالرازق عبدالمقصود عبدالرازق",2,2," 2 / 2 ","ذكر","حكم قانون","مسلم","مصرى","2009-12-13"]
[null,null,0,"محمد حداد عبدالتواب ربيع",2,2," 2 / 2 ","ذكر","حكم قانون","مسلم","مصرى","2009-04-20"]
[null,null,0,"محمد سيد رجب سيد",2,2," 2 / 2 ","ذكر","منقول","مسلم","مصرى","2009-01-19"]
[null,null,"م","محمد صلاح عبدالتواب عبدالخالق",2,2," 2 / 2 ","ذكر","منقول","مسلم","مصرى","2010-06-10"]
[null,null,0,"محمد عبدالحكيم محمد عبدالحكيم",2,2," 2 / 2 ","ذكر","حكم قانون","مسلم","مصرى","2009-11-29"]
[null,null,{"$f":"C456","v":0},"محمد عيد على احمد",2,2,{"$f":"\" \"&E459&\" / \"&F459&\" \"","v":" 2 / 2 "},"ذكر","منقول","مسلم","مصرى","2010-01-14"]
[null,null,"م","محمد محمد رجب ابوسريع",2,2," 2 / 2 ","ذكر","منقول","مسلم","مصرى","2010-02-08"]
[null,null,0,"محمد ممدوح جمال محمد",2,2," 2 / 2 ","ذكر","منقول","مسلم","مصرى","2010-08-21"]
[null,null,0,"محمود حسين على حسين",2,2," 2 / 2 ","ذكر","منقول","مسلم","مصرى","2010-01-06"]
[null,null,"م","محمود هانى محمود عبدالسلام",2,2," 2 / 2 ","ذكر","منقول","مسلم","مصرى","2010-05-10"]
[null,null,0,"مصطفى محمود طه خميس",2,2," 2 / 2 ","ذكر","منقول","مسلم","مصرى","2010-05-10"]
[null,null,0,"مهدى طه محمود محمود",2,2," 2 / 2 ","ذكر","منقول","مسلم","مصرى","2010-07-25"]
[null,null,"م","ياسين وحيد محمد سيد احمد",2,2," 2 / 2 ","ذكر","حكم قانون","مسلم","مصرى","2010-09-01"]
[null,null,0,"يوسف حامد احمد ابوبكر",2,2," 2 / 2 ","ذكر","منقول","مسلم","مصرى","2010-05-22"]
[null,null,0,"يوسف عزت مصطفى رجب",2,2," 2 / 2 ","ذكر","منقول","مسلم","مصرى","2010-08-19"]
[null,null,"م","اصاله احمد عبدالسلام عبداللاه",2,3," 2 / 3 ","أنثى","منقول","مسلم","مصرى","2010-07-01"]
[null,null,0,"امنيه محمد عادل احمد",2,3," 2 / 3 ","أنثى","منقول","مسلم","مصرى","2010-06-10"]
[null,null,0,"انجى كمال فتحى احمد",2,3," 2 / 3 ","أنثى","منقول","مسلم","مصرى","2009-12-16"]
[null,null,"م","ايه وليد فوزى عبداللا",2,3," 2 / 3 ","أنثى","منقول","مسلم","مصرى","2009-10-05"]
[null,null,0,"بشرى محمد عبدالحليم سيد",2,3," 2 / 3 ","أنثى","منقول","مسلم","مصرى","2010-01-01"]
[null,null,0,"جنى حامد عبدالفتاح عبداللا",2,3," 2 / 3 ","أنثى","حكم قانون","مسلم","مصرى","2010-08-23"]
[null,null,"م","حبيبه ابراهيم عبدالناصر عبدالغفار",2,3," 2 / 3 ","أنثى","منقول","مسلم","مصرى","2010-04-15"]
[null,null,0,"حبيبه سعيد عبدالتواب اسماعيل",2,3," 2 / 3 ","أنثى","منقول","مسلم","مصرى","2009-10-05"]
[null,null,0,"حبيبه هانى ابراهيم عثمان",2,3," 2 / 3 ","أنثى","منقول","مسلم","مصرى","2010-01-02"]
[null,null,"م","دعاء احمد ابراهيم جمعه",2,3," 2 / 3 ","أنثى","منقول","مسلم","مصرى","2010-09-10"]
[null,null,0,"دعاء نعيم حسين سعيد",2,3," 2 / 3 ","أنثى","منقول","مسلم","مصرى","2010-05-18"]
[null,null,0,"رانيا عزت حماد عبدالفتاح",2,3," 2 / 3 ","أنثى","منقول","مسلم","مصرى","2010-03-25"]
[null,null,"م","رحمه مسعود عبدالهادى مالى",2,3," 2 / 3 ","أنثى","منقول","مسلم","مصرى","2010-01-12"]
[null,null,0,"زينب صابر عبده على",2,3," 2 / 3 ","أنثى","حكم قانون","مسلم","مصرى","2009-12-11"]
[null,null,0,"ساره محمد سيد قدرى",2,3," 2 / 3 ","أنثى","منقول","مسلم","مصرى","2009-09-11"]
[null,null,"م","سلمى صابر عبدالواحد جمعه",2,3," 2 / 3 ","أنثى","منقول","مسلم","مصرى","2010-05-15"]
[null,null,0,"سميه عبدالرحمن سيد حسن",2,3," 2 / 3 ","أنثى","منقول","مسلم","مصرى","2010-02-01"]
[null,null,0,"سوميه احمد سعودى محمود",2,3," 2 / 3 ","أنثى","منقول","مسلم","مصرى","2009-12-06"]
[null,null,"م","شمس احمد عبدالستار احمد",2,3," 2 / 3 ","أنثى","منقول","مسلم","مصرى","2009-12-12"]
[null,null,0,"شهد محمد على على",2,3," 2 / 3 ","أنثى","منقول","مسلم","مصرى","2010-05-19"]
[null,null,0,"عايده صبرى صلاح الدين محمد",2,3," 2 / 3 ","أنثى","منقول","مسلم","مصرى","2010-09-07"]
[null,null,"م","فاطمه اسامه محمد طه",2,3," 2 / 3 ","أنثى","حكم قانون","مسلم","مصرى","2009-07-31"]
[null,null,0,"فاطمه محمد سمير سعيد",2,3," 2 / 3 ","أنثى","منقول","مسلم","مصرى","2010-06-05"]
[null,null,0,"لمياء رمضان ابوبكر هاشم",2,3," 2 / 3 ","أنثى","منقول","مسلم","مصرى","2010-09-07"]
[null,null,"م","مريم حازم عمر محمد",2,3," 2 / 3 ","أنثى","منقول","مسلم","مصرى","2010-06-01"]
[null,null,0,"مريم عمران محمد عباس",2,3," 2 / 3 ","أنثى","حكم قانون","مسلم","مصرى","2010-08-22"]
[null,null,0,"مريم هشام ابوبكر محمود",2,3," 2 / 3 ","أنثى","منقول","مسلم","مصرى","2010-04-15"]
[null,null,"م","ملك ايمن سيد محمد",2,3," 2 / 3 ","أنثى","منقول","مسلم","مصرى","2010-06-26"]
[null,null,0,"ملك طه حسين محمود",2,3," 2 / 3 ","أنثى","منقول","مسلم","مصرى","2010-04-07"]
[null,null,0,"منار عبدالحميد سيد عبدالحميد",2,3," 2 / 3 ","أنثى","منقول","مسلم","مصرى","2010-03-22"]
[null,null,"م","منى سمير ابراهيم حسن",2,3," 2 / 3 ","أنثى","منقول","مسلم","مصرى","2009-10-13"]
[null,null,0,"مى عبدالتواب عبدالناصر مهدى",2,3," 2 / 3 ","أنثى","منقول","مسلم","مصرى","2009-11-28"]
[null,null,0,"ناريمان حمد سيد عبدالحكيم",2,3," 2 / 3 ","أنثى","منقول","مسلم","مصرى","2010-01-12"]
[null,null,"م","ندى رمضان عبدالوارث خليل",2,3," 2 / 3 ","أنثى","منقول","مسلم","مصرى","2009-07-19"]
[null,null,0,"نهى عمر احمد عواد",2,3," 2 / 3 ","أنثى","منقول","مسلم","مصرى","2010-01-29"]
[null,null,0,"نورا عاطف على احمد",2,3," 2 / 3 ","أنثى","منقول","مسلم","مصرى","2010-05-15"]
[null,null,"م","نورهان عبدالناصر عبدالمحسن على",2,3," 2 / 3 ","أنثى","حكم قانون","مسلم","مصرى","2010-01-20"]
[null,null,0,"هاجر ايمن عبده درويش",2,3," 2 / 3 ","أنثى","منقول","مسلم","مصرى","2009-10-18"]
[null,null,0,"هدى طه عبدالسلام عبداللاه",2,3," 2 / 3 ","أنثى","منقول","مسلم","مصرى","2010-09-15"]
[null,null,"م","هديه محمود عزمى سيد",2,3," 2 / 3 ","أنثى","منقول","مسلم","مصرى","2010-04-02"]
[null,null,0,"هناء احمد سيد على",2,3," 2 / 3 ","أنثى","منقول","مسلم","مصرى","2010-07-20"]
[null,null,0,"ياسمين هشام عبدالسلام رجب",2,3," 2 / 3 ","أنثى","منقول","مسلم","مصرى","2010-05-25"]
[null,null,"م","احمد شريف شحات محمد",2,3," 2 / 3 ","ذكر","حكم قانون","مسلم","مصرى","2010-08-16"]
[null,null,0,"احمد عبدالله محمد عبدالله",2,3," 2 / 3 ","ذكر","منقول","مسلم","مصرى","2010-07-07"]
[null,null,0,"احمد محمد بشير رزق",2,3," 2 / 3 ","ذكر","منقول","مسلم","مصرى","2010-07-10"]
[null,null,"م","احمد هانى صادق درويش",2,3," 2 / 3 ","ذكر","منقول","مسلم","مصرى","2010-06-23"]
[null,null,0,"ادهم فهمى سيد عبدالحكيم",2,3," 2 / 3 ","ذكر","حكم قانون","مسلم","مصرى","2010-05-15"]
[null,null,0,"اسلام محمد عبدالحكيم محمد",2,3," 2 / 3 ","ذكر","منقول","مسلم","مصرى","2010-09-01"]
[null,null,"م","اياد سامى محمود احمد",2,3," 2 / 3 ","ذكر","حكم قانون","مسلم","مصرى","2010-06-08"]
[null,null,0,"تامر عماد محمد محمود",2,3," 2 / 3 ","ذكر","منقول","مسلم","مصرى","2010-07-20"]
[null,null,0,"حسن عزت محمد عيسى",2,3," 2 / 3 ","ذكر","منقول","مسلم","مصرى","2010-08-06"]
[null,null,"م","ذياد سيد انور صالح",2,3," 2 / 3 ","ذكر","منقول","مسلم","مصرى","2010-07-10"]
[null,null,0,"رمضان احمد نبيل على",2,3," 2 / 3 ","ذكر","منقول","مسلم","مصرى","2010-08-10"]
[null,null,0,"زياد ممدوح قدرى ابوبكر",2,3," 2 / 3 ","ذكر","حكم قانون","مسلم","مصرى","2010-09-01"]
[null,null,{"$f":"C520","v":"م"},"سعيد هانى حسن سعيد",2,3,{"$f":"\" \"&E523&\" / \"&F523&\" \"","v":" 2 / 3 "},"ذكر","منقول","مسلم","مصرى","2010-05-09"]
[null,null,0,"صابر عبدالنبى محمود نجدى",2,3," 2 / 3 ","ذكر","منقول","مسلم","مصرى","2009-10-07"]
[null,null,0,"طه على محمود عبدالمقصود",2,3," 2 / 3 ","ذكر","منقول","مسلم","مصرى","2010-08-07"]
[null,null,"م","عاطف طلعت امين احمد",2,3," 2 / 3 ","ذكر","منقول","مسلم","مصرى","2009-10-09"]
[null,null,0,"عبدالرحمن سلطان لملوم عدلى",2,3," 2 / 3 ","ذكر","منقول","مسلم","مصرى","2010-03-15"]
[null,null,0,"عبدالرحمن صبرى منصور زكى",2,3," 2 / 3 ","ذكر","منقول","مسلم","مصرى","2009-10-25"]
[null,null,"م","عبدالرحمن محمد على عبدالوارث",2,3," 2 / 3 ","ذكر","منقول","مسلم","مصرى","2009-08-24"]
[null,null,0,"عبدالعزيز عادل جمال عبدالناصر",2,3," 2 / 3 ","ذكر","حكم قانون","مسلم","مصرى","2010-07-12"]
[null,null,0,"عبده محمد سعد احمد",2,3," 2 / 3 ","ذكر","منقول","مسلم","مصرى","2010-09-23"]
[null,null,"م","على حامد فرج عبدالمقصود",2,3," 2 / 3 ","ذكر","منقول","مسلم","مصرى","2010-01-17"]
[null,null,0,"على محمود سلام ابوبكر",2,3," 2 / 3 ","ذكر","منقول","مسلم","مصرى","2010-04-24"]
[null,null,0,"عمر سعيد ابراهيم عيد",2,3," 2 / 3 ","ذكر","منقول","مسلم","مصرى","2010-07-05"]
[null,null,"م","عمرو ابراهيم محمد سعد",2,3," 2 / 3 ","ذكر","منقول","مسلم","مصرى","2010-01-09"]
[null,null,0,"عيد على محمد طه",2,3," 2 / 3 ","ذكر","منقول","مسلم","مصرى","2009-05-12"]
[null,null,0,"فهمى احمد درويش على",2,3," 2 / 3 ","ذكر","حكم قانون","مسلم","مصرى","2010-04-15"]
[null,null,"م","محمد ابراهيم عبدالعزيز ربيع",2,3," 2 / 3 ","ذكر","منقول","مسلم","مصرى","2009-10-01"]
[null,null,0,"محمد خالد احمد اسماعيل",2,3," 2 / 3 ","ذكر","منقول","مسلم","مصرى","2009-03-25"]
[null,null,0,"محمد شعبان سلطان صابر",2,3," 2 / 3 ","ذكر","منقول","مسلم","مصرى","2010-09-18"]
[null,null,"م","محمد ضاحى عبدالتواب عبدالفضيل",2,3," 2 / 3 ","ذكر","منقول","مسلم","مصرى","2010-02-09"]
[null,null,0,"محمد على عبدالحميد جمعه",2,3," 2 / 3 ","ذكر","حكم قانون","مسلم","مصرى","2010-04-07"]
[null,null,0,"محمد محمد عبدالحكيم محمد",2,3," 2 / 3 ","ذكر","منقول","مسلم","مصرى","2010-09-22"]
[null,null,"م","محمد وليد محمد شافعى",2,3," 2 / 3 ","ذكر","حكم قانون","مسلم","مصرى","2010-04-12"]
[null,null,0,"محمود شريف محمد محمود",2,3," 2 / 3 ","ذكر","منقول","مسلم","مصرى","2010-06-06"]
[null,null,0,"مصطفى جمعه شعبان رجب",2,3," 2 / 3 ","ذكر","حكم قانون","مسلم","مصرى","2010-05-13"]
[null,null,"م","معاذ هانى احمد خميس",2,3," 2 / 3 ","ذكر","منقول","مسلم","مصرى","2010-08-02"]
[null,null,0,"ناصر حسن عبدالناصر مغاورى",2,3," 2 / 3 ","ذكر","منقول","مسلم","مصرى","2010-03-30"]
[null,null,0,"ياسين يحيى عبدالمقصود طه",2,3," 2 / 3 ","ذكر","منقول","مسلم","مصرى","2010-01-01"]
[null,null,"م","يوسف حماده عبدالرحمن عبدالله",2,3," 2 / 3 ","ذكر","منقول","مسلم","مصرى","2010-02-22"]
[null,null,0,"يوسف محمد زكرى حسن",2,3," 2 / 3 ","ذكر","منقول","مسلم","مصرى","2010-02-28"]
[null,null,0,"يوسف نصر ابراهيم حسن",2,3," 2 / 3 ","ذكر","منقول","مسلم","مصرى","2010-01-17"]
[null,null,"م","يوسف وليد عادل امام",2,3," 2 / 3 ","ذكر","منقول","مسلم","مصرى","2010-01-10"]
[null,null,0,"احلام هانى محمد محمود",2,4," 2 / 4 ","أنثى","حكم قانون","مسلم","مصرى","2010-04-21"]
[null,null,0,"الاء عبدالشافى جادالحق محمد",2,4," 2 / 4 ","أنثى","منقول","مسلم","مصرى","2010-09-05"]
[null,null,"م","امال على عيد ربيع",2,4," 2 / 4 ","أنثى","منقول","مسلم","مصرى","2010-04-26"]
[null,null,0,"اميره احمد عبداللاه سيد",2,4," 2 / 4 ","أنثى","منقول","مسلم","مصرى","2010-09-10"]
[null,null,0,"ايات خالد محمد على",2,4," 2 / 4 ","أنثى","منقول","مسلم","مصرى","2009-10-20"]
[null,null,"م","تقى اسامه صلاح عبدالعال",2,4," 2 / 4 ","أنثى","منقول","مسلم","مصرى","2009-11-01"]
[null,null,0,"جنى صابر حجاج عبدالمقصود",2,4," 2 / 4 ","أنثى","منقول","مسلم","مصرى","2009-11-01"]
[null,null,0,"حبيبه جمعه يوسف احمد",2,4," 2 / 4 ","أنثى","حكم قانون","مسلم","مصرى","2010-04-14"]
[null,null,"م","حبيبه سيد رجب سيد",2,4," 2 / 4 ","أنثى","منقول","مسلم","مصرى","2009-01-19"]
[null,null,0,"حسناء عبدالنبى على على",2,4," 2 / 4 ","أنثى","منقول","مسلم","مصرى","2010-03-19"]
[null,null,0,"دعاء ايمن سامى شحاته",2,4," 2 / 4 ","أنثى","منقول","مسلم","مصرى","2010-08-29"]
[null,null,"م","دنيا احمد سعيد عبدالحكيم",2,4," 2 / 4 ","أنثى","منقول","مسلم","مصرى","2009-10-05"]
[null,null,0,"رحاب عبدالتواب حامد ابوبكر",2,4," 2 / 4 ","أنثى","منقول","مسلم","مصرى","2009-12-01"]
[null,null,0,"رنا صبرى شكرى محمد",2,4," 2 / 4 ","أنثى","منقول","مسلم","مصرى","2010-08-08"]
[null,null,"م","زينب محمد فتحى حسين",2,4," 2 / 4 ","أنثى","منقول","مسلم","مصرى","2010-01-19"]
[null,null,0,"زينب محمود رجب ابوسريع",2,4," 2 / 4 ","أنثى","منقول","مسلم","مصرى","2010-09-12"]
[null,null,0,"سلمى صلاح محمود محمد",2,4," 2 / 4 ","أنثى","منقول","مسلم","مصرى","2010-06-20"]
[null,null,"م","سندس جمعه سيد عبدالظاهر",2,4," 2 / 4 ","أنثى","حكم قانون","مسلم","مصرى","2010-08-06"]
[null,null,0,"شروق عيد سيد محمد",2,4," 2 / 4 ","أنثى","منقول","مسلم","مصرى","2010-02-07"]
[null,null,0,"شمس عبدالحكيم محمد عبدالحكيم",2,4," 2 / 4 ","أنثى","منقول","مسلم","مصرى","2010-01-30"]
[null,null,"م","شهد وليد ثابت مرسى",2,4," 2 / 4 ","أنثى","منقول","مسلم","مصرى","2009-11-27"]
[null,null,0,"عزيزه عزت عبدالتواب اسماعيل",2,4," 2 / 4 ","أنثى","منقول","مسلم","مصرى","2010-03-13"]
[null,null,0,"فاطمه رجب مجاهد محمد",2,4," 2 / 4 ","أنثى","منقول","مسلم","مصرى","2010-08-09"]
[null,null,"م","فاطمه محمد على جمعه",2,4," 2 / 4 ","أنثى","منقول","مسلم","مصرى","2009-05-05"]
[null,null,0,"ليالى رمضان سالم حسين",2,4," 2 / 4 ","أنثى","منقول","مسلم","مصرى","2010-01-23"]
[null,null,0,"مريم دياب عبدالفتاح فرج",2,4," 2 / 4 ","أنثى","منقول","مسلم","مصرى","2010-03-08"]
[null,null,"م","مريم محمد محروس محمد",2,4," 2 / 4 ","أنثى","منقول","مسلم","مصرى","2010-02-24"]
[null,null,0,"مريم هشام عبدالسلام رجب",2,4," 2 / 4 ","أنثى","منقول","مسلم","مصرى","2010-05-25"]
[null,null,0,"ملك تامر صابر رمضان",2,4," 2 / 4 ","أنثى","منقول","مسلم","مصرى","2010-05-15"]
[null,null,"م","ملك عبدالعزيز على على",2,4," 2 / 4 ","أنثى","منقول","مسلم","مصرى","2010-03-11"]
[null,null,0,"ملك هانى سيد عبدالظاهر",2,4," 2 / 4 ","أنثى","حكم قانون","مسلم","مصرى","2009-11-02"]
[null,null,0,"منال خالد عبدالواحد جمعه",2,4," 2 / 4 ","أنثى","منقول","مسلم","مصرى","2010-01-18"]
[null,null,"م","منه محمد طه اسماعيل",2,4," 2 / 4 ","أنثى","منقول","مسلم","مصرى","2010-05-09"]
[null,null,{"$f":"C584","v":0},"منى هشام محمد حسين",2,4,{"$f":"\" \"&E587&\" / \"&F587&\" \"","v":" 2 / 4 "},"أنثى","منقول","مسلم","مصرى","2010-04-25"]
[null,null,0,"مياده محمد عبدالتواب جمعه",2,4," 2 / 4 ","أنثى","منقول","مسلم","مصرى","2010-09-08"]
[null,null,"م","نجاه جمعه قدرى فهيم",2,4," 2 / 4 ","أنثى","منقول","مسلم","مصرى","2010-02-02"]
[null,null,0,"ندا رمضان جمعه امين",2,4," 2 / 4 ","أنثى","منقول","مسلم","مصرى","2009-10-06"]
[null,null,0,"ندى فايز عبدالخالق طه",2,4," 2 / 4 ","أنثى","منقول","مسلم","مصرى","2010-05-26"]
[null,null,"م","نواره احمد عبدالخالق طه",2,4," 2 / 4 ","أنثى","منقول","مسلم","مصرى","2010-06-16"]
[null,null,0,"نورا محمد يسرى على",2,4," 2 / 4 ","أنثى","منقول","مسلم","مصرى","2009-10-14"]
[null,null,0,"نورهان عزت شحات عبدالجواد",2,4," 2 / 4 ","أنثى","منقول","مسلم","مصرى","2010-09-04"]
[null,null,"م","هبه اشرف فتحى احمد",2,4," 2 / 4 ","أنثى","منقول","مسلم","مصرى","2009-01-25"]
[null,null,0,"هدى عاشور حنفى محمود",2,4," 2 / 4 ","أنثى","منقول","مسلم","مصرى","2010-03-28"]
[null,null,0,"هند محمد ربيع درويش",2,4," 2 / 4 ","أنثى","منقول","مسلم","مصرى","2009-11-15"]
[null,null,"م","ابراهيم خطاب على السيد",2,4," 2 / 4 ","ذكر","منقول","مسلم","مصرى","2010-01-01"]
[null,null,0,"احمد صابر عبدالرسول درويش",2,4," 2 / 4 ","ذكر","حكم قانون","مسلم","مصرى","2010-02-15"]
[null,null,0,"احمد عماد حمدى فهمى",2,4," 2 / 4 ","ذكر","منقول","مسلم","مصرى","2009-10-16"]
[null,null,"م","احمد محمد عبدالتواب ابراهيم",2,4," 2 / 4 ","ذكر","منقول","مسلم","مصرى","2010-03-23"]
[null,null,0,"ادهم ايهاب فاروق محمد",2,4," 2 / 4 ","ذكر","منقول","مسلم","مصرى","2010-05-18"]
[null,null,0,"اسلام ايمن سيد شاكر",2,4," 2 / 4 ","ذكر","منقول","مسلم","مصرى","2009-12-26"]
[null,null,"م","اسماعيل داود رفعت داود",2,4," 2 / 4 ","ذكر","منقول","مسلم","مصرى","2009-10-28"]
[null,null,0,"بلال ابراهيم طه محمد",2,4," 2 / 4 ","ذكر","منقول","مسلم","مصرى","2009-09-18"]
[null,null,0,"حازم شعبان عبدالحميد عمر",2,4," 2 / 4 ","ذكر","منقول","مسلم","مصرى","2010-04-24"]
[null,null,"م","حسين عاطف على عبود",2,4," 2 / 4 ","ذكر","منقول","مسلم","مصرى","2009-12-03"]
[null,null,0,"ذياد عادل منصور زكى",2,4," 2 / 4 ","ذكر","منقول","مسلم","مصرى","2010-08-15"]
[null,null,0,"زياد ابراهيم حسن حسن",2,4," 2 / 4 ","ذكر","منقول","مسلم","مصرى","2010-09-30"]
[null,null,"م","زياد وائل عادل رجب",2,4," 2 / 4 ","ذكر","منقول","مسلم","مصرى","2009-10-06"]
[null,null,0,"سيف صابر محمد حسين",2,4," 2 / 4 ","ذكر","منقول","مسلم","مصرى","2009-05-27"]
[null,null,0,"صلاح محمد امين عبدالظاهر",2,4," 2 / 4 ","ذكر","منقول","مسلم","مصرى","2010-07-15"]
[null,null,"م","طه عمر محفوظ عبدالمجيد",2,4," 2 / 4 ","ذكر","منقول","مسلم","مصرى","2010-05-01"]
[null,null,0,"عبدالخالق صبرى عبدالخالق عبدالفتاح",2,4," 2 / 4 ","ذكر","منقول","مسلم","مصرى","2009-11-30"]
[null,null,0,"عبدالرحمن سيد احمد عبدالمقصود سيد احمد",2,4," 2 / 4 ","ذكر","منقول","مسلم","مصرى","2009-10-14"]
[null,null,"م","عبدالرحمن عبدالحى عمر عبدالحى",2,4," 2 / 4 ","ذكر","منقول","مسلم","مصرى","2009-05-26"]
[null,null,0,"عبدالرحمن محمود رمضان عبدالحفيظ",2,4," 2 / 4 ","ذكر","حكم قانون","مسلم","مصرى","2010-03-01"]
[null,null,0,"عبدالله علاء ربيع درويش",2,4," 2 / 4 ","ذكر","منقول","مسلم","مصرى","2010-04-16"]
[null,null,"م","عزت سامى شحاته عبدالجواد",2,4," 2 / 4 ","ذكر","منقول","مسلم","مصرى","2010-03-17"]
[null,null,0,"على حسن على محمد",2,4," 2 / 4 ","ذكر","منقول","مسلم","مصرى","2010-01-12"]
[null,null,0,"عمر اسامه صابر اسماعيل",2,4," 2 / 4 ","ذكر","حكم قانون","مسلم","مصرى","2010-02-28"]
[null,null,"م","عمر سيد منصور جمعه",2,4," 2 / 4 ","ذكر","منقول","مسلم","مصرى","2010-02-03"]
[null,null,0,"عمرو علاء جمعه موسى",2,4," 2 / 4 ","ذكر","منقول","مسلم","مصرى","2010-01-01"]
[null,null,0,"عيد عماد سيد داود",2,4," 2 / 4 ","ذكر","منقول","مسلم","مصرى","2010-05-17"]
[null,null,"م","كاسب هانى فاروق محمد",2,4," 2 / 4 ","ذكر","حكم قانون","مسلم","مصرى","2010-08-27"]
[null,null,0,"محمد بدوى محمد رمضان",2,4," 2 / 4 ","ذكر","منقول","مسلم","مصرى","2010-04-27"]
[null,null,0,"محمد داود محمد داود",2,4," 2 / 4 ","ذكر","منقول","مسلم","مصرى","2009-12-07"]
[null,null,"م","محمد صابر رشدى عبدالمقصود",2,4," 2 / 4 ","ذكر","منقول","مسلم","مصرى","2010-01-08"]
[null,null,0,"محمد طه فارس قدرى",2,4," 2 / 4 ","ذكر","منقول","مسلم","مصرى","2010-09-05"]
[null,null,0,"محمد عماد عادل مرزوق",2,4," 2 / 4 ","ذكر","منقول","مسلم","مصرى","2010-08-10"]
[null,null,"م","محمد محمد على حسن",2,4," 2 / 4 ","ذكر","منقول","مسلم","مصرى","2010-09-01"]
[null,null,0,"محمود احمد عبدالتواب محمود",2,4," 2 / 4 ","ذكر","منقول","مسلم","مصرى","2009-10-28"]
[null,null,0,"محمود عبدالنبى جمعه بيومى",2,4," 2 / 4 ","ذكر","منقول","مسلم","مصرى","2009-01-08"]
[null,null,"م","مصطفى سعيد محمد عبدالعزيز",2,4," 2 / 4 ","ذكر","منقول","مسلم","مصرى","2010-03-26"]
[null,null,0,"مغاورى يسرى عبدالناصر مغاورى",2,4," 2 / 4 ","ذكر","منقول","مسلم","مصرى","2010-06-10"]
[null,null,0,"نصر احمد نصر جمعه",2,4," 2 / 4 ","ذكر","منقول","مسلم","مصرى","2010-09-01"]
[null,null,"م","يحيى احمد عبدالمنعم عمار",2,4," 2 / 4 ","ذكر","حكم قانون","مسلم","مصرى","2009-11-09"]
[null,null,0,"يوسف رمضان عاشور عبدالخالق",2,4," 2 / 4 ","ذكر","منقول","مسلم","مصرى","2009-11-01"]
[null,null,0,"اسراء يوسف داود سيد",3,1," 3 / 1 ","أنثى","منقول","مسلم","مصرى","2009-06-09"]
[null,null,"م","اسماء رجب عبد الغنى محمد",3,1," 3 / 1 ","أنثى","منقول","مسلم","مصرى","2009-01-15"]
[null,null,0,"اسماء رمضان يوسف محمود",3,1," 3 / 1 ","أنثى","باق","مسلم","مصرى","2008-07-27"]
[null,null,0,"اميره رمضان حسن حسين",3,1," 3 / 1 ","أنثى","منقول","مسلم","مصرى","2008-11-13"]
[null,null,"م","ايات حازم رمضان حسين",3,1," 3 / 1 ","أنثى","منقول","مسلم","مصرى","2009-04-19"]
[null,null,0,"جومانه مكاوى فتحى مكاوى",3,1," 3 / 1 ","أنثى","منقول","مسلم","مصرى","2009-01-08"]
[null,null,0,"حبيبه صلاح شافعى مكاوى",3,1," 3 / 1 ","أنثى","منقول","مسلم","مصرى","2008-12-17"]
[null,null,"م","داليا نبيل رجب محمود",3,1," 3 / 1 ","أنثى","منقول","مسلم","مصرى","2009-09-02"]
[null,null,0,"دنيا صلاح احمد صالح",3,1," 3 / 1 ","أنثى","منقول","مسلم","مصرى","2009-01-16"]
[null,null,0,"رانيا شوقت فوزى عبدالا",3,1," 3 / 1 ","أنثى","منقول","مسلم","مصرى","2009-03-27"]
[null,null,"م","رحمه يوسف عبدالتواب رجب",3,1," 3 / 1 ","أنثى","منقول","مسلم","مصرى","2009-06-07"]
[null,null,0,"زينب حمدى محمد عبدالعزيز",3,1," 3 / 1 ","أنثى","منقول","مسلم","مصرى","2009-06-24"]
[null,null,{"$f":"C648","v":0},"سومه محمد مشرى عبدالحميد",3,1,{"$f":"\" \"&E651&\" / \"&F651&\" \"","v":" 3 / 1 "},"أنثى","منقول","مسلم","مصرى","2009-06-25"]
[null,null,"م","شروق طه محمد غانم",3,1," 3 / 1 ","أنثى","منقول","مسلم","مصرى","2009-04-13"]
[null,null,0,"شهد رأفت سليمان عبد المحسن",3,1," 3 / 1 ","أنثى","منقول","مسلم","مصرى","2009-07-01"]
[null,null,0,"شيماء ابوالعلا على محمد",3,1," 3 / 1 ","أنثى","منقول","مسلم","مصرى","2009-03-21"]
[null,null,"م","صباح عبدالنبى يوسف احمد",3,1," 3 / 1 ","أنثى","حكم قانون","مسلم","مصرى","2008-12-20"]
[null,null,0,"غاده رجب حنفى محمود",3,1," 3 / 1 ","أنثى","منقول","مسلم","مصرى","2009-06-04"]
[null,null,0,"فاطمه رجب يوسف محمود",3,1," 3 / 1 ","أنثى","منقول","مسلم","مصرى","2009-05-27"]
[null,null,"م","فوزيه سعيد فضل هاشم",3,1," 3 / 1 ","أنثى","منقول","مسلم","مصرى","2009-07-29"]
[null,null,0,"مريم رمضان محمد على",3,1," 3 / 1 ","أنثى","منقول","مسلم","مصرى","2009-02-20"]
[null,null,0,"ملك احمد فتحى احمد",3,1," 3 / 1 ","أنثى","منقول","مسلم","مصرى","2009-01-20"]
[null,null,"م","ملك عزت عبدالمنعم جمعه",3,1," 3 / 1 ","أنثى","منقول","مسلم","مصرى","2009-08-15"]
[null,null,0,"ملك على زيدان عثمان",3,1," 3 / 1 ","أنثى","منقول","مسلم","مصرى","2008-12-07"]
[null,null,0,"ملك محمد فاروق والى",3,1," 3 / 1 ","أنثى","منقول","مسلم","مصرى","2009-05-02"]
[null,null,"م","منى بلال عثمان حسين",3,1," 3 / 1 ","أنثى","منقول","مسلم","مصرى","2009-04-16"]
[null,null,0,"ندى صالح مهدى عبده",3,1," 3 / 1 ","أنثى","منقول","مسلم","مصرى","2009-01-16"]
[null,null,0,"ندى محمد خليل عبدالتواب",3,1," 3 / 1 ","أنثى","منقول","مسلم","مصرى","2009-04-30"]
[null,null,"م","ندى محمود محمود خليل",3,1," 3 / 1 ","أنثى","منقول","مسلم","مصرى","2008-11-20"]
[null,null,0,"نعمه حسين شعبان عبدالحميد",3,1," 3 / 1 ","أنثى","حكم قانون","مسلم","مصرى","2009-05-19"]
[null,null,0,"نوال اشرف صلاح سيد",3,1," 3 / 1 ","أنثى","منقول","مسلم","مصرى","2009-04-08"]
[null,null,"م","نورا عيد قدرى عابد",3,1," 3 / 1 ","أنثى","منقول","مسلم","مصرى","2009-06-12"]
[null,null,0,"نورهان محمود ابراهيم يوسف",3,1," 3 / 1 ","أنثى","منقول","مسلم","مصرى","2009-02-08"]
[null,null,0,"هاجر عبدالتواب خميس اسماعيل",3,1," 3 / 1 ","أنثى","منقول","مسلم","مصرى","2008-11-28"]
[null,null,"م","هايدى هانى محمد عبدالله",3,1," 3 / 1 ","أنثى","منقول","مسلم","مصرى","2009-09-20"]
[null,null,0,"هدى عزام عبده محمد",3,1," 3 / 1 ","أنثى","منقول","مسلم","مصرى","2009-04-30"]
[null,null,0,"وفاء نوبى عبدالتواب عبدالفضيل",3,1," 3 / 1 ","أنثى","حكم قانون","مسلم","مصرى","2009-09-08"]
[null,null,"م","ياسمين صابر ابراهيم محمد",3,1," 3 / 1 ","أنثى","منقول","مسلم","مصرى","2009-04-13"]
[null,null,0,"ياسمين فتحى عبدالحكيم احمد",3,1," 3 / 1 ","أنثى","منقول","مسلم","مصرى","2009-08-30"]
[null,null,0,"ابراهيم محمد سيد احمد",3,1," 3 / 1 ","ذكر","منقول","مسلم","مصرى","2009-03-30"]
[null,null,"م","احمد عزت على حسين",3,1," 3 / 1 ","ذكر","منقول","مسلم","مصرى","2009-04-07"]
[null,null,0,"احمد محمود نجدى ابوسدى",3,1," 3 / 1 ","ذكر","منقول","مسلم","مصرى","2009-05-23"]
[null,null,0,"اسلام رمضان جمعه محمد",3,1," 3 / 1 ","ذكر","منقول","مسلم","مصرى","2009-01-01"]
[null,null,"م","اسماعيل سيد على سيد",3,1," 3 / 1 ","ذكر","منقول","مسلم","مصرى","2008-12-19"]
[null,null,0,"اشرف هانى محمد خليل",3,1," 3 / 1 ","ذكر","منقول","مسلم","مصرى","2008-11-19"]
[null,null,0,"ايمن فاروق فتحى سيد",3,1," 3 / 1 ","ذكر","منقول","مسلم","مصرى","2008-11-09"]
[null,null,"م","جمال حموده سيد عبدالحكيم",3,1," 3 / 1 ","ذكر","منقول","مسلم","مصرى","2009-04-01"]
[null,null,0,"حسن عزت على محمد",3,1," 3 / 1 ","ذكر","منقول","مسلم","مصرى","2009-04-26"]
[null,null,0,"حسين نصر حنفى حسين",3,1," 3 / 1 ","ذكر","حكم قانون","مسلم","مصرى","2009-04-26"]
[null,null,"م","رشدى هانى محمد عبدالله",3,1," 3 / 1 ","ذكر","منقول","مسلم","مصرى","2009-09-20"]
[null,null,0,"رمضان يحى رمضان منصور",3,1," 3 / 1 ","ذكر","منقول","مسلم","مصرى","2009-02-26"]
[null,null,0,"سامح محمد رمضان حسين",3,1," 3 / 1 ","ذكر","منقول","مسلم","مصرى","2009-01-12"]
[null,null,"م","سعد ابوبكر يوسف ابوبكر",3,1," 3 / 1 ","ذكر","منقول","مسلم","مصرى","2009-04-30"]
[null,null,0,"صلاح عادل عبدالفتاح شاكر",3,1," 3 / 1 ","ذكر","منقول","مسلم","مصرى","2008-11-19"]
[null,null,0,"طلعت خليل محمود محمود",3,1," 3 / 1 ","ذكر","منقول","مسلم","مصرى","2009-04-14"]
[null,null,"م","طلعت محمد محمود اسماعيل",3,1," 3 / 1 ","ذكر","منقول","مسلم","مصرى","2009-09-16"]
[null,null,0,"عبدالتواب وليد محمد على",3,1," 3 / 1 ","ذكر","منقول","مسلم","مصرى","2009-08-09"]
[null,null,0,"عبدالرحمن خالد احمد عبدالرحمن",3,1," 3 / 1 ","ذكر","منقول","مسلم","مصرى","2008-04-10"]
[null,null,"م","عبدالرحمن محمد عبدالخالق عبدالرحمن",3,1," 3 / 1 ","ذكر","منقول","مسلم","مصرى","2009-05-05"]
[null,null,0,"عبدالرحمن محمد على محمد",3,1," 3 / 1 ","ذكر","باق","مسلم","مصرى","2008-03-15"]
[null,null,0,"عبدالعزيز محمد عيد ربيع",3,1," 3 / 1 ","ذكر","منقول","مسلم","مصرى","2009-08-18"]
[null,null,"م","عبدالله مراد محمود عبدالمنعم",3,1," 3 / 1 ","ذكر","منقول","مسلم","مصرى","2009-09-26"]
[null,null,0,"عبدالمنعم احمد فتحى فوزى",3,1," 3 / 1 ","ذكر","منقول","مسلم","مصرى","2009-10-01"]
[null,null,0,"عزت احمد على احمد",3,1," 3 / 1 ","ذكر","منقول","مسلم","مصرى","2008-04-12"]
[null,null,"م","على حظ رمضان سيد",3,1," 3 / 1 ","ذكر","منقول","مسلم","مصرى","2009-05-30"]
[null,null,0,"عمر محمد عاطف سيد احمد",3,1," 3 / 1 ","ذكر","منقول","مسلم","مصرى","2009-07-04"]
[null,null,0,"عيد عمرو محمود عبود",3,1," 3 / 1 ","ذكر","منقول","مسلم","مصرى","2008-05-04"]
[null,null,"م","كارم سعد عبدالفضيل برشه",3,1," 3 / 1 ","ذكر","منقول","مسلم","مصرى","2009-05-01"]
[null,null,0,"محمد احمد عادل احمد",3,1," 3 / 1 ","ذكر","منقول","مسلم","مصرى","2009-04-10"]
[null,null,0,"محمد ايمن محمد طه",3,1," 3 / 1 ","ذكر","منقول","مسلم","مصرى","2009-07-07"]
[null,null,"م","محمد شعبان عبدالرحمن عبدالله",3,1," 3 / 1 ","ذكر","منقول","مسلم","مصرى","2008-11-03"]
[null,null,0,"محمد طه منصور يوسف",3,1," 3 / 1 ","ذكر","منقول","مسلم","مصرى","2009-09-12"]
[null,null,0,"محمد علاء صلاح جمعه",3,1," 3 / 1 ","ذكر","منقول","مسلم","مصرى","2009-03-09"]
[null,null,"م","محمد عيد محمد عبدالمقصود",3,1," 3 / 1 ","ذكر","منقول","مسلم","مصرى","2008-11-23"]
[null,null,0,"محمد نبيل سيد محمود",3,1," 3 / 1 ","ذكر","منقول","مسلم","مصرى","2009-06-03"]
[null,null,0,"محمد يوسف صابر يوسف",3,1," 3 / 1 ","ذكر","منقول","مسلم","مصرى","2009-09-02"]
[null,null,{"$f":"C712","v":"م"},"محمود هانى على محمود",3,1,{"$f":"\" \"&E715&\" / \"&F715&\" \"","v":" 3 / 1 "},"ذكر","منقول","مسلم","مصرى","2008-10-12"]
[null,null,0,"مصطفى عزت حماده محمد",3,1," 3 / 1 ","ذكر","منقول","مسلم","مصرى","2009-04-28"]
[null,null,0,"مصطفى هانى عبدالفتاح عبود",3,1," 3 / 1 ","ذكر","منقول","مسلم","مصرى","2009-05-18"]
[null,null,"م","مهند سعد سليم عاشور",3,1," 3 / 1 ","ذكر","منقول","مسلم","مصرى","2009-09-26"]
[null,null,0,"وليد رمضان يوسف احمد",3,1," 3 / 1 ","ذكر","منقول","مسلم","مصرى","2009-06-24"]
[null,null,0,"يحيى جمال عبدالناصر عبدالمجيد",3,1," 3 / 1 ","ذكر","منقول","مسلم","مصرى","2008-10-23"]
[null,null,"م","يوسف صابر جمعه محمد",3,1," 3 / 1 ","ذكر","منقول","مسلم","مصرى","2009-01-12"]
[null,null,0,"يوسف عبدالتواب جمعه عبدالحكيم",3,1," 3 / 1 ","ذكر","منقول","مسلم","مصرى","2008-12-05"]
[null,null,0,"اسراء عيد قدرى محمود",3,2," 3 / 2 ","أنثى","منقول","مسلم","مصرى","2008-11-01"]
[null,null,"م","اسماء تامر محمد ابراهيم",3,2," 3 / 2 ","أنثى","منقول","مسلم","مصرى","2009-01-30"]
[null,null,0,"ايات احمد عبدالحكيم محمد",3,2," 3 / 2 ","أنثى","منقول","مسلم","مصرى","2009-09-01"]
[null,null,0,"ايمان ناجى سيد عبدالحميد",3,2," 3 / 2 ","أنثى","باق","مسلم","مصرى","2008-04-07"]
[null,null,"م","جهاد محمد فرحات حسن",3,2," 3 / 2 ","أنثى","منقول","مسلم","مصرى","2009-07-01"]
[null,null,0,"حبيبه صبرى فهمى شاكر",3,2," 3 / 2 ","أنثى","منقول","مسلم","مصرى","2009-06-09"]
[null,null,0,"داليا محمد مختار ابراهيم",3,2," 3 / 2 ","أنثى","منقول","مسلم","مصرى","2009-07-25"]
[null,null,"م","دعاء محمد شحات عبدالجواد",3,2," 3 / 2 ","أنثى","منقول","مسلم","مصرى","2009-01-04"]
[null,null,0,"دنيا يسرى عبدالناصر مغاورى",3,2," 3 / 2 ","أنثى","منقول","مسلم","مصرى","2008-12-11"]
[null,null,0,"رؤيه شريف صابر هنداوى",3,2," 3 / 2 ","أنثى","منقول","مسلم","مصرى","2009-07-28"]
[null,null,"م","رحاب محمد عبدالصمد طه",3,2," 3 / 2 ","أنثى","منقول","مسلم","مصرى","2009-04-23"]
[null,null,0,"ريهام امام طه امام",3,2," 3 / 2 ","أنثى","منقول","مسلم","مصرى","2009-07-03"]
[null,null,0,"ساميه قدرى حمدى قدرى",3,2," 3 / 2 ","أنثى","منقول","مسلم","مصرى","2009-04-20"]
[null,null,"م","سما محمد فتحى زكى",3,2," 3 / 2 ","أنثى","منقول","مسلم","مصرى","2009-03-03"]
[null,null,0,"شروق سيد عاشور محمد",3,2," 3 / 2 ","أنثى","منقول","مسلم","مصرى","2009-08-16"]
[null,null,0,"شروق محمود عبدالتواب محمود",3,2," 3 / 2 ","أنثى","منقول","مسلم","مصرى","2009-03-10"]
[null,null,"م","شهنده حلمى عبدالنبى حسن",3,2," 3 / 2 ","أنثى","منقول","مسلم","مصرى","2009-08-04"]
[null,null,0,"شيماء اسماعيل فهمى هندى",3,2," 3 / 2 ","أنثى","منقول","مسلم","مصرى","2009-09-18"]
[null,null,0,"عفاف حمدى عمادالدين عاشور",3,2," 3 / 2 ","أنثى","منقول","مسلم","مصرى","2009-06-22"]
[null,null,"م","عفاف رجب جمعه ابوطالب",3,2," 3 / 2 ","أنثى","منقول","مسلم","مصرى","2009-07-22"]
[null,null,0,"فاطمه تامر احمد محمد",3,2," 3 / 2 ","أنثى","منقول","مسلم","مصرى","2009-02-24"]
[null,null,0,"فرحه حمدى عويس خميس",3,2," 3 / 2 ","أنثى","حكم قانون","مسلم","مصرى","2009-06-04"]
[null,null,"م","مريم حسين محمود ابراهيم",3,2," 3 / 2 ","أنثى","منقول","مسلم","مصرى","2008-11-01"]
[null,null,0,"مريم هانى محمد حميد",3,2," 3 / 2 ","أنثى","منقول","مسلم","مصرى","2009-01-27"]
[null,null,0,"ملك عبدالنبى ابراهيم محمد",3,2," 3 / 2 ","أنثى","منقول","مسلم","مصرى","2009-03-01"]
[null,null,"م","ملك محمد عبدربه شحات",3,2," 3 / 2 ","أنثى","منقول","مسلم","مصرى","2008-11-18"]
[null,null,0,"ملك محمد محمد جمعه",3,2," 3 / 2 ","أنثى","منقول","مسلم","مصرى","2009-08-08"]
[null,null,0,"ملك محمود عبدالتواب محمود",3,2," 3 / 2 ","أنثى","منقول","مسلم","مصرى","2009-03-10"]
[null,null,"م","منه عماد سيد داود",3,2," 3 / 2 ","أنثى","منقول","مسلم","مصرى","2008-10-05"]
[null,null,0,"ندى محمد صابر خميس",3,2," 3 / 2 ","أنثى","منقول","مسلم","مصرى","2009-06-15"]
[null,null,0,"نعمه تامر جمعه عبدالكريم",3,2," 3 / 2 ","أنثى","حكم قانون","مسلم","مصرى","2009-03-14"]
[null,null,"م","نهى سيد عبدربه خليل",3,2," 3 / 2 ","أنثى","منقول","مسلم","مصرى","2008-10-18"]
[null,null,0,"نورا جمعه على جمعه",3,2," 3 / 2 ","أنثى","منقول","مسلم","مصرى","2009-03-28"]
[null,null,0,"نورهان ايمن عبدالعزيز ربيع",3,2," 3 / 2 ","أنثى","منقول","مسلم","مصرى","2009-02-16"]
[null,null,"م","هاجر ابوزيد عبده على",3,2," 3 / 2 ","أنثى","منقول","مسلم","مصرى","2009-07-26"]
[null,null,0,"هاجر محمود محمد عبده",3,2," 3 / 2 ","أنثى","منقول","مسلم","مصرى","2009-03-15"]
[null,null,0,"هدى عاطف سعيد محمد",3,2," 3 / 2 ","أنثى","منقول","مسلم","مصرى","2009-01-08"]
[null,null,"م","وفاء عبدالفتاح عادل عبدالفتاح",3,2," 3 / 2 ","أنثى","منقول","مسلم","مصرى","2009-08-03"]
[null,null,0,"ابراهيم جمعه حسن محمد",3,2," 3 / 2 ","ذكر","منقول","مسلم","مصرى","2008-10-16"]
[null,null,0,"احمد سمير محمد كامل",3,2," 3 / 2 ","ذكر","منقول","مسلم","مصرى","2009-09-10"]
[null,null,"م","احمد محمد عمر محمد",3,2," 3 / 2 ","ذكر","منقول","مسلم","مصرى","2009-07-09"]
[null,null,0,"اسامه احمد حسين عباس",3,2," 3 / 2 ","ذكر","منقول","مسلم","مصرى","2009-07-23"]
[null,null,0,"اسماعيل احمد عادل محمد",3,2," 3 / 2 ","ذكر","منقول","مسلم","مصرى","2008-12-09"]
[null,null,"م","اشرف هانى فاروق محمد",3,2," 3 / 2 ","ذكر","منقول","مسلم","مصرى","2008-07-16"]
[null,null,0,"اياد شريف عبدالوهاب عبود",3,2," 3 / 2 ","ذكر","منقول","مسلم","مصرى","2009-01-28"]
[null,null,0,"بلال على عبده على",3,2," 3 / 2 ","ذكر","منقول","مسلم","مصرى","2009-07-07"]
[null,null,"م","جاسر طه ابراهيم محمد",3,2," 3 / 2 ","ذكر","منقول","مسلم","مصرى","2009-08-24"]
[null,null,0,"حازم امام ربيع عثمان",3,2," 3 / 2 ","ذكر","حكم قانون","مسلم","مصرى","2009-02-11"]
[null,null,0,"حسنى عادل عاشور خميس",3,2," 3 / 2 ","ذكر","منقول","مسلم","مصرى","2009-07-05"]
[null,null,"م","راضى عزمى جمعه محمد",3,2," 3 / 2 ","ذكر","حكم قانون","مسلم","مصرى","2009-03-09"]
[null,null,0,"رمضان شعبان شحات عبدالجواد",3,2," 3 / 2 ","ذكر","منقول","مسلم","مصرى","2009-04-05"]
[null,null,0,"زياد محمد عزام محمد",3,2," 3 / 2 ","ذكر","منقول","مسلم","مصرى","2009-04-26"]
[null,null,"م","سعيد محمد عبدالخالق طه",3,2," 3 / 2 ","ذكر","منقول","مسلم","مصرى","2009-03-10"]
[null,null,0,"صابر عمر محمود عبدالعظيم",3,2," 3 / 2 ","ذكر","حكم قانون","مسلم","مصرى","2008-12-07"]
[null,null,0,"طارق عبدالتواب شعبان عبدالمقصود",3,2," 3 / 2 ","ذكر","منقول","مسلم","مصرى","2009-05-09"]
[null,null,"م","عاشور شعبان محمد عبدالحكيم",3,2," 3 / 2 ","ذكر","منقول","مسلم","مصرى","2009-04-21"]
[null,null,{"$f":"C776","v":0},"عبدالحليم محمود سعودى محمود",3,2,{"$f":"\" \"&E779&\" / \"&F779&\" \"","v":" 3 / 2 "},"ذكر","منقول","مسلم","مصرى","2008-08-25"]
[null,null,0,"عبدالرحمن محمد رمضان حسين",3,2," 3 / 2 ","ذكر","منقول","مسلم","مصرى","2009-03-18"]
[null,null,"م","عبدالسلام مؤمن عبدالسلام ابراهيم",3,2," 3 / 2 ","ذكر","منقول","مسلم","مصرى","2008-10-19"]
[null,null,0,"عبدالناصر على شكرى محمد",3,2," 3 / 2 ","ذكر","منقول","مسلم","مصرى","2009-02-07"]
[null,null,0,"عزت حسين على حسين",3,2," 3 / 2 ","ذكر","باق","مسلم","مصرى","2008-02-29"]
[null,null,"م","علام احمد ابوالعلا حسن",3,2," 3 / 2 ","ذكر","منقول","مسلم","مصرى","2009-06-15"]
[null,null,0,"عماد محمد رجب عبدالحكيم",3,2," 3 / 2 ","ذكر","منقول","مسلم","مصرى","2009-07-11"]
[null,null,0,"عمر فتحى حسن على",3,2," 3 / 2 ","ذكر","منقول","مسلم","مصرى","2009-04-01"]
[null,null,"م","عمرو حامد منصور حسين",3,2," 3 / 2 ","ذكر","منقول","مسلم","مصرى","2008-11-06"]
[null,null,0,"عيد رمضان اسماعيل رمضان",3,2," 3 / 2 ","ذكر","منقول","مسلم","مصرى","2008-07-10"]
[null,null,0,"فهمى هانى فهمى هندى",3,2," 3 / 2 ","ذكر","منقول","مسلم","مصرى","2009-05-26"]
[null,null,"م","مجدى صادق عبدالعظيم صادق",3,2," 3 / 2 ","ذكر","منقول","مسلم","مصرى","2009-01-01"]
[null,null,0,"محمد اشرف ابوطالب ابراهيم",3,2," 3 / 2 ","ذكر","منقول","مسلم","مصرى","2009-08-19"]
[null,null,0,"محمد طه صابر جمعه",3,2," 3 / 2 ","ذكر","منقول","مسلم","مصرى","2009-02-23"]
[null,null,"م","محمد عبدالفضيل احمد عبدالفضيل",3,2," 3 / 2 ","ذكر","منقول","مسلم","مصرى","2009-04-25"]
[null,null,0,"محمد عمر يوسف احمد",3,2," 3 / 2 ","ذكر","منقول","مسلم","مصرى","2007-12-10"]
[null,null,0,"محمد محمد سعد احمد",3,2," 3 / 2 ","ذكر","منقول","مسلم","مصرى","2009-03-22"]
[null,null,"م","محمد وليد عادل حسن",3,2," 3 / 2 ","ذكر","منقول","مسلم","مصرى","2009-05-28"]
[null,null,0,"محمود عبدالتواب سيد ابراهيم",3,2," 3 / 2 ","ذكر","منقول","مسلم","مصرى","2009-07-01"]
[null,null,0,"محمود محمد محمود على",3,2," 3 / 2 ","ذكر","منقول","مسلم","مصرى","2009-09-09"]
[null,null,"م","مصطفى رمضان رمضان سيد",3,2," 3 / 2 ","ذكر","منقول","مسلم","مصرى","2009-02-02"]
[null,null,0,"مصطفى محمد سيد على",3,2," 3 / 2 ","ذكر","منقول","مسلم","مصرى","2009-01-09"]
[null,null,0,"معاذ سعيد فهمى ابراهيم",3,2," 3 / 2 ","ذكر","منقول","مسلم","مصرى","2009-09-14"]
[null,null,"م","وحيد وليد عبدالحكيم محمد",3,2," 3 / 2 ","ذكر","منقول","مسلم","مصرى","2009-06-01"]
[null,null,0,"ياسين محمد ابواليزيد محمد",3,2," 3 / 2 ","ذكر","منقول","مسلم","مصرى","2008-10-18"]
[null,null,0,"يوسف سيد فرج ربيع",3,2," 3 / 2 ","ذكر","منقول","مسلم","مصرى","2009-07-14"]
[null,null,"م","يوسف عاطف محمد محمود",3,2," 3 / 2 ","ذكر","منقول","مسلم","مصرى","2009-09-07"]
[null,null,0,"ابتسام عبدالله سيد عبدالموجود",3,3," 3 / 3 ","أنثى","منقول","مسلم","مصرى","2009-01-11"]
[null,null,0,"اسماء ابراهيم سيد عبدالعال",3,3," 3 / 3 ","أنثى","منقول","مسلم","مصرى","2009-03-15"]
[null,null,"م","اسماء عزام امين احمد",3,3," 3 / 3 ","أنثى","منقول","مسلم","مصرى","2009-03-28"]
[null,null,0,"اشرقت سيد احمد بيومى",3,3," 3 / 3 ","أنثى","منقول","مسلم","مصرى","2008-12-08"]
[null,null,0,"ام هاشم عبدالعزيز عبدالله جوده",3,3," 3 / 3 ","أنثى","منقول","مسلم","مصرى","2009-08-07"]
[null,null,"م","انجى ابراهيم جلال ابراهيم",3,3," 3 / 3 ","أنثى","منقول","مسلم","مصرى","2008-12-16"]
[null,null,0,"حبيبة الله محمد فضل عبدالحميد",3,3," 3 / 3 ","أنثى","منقول","مسلم","مصرى","2009-07-28"]
[null,null,0,"خلود هانى حسن محمد",3,3," 3 / 3 ","أنثى","منقول","مسلم","مصرى","2009-02-25"]
[null,null,"م","دعاء احمد على احمد",3,3," 3 / 3 ","أنثى","منقول","مسلم","مصرى","2009-01-08"]
[null,null,0,"رانيا عزت محمد محمد",3,3," 3 / 3 ","أنثى","منقول","مسلم","مصرى","2008-10-30"]
[null,null,0,"رضوى عبدالتواب احمد عاشور",3,3," 3 / 3 ","أنثى","منقول","مسلم","مصرى","2009-01-09"]
[null,null,"م","ساره محمود محمد عبدالحميد",3,3," 3 / 3 ","أنثى","منقول","مسلم","مصرى","2009-08-13"]
[null,null,0,"سلمى سيد محمد عبدالموجود",3,3," 3 / 3 ","أنثى","منقول","مسلم","مصرى","2009-05-16"]
[null,null,0,"سلمى محمود فتحى مكاوى",3,3," 3 / 3 ","أنثى","منقول","مسلم","مصرى","2009-06-12"]
[null,null,"م","سوميه رمزى صبحى عزت",3,3," 3 / 3 ","أنثى","منقول","مسلم","مصرى","2009-07-10"]
[null,null,0,"شروق عصام عيد رمضان",3,3," 3 / 3 ","أنثى","منقول","مسلم","مصرى","2009-04-26"]
[null,null,0,"شهد عبد النبى صادق سيد",3,3," 3 / 3 ","أنثى","منقول","مسلم","مصرى","2008-12-04"]
[null,null,"م","شيماء محمود محمد محمود",3,3," 3 / 3 ","أنثى","منقول","مسلم","مصرى","2009-01-02"]
[null,null,0,"صبريه حمدى محمد دسوقى",3,3," 3 / 3 ","أنثى","منقول","مسلم","مصرى","2009-02-03"]
[null,null,0,"فاطمه اسماعيل عبدالتواب اسماعيل",3,3," 3 / 3 ","أنثى","منقول","مسلم","مصرى","2008-09-23"]
[null,null,"م","فاطمه عيد عبده جمعه",3,3," 3 / 3 ","أنثى","منقول","مسلم","مصرى","2009-04-12"]
[null,null,0,"فاطمه مصطفى اسماعيل رمضان",3,3," 3 / 3 ","أنثى","منقول","مسلم","مصرى","2009-04-25"]
[null,null,0,"كنزى عمرو عبدالناصر احمد",3,3," 3 / 3 ","أنثى","منقول","مسلم","مصرى","2009-04-07"]
[null,null,"م","مريم محمد جادالحق محمد",3,3," 3 / 3 ","أنثى","منقول","مسلم","مصرى","2009-01-27"]
[null,null,0,"ملك اشرف رجب عبدالله",3,3," 3 / 3 ","أنثى","منقول","مسلم","مصرى","2009-06-27"]
[null,null,0,"ملك فرحات صلاح فرج",3,3," 3 / 3 ","أنثى","منقول","مسلم","مصرى","2009-04-03"]
[null,null,"م","ملك محمد فرج حسين",3,3," 3 / 3 ","أنثى","منقول","مسلم","مصرى","2009-01-13"]
[null,null,0,"ملك هانى رفعت بهنساوى",3,3," 3 / 3 ","أنثى","منقول","مسلم","مصرى","2008-10-15"]
[null,null,0,"مى عادل محمد محمد",3,3," 3 / 3 ","أنثى","منقول","مسلم","مصرى","2009-07-08"]
[null,null,"م","نسمه محمد على على",3,3," 3 / 3 ","أنثى","منقول","مسلم","مصرى","2008-12-05"]
[null,null,0,"نعمه سعيد عبدالخالق احمد",3,3," 3 / 3 ","أنثى","منقول","مسلم","مصرى","2009-05-10"]
[null,null,0,"نورا بدوى محمد رمضان",3,3," 3 / 3 ","أنثى","منقول","مسلم","مصرى","2008-08-24"]
[null,null,"م","نوران على محمد غريب",3,3," 3 / 3 ","أنثى","منقول","مسلم","مصرى","2009-03-19"]
[null,null,0,"نيجار عبدالمقصود فاروق عبدالمقصود",3,3," 3 / 3 ","أنثى","منقول","مسلم","مصرى","2009-01-01"]
[null,null,0,"هاجر عويان محمود على",3,3," 3 / 3 ","أنثى","منقول","مسلم","مصرى","2009-07-26"]
[null,null,"م","هاجر محمود سعيد محمد",3,3," 3 / 3 ","أنثى","باق","مسلم","مصرى","2008-02-07"]
[null,null,0,"هبه احمد محمد عبدالرحمن",3,3," 3 / 3 ","أنثى","منقول","مسلم","مصرى","2009-06-11"]
[null,null,{"$f":"C840","v":0},"هدى صابر سيد حسن",3,3,{"$f":"\" \"&E843&\" / \"&F843&\" \"","v":" 3 / 3 "},"أنثى","منقول","مسلم","مصرى","2008-11-18"]
[null,null,"م","هناء مجدى محمد محمد",3,3," 3 / 3 ","أنثى","منقول","مسلم","مصرى","2009-05-02"]
[null,null,0,"ياسمين رجب مرزوق بدوى",3,3," 3 / 3 ","أنثى","منقول","مسلم","مصرى","2009-09-05"]
[null,null,0,"ابراهيم انور منصور زكى",3,3," 3 / 3 ","ذكر","حكم قانون","مسلم","مصرى","2009-03-29"]
[null,null,"م","احمد بدر عبدالجواد محمود",3,3," 3 / 3 ","ذكر","منقول","مسلم","مصرى","2009-08-22"]
[null,null,0,"احمد مجدى عبدالتواب عبدالخالق",3,3," 3 / 3 ","ذكر","منقول","مسلم","مصرى","2009-04-28"]
[null,null,0,"ادهم عبدالعاطى دردير محمد",3,3," 3 / 3 ","ذكر","منقول","مسلم","مصرى","2009-01-04"]
[null,null,"م","ادهم محمد على احمد",3,3," 3 / 3 ","ذكر","منقول","مسلم","مصرى","2009-04-23"]
[null,null,0,"اسلام سيد عبدالسلام محمود",3,3," 3 / 3 ","ذكر","منقول","مسلم","مصرى","2008-11-10"]
[null,null,0,"اشرف عماد محمود عبدالجواد",3,3," 3 / 3 ","ذكر","منقول","مسلم","مصرى","2007-10-05"]
[null,null,"م","امام حسام محمد امام",3,3," 3 / 3 ","ذكر","منقول","مسلم","مصرى","2009-07-31"]
[null,null,0,"بركات عبدالتواب شعبان سيد",3,3," 3 / 3 ","ذكر","منقول","مسلم","مصرى","2008-12-14"]
[null,null,0,"جمعه سيد سيد محمد",3,3," 3 / 3 ","ذكر","منقول","مسلم","مصرى","2009-03-14"]
[null,null,"م","حسن هانى عادل حسن",3,3," 3 / 3 ","ذكر","منقول","مسلم","مصرى","2009-03-30"]
[null,null,0,"خالد عبدالناصر مغاورى حسن",3,3," 3 / 3 ","ذكر","منقول","مسلم","مصرى","2008-11-28"]
[null,null,0,"رضا عزت حنفى محمود",3,3," 3 / 3 ","ذكر","منقول","مسلم","مصرى","2008-10-15"]
[null,null,"م","زياد حماده مجاهد عاشور",3,3," 3 / 3 ","ذكر","منقول","مسلم","مصرى","2009-05-07"]
[null,null,0,"سامى محمود محمد سالم",3,3," 3 / 3 ","ذكر","منقول","مسلم","مصرى","2008-12-08"]
[null,null,0,"سمير عبدالعاطى دردير محمد",3,3," 3 / 3 ","ذكر","منقول","مسلم","مصرى","2009-01-04"]
[null,null,"م","شعبان بدر عبدالجواد محمود",3,3," 3 / 3 ","ذكر","منقول","مسلم","مصرى","2009-08-22"]
[null,null,0,"صبرى محمود سيد عبدالمقصود",3,3," 3 / 3 ","ذكر","منقول","مسلم","مصرى","2008-10-24"]
[null,null,0,"صلاح وحيد ابوبكر هاشم",3,3," 3 / 3 ","ذكر","منقول","مسلم","مصرى","2009-08-13"]
[null,null,"م","طه عبدالرازق دردير محمد",3,3," 3 / 3 ","ذكر","منقول","مسلم","مصرى","2008-12-16"]
[null,null,0,"عبدالحكيم عزت سعيد عبدالحكيم",3,3," 3 / 3 ","ذكر","منقول","مسلم","مصرى","2009-01-10"]
[null,null,0,"عبدالرحمن رجب داود سيد",3,3," 3 / 3 ","ذكر","منقول","مسلم","مصرى","2009-07-25"]
[null,null,"م","عبدالرحمن نبيل عبدالمنعم سالم",3,3," 3 / 3 ","ذكر","حكم قانون","مسلم","مصرى","2009-06-12"]
[null,null,0,"عبدالله على رسمى عبدالحميد",3,3," 3 / 3 ","ذكر","منقول","مسلم","مصرى","2009-07-23"]
[null,null,0,"عزت حازم محمد عباس",3,3," 3 / 3 ","ذكر","منقول","مسلم","مصرى","2009-06-22"]
[null,null,"م","على مجدى على احمد",3,3," 3 / 3 ","ذكر","منقول","مسلم","مصرى","2009-09-28"]
[null,null,0,"عمر احمد زينهم احمد",3,3," 3 / 3 ","ذكر","منقول","مسلم","مصرى","2009-05-11"]
[null,null,0,"عمر محمد عبده جمعه",3,3," 3 / 3 ","ذكر","منقول","مسلم","مصرى","2009-08-25"]
[null,null,"م","فتحى مصطفى فتحى زكى",3,3," 3 / 3 ","ذكر","منقول","مسلم","مصرى","2008-10-08"]
[null,null,0,"كريم محمد مرسى محمد",3,3," 3 / 3 ","ذكر","منقول","مسلم","مصرى","2009-06-16"]
[null,null,0,"محمد اسماعيل عويس محمد",3,3," 3 / 3 ","ذكر","منقول","مسلم","مصرى","2009-03-26"]
[null,null,"م","محمد حسين حسين محمود",3,3," 3 / 3 ","ذكر","منقول","مسلم","مصرى","2008-12-07"]
[null,null,0,"محمد عبدالتواب عرفه خليفه",3,3," 3 / 3 ","ذكر","منقول","مسلم","مصرى","2009-05-09"]
[null,null,0,"محمد عزت رجب عبدالله",3,3," 3 / 3 ","ذكر","منقول","مسلم","مصرى","2009-07-01"]
[null,null,"م","محمد علاء مجاهد عاشور",3,3," 3 / 3 ","ذكر","منقول","مسلم","مصرى","2008-12-04"]
[null,null,0,"محمد محمد ابراهيم عبدالحميد",3,3," 3 / 3 ","ذكر","منقول","مسلم","مصرى","2009-01-15"]
[null,null,0,"محمد هانى عبدالحميد عبدالعزيز",3,3," 3 / 3 ","ذكر","حكم قانون","مسلم","مصرى","2009-08-01"]
[null,null,"م","مصطفى احمد حسن احمد",3,3," 3 / 3 ","ذكر","منقول","مسلم","مصرى","2009-09-15"]
[null,null,0,"مصطفى عيد محمد عمر",3,3," 3 / 3 ","ذكر","منقول","مسلم","مصرى","2008-12-06"]
[null,null,0,"مصطفى محمد مصطفى زيدان",3,3," 3 / 3 ","ذكر","منقول","مسلم","مصرى","2009-03-27"]
[null,null,"م","هانى سعيد حسن سعيد",3,3," 3 / 3 ","ذكر","منقول","مسلم","مصرى","2009-01-01"]
[null,null,0,"ياسر ابراهيم محمد ابراهيم",3,3," 3 / 3 ","ذكر","منقول","مسلم","مصرى","2009-02-25"]
[null,null,0,"يوسف اشرف عبدالنبى عبدالعال",3,3," 3 / 3 ","ذكر","منقول","مسلم","مصرى","2009-01-04"]
[null,null,"م","يوسف عاطف عبدالفتاح عبدالاه",3,3," 3 / 3 ","ذكر","منقول","مسلم","مصرى","2009-08-20"]
[null,null,0,"اسراء حمدان اسماعيل عبدالعزيز",4,1," 4 / 1 ","أنثى","منقول","مسلم","مصرى","2008-07-31"]
[null,null,0,"اسماء محمد ابراهيم محمد",4,1," 4 / 1 ","أنثى","منقول","مسلم","مصرى","2008-05-18"]
[null,null,"م","الاء احمد عاشور محمد",4,1," 4 / 1 ","أنثى","منقول","مسلم","مصرى","2008-09-20"]
[null,null,0,"انجى حسن عبدالناصر مغاورى",4,1," 4 / 1 ","أنثى","منقول","مسلم","مصرى","2008-03-17"]
[null,null,0,"ايه شحته فاروق عبدالمقصود",4,1," 4 / 1 ","أنثى","منقول","مسلم","مصرى","2008-09-01"]
[null,null,"م","ايه فتحى جمعه مصطفى",4,1," 4 / 1 ","أنثى","منقول","مسلم","مصرى","2008-06-17"]
[null,null,0,"بسمله سامى محمد محمد",4,1," 4 / 1 ","أنثى","منقول","مسلم","مصرى","2008-08-17"]
[null,null,0,"بسمله على فرج عبدالمقصود",4,1," 4 / 1 ","أنثى","منقول","مسلم","مصرى","2007-11-09"]
[null,null,"م","جنات محمد فهمى شاكر",4,1," 4 / 1 ","أنثى","منقول","مسلم","مصرى","2008-07-07"]
[null,null,0,"جهاد ايمن سيد شاكر",4,1," 4 / 1 ","أنثى","منقول","مسلم","مصرى","2008-02-23"]
[null,null,0,"حبيبه عيد شعبان على",4,1," 4 / 1 ","أنثى","منقول","مسلم","مصرى","2008-09-13"]
[null,null,"م","حبيبه عيد نجدى محمود",4,1," 4 / 1 ","أنثى","منقول","مسلم","مصرى","2008-01-23"]
[null,null,0,"دعاء شاكر سلامه شاكر",4,1," 4 / 1 ","أنثى","منقول","مسلم","مصرى","2008-08-22"]
[null,null,0,"دينا على حسن حسن",4,1," 4 / 1 ","أنثى","منقول","مسلم","مصرى","2007-04-13"]
[null,null,"م","رحاب محمد ربيع عثمان",4,1," 4 / 1 ","أنثى","منقول","مسلم","مصرى","2008-03-26"]
[null,null,0,"رنا رجب ثابت ثابت",4,1," 4 / 1 ","أنثى","منقول","مسلم","مصرى","2008-01-24"]
[null,null,0,"سماح يوسف سيد محمد",4,1," 4 / 1 ","أنثى","منقول","مسلم","مصرى","2008-10-01"]
[null,null,{"$f":"C904","v":"م"},"سهام هانى عبدالمنعم احمد",4,1,{"$f":"\" \"&E907&\" / \"&F907&\" \"","v":" 4 / 1 "},"أنثى","منقول","مسلم","مصرى","2007-10-20"]
[null,null,0,"شهد اشرف حامد ابوبكر",4,1," 4 / 1 ","أنثى","منقول","مسلم","مصرى","2008-03-18"]
[null,null,0,"شهد رشدان سلامه شاكر",4,1," 4 / 1 ","أنثى","منقول","مسلم","مصرى","2008-06-13"]
[null,null,"م","شهد ممدوح محمد ابراهيم",4,1," 4 / 1 ","أنثى","منقول","مسلم","مصرى","2008-09-10"]
[null,null,0,"شهندا ناصر حسن على",4,1," 4 / 1 ","أنثى","منقول","مسلم","مصرى","2008-02-13"]
[null,null,0,"شيماء محمد سيد محمد",4,1," 4 / 1 ","أنثى","منقول","مسلم","مصرى","2008-07-13"]
[null,null,"م","صفاء حسنى عاشور خميس",4,1," 4 / 1 ","أنثى","منقول","مسلم","مصرى","2008-03-21"]
[null,null,0,"فاطمه عبدالله عبدالفضيل احمد",4,1," 4 / 1 ","أنثى","منقول","مسلم","مصرى","2008-08-09"]
[null,null,0,"فاطمه على زيدان عثمان",4,1," 4 / 1 ","أنثى","منقول","مسلم","مصرى","2007-11-05"]
[null,null,"م","كريمه شعبان حنفى محمود",4,1," 4 / 1 ","أنثى","منقول","مسلم","مصرى","2007-12-18"]
[null,null,0,"كوثر محمد رجب عبدالله",4,1," 4 / 1 ","أنثى","منقول","مسلم","مصرى","2008-08-18"]
[null,null,0,"مريم محمد سيد عنكيلى",4,1," 4 / 1 ","أنثى","منقول","مسلم","مصرى","2008-08-20"]
[null,null,"م","ملك اسامه عبدالتواب عبود",4,1," 4 / 1 ","أنثى","منقول","مسلم","مصرى","2008-05-20"]
[null,null,0,"ملك عادل عبدالحميد جمعه",4,1," 4 / 1 ","أنثى","منقول","مسلم","مصرى","2008-06-19"]
[null,null,0,"منار عزت سيد محمود",4,1," 4 / 1 ","أنثى","منقول","مسلم","مصرى","2008-08-01"]
[null,null,"م","منه وليد سيد محمود",4,1," 4 / 1 ","أنثى","منقول","مسلم","مصرى","2008-07-14"]
[null,null,0,"ناديه عاشور مجاهد محمد",4,1," 4 / 1 ","أنثى","منقول","مسلم","مصرى","2008-04-19"]
[null,null,0,"ندا عبدالتواب محمد عبدالعزيز",4,1," 4 / 1 ","أنثى","منقول","مسلم","مصرى","2008-08-22"]
[null,null,"م","نشوى حسن عبدالنبى حسن",4,1," 4 / 1 ","أنثى","منقول","مسلم","مصرى","2008-06-18"]
[null,null,0,"نعمه عزت جمعه مصطفى",4,1," 4 / 1 ","أنثى","منقول","مسلم","مصرى","2008-07-12"]
[null,null,0,"نورهان محمد جمعه محمد",4,1," 4 / 1 ","أنثى","منقول","مسلم","مصرى","2008-07-30"]
[null,null,"م","هاجر هانى حسن حسين",4,1," 4 / 1 ","أنثى","منقول","مسلم","مصرى","2007-10-04"]
[null,null,0,"هدير عبدالرحمن محمد جمعه",4,1," 4 / 1 ","أنثى","منقول","مسلم","مصرى","2006-02-23"]
[null,null,0,"ابراهيم فتحى رجب عبدالعزيز",4,1," 4 / 1 ","ذكر","منقول","مسلم","مصرى","2008-06-25"]
[null,null,"م","احمد جمعه محمد خميس",4,1," 4 / 1 ","ذكر","منقول","مسلم","مصرى","2007-10-08"]
[null,null,0,"احمد سامح خميس طه",4,1," 4 / 1 ","ذكر","منقول","مسلم","مصرى","2008-05-09"]
[null,null,0,"احمد وليد احمد قبيصي",4,1," 4 / 1 ","ذكر","منقول","مسلم","مصرى","2007-07-19"]
[null,null,"م","ادهم شحات كامل ابوبكر",4,1," 4 / 1 ","ذكر","منقول","مسلم","مصرى","2008-04-27"]
[null,null,0,"انور عزت مصطفى رجب",4,1," 4 / 1 ","ذكر","منقول","مسلم","مصرى","2008-02-08"]
[null,null,0,"بكر اسماعيل محمود سيد",4,1," 4 / 1 ","ذكر","منقول","مسلم","مصرى","2008-08-10"]
[null,null,"م","بلال محمود محمد على",4,1," 4 / 1 ","ذكر","منقول","مسلم","مصرى","2008-03-30"]
[null,null,0,"جمعه يحيى عبدالنبى حسن",4,1," 4 / 1 ","ذكر","منقول","مسلم","مصرى","2008-04-16"]
[null,null,0,"حسن خالد فتحى جمعه",4,1," 4 / 1 ","ذكر","منقول","مسلم","مصرى","2008-09-19"]
[null,null,"م","حمدى صابر ابوالغيط على",4,1," 4 / 1 ","ذكر","منقول","مسلم","مصرى","2008-06-29"]
[null,null,0,"حمزه عمر محفوظ عبدالمجيد",4,1," 4 / 1 ","ذكر","منقول","مسلم","مصرى","2008-06-01"]
[null,null,0,"ذياد سعيد عاشور عبدالصمد",4,1," 4 / 1 ","ذكر","منقول","مسلم","مصرى","2008-04-15"]
[null,null,"م","سيد حازم سيد حسين",4,1," 4 / 1 ","ذكر","منقول","مسلم","مصرى","2008-03-01"]
[null,null,0,"سيد محمد محفوظ عبدالمجيد",4,1," 4 / 1 ","ذكر","منقول","مسلم","مصرى","2007-10-29"]
[null,null,0,"شعبان رضا شعبان كمال",4,1," 4 / 1 ","ذكر","منقول","مسلم","مصرى","2008-01-28"]
[null,null,"م","صلاح هانى احمد خميس",4,1," 4 / 1 ","ذكر","منقول","مسلم","مصرى","2008-02-29"]
[null,null,0,"عاشور احمد عاشور عبدالمقصود",4,1," 4 / 1 ","ذكر","منقول","مسلم","مصرى","2008-01-11"]
[null,null,0,"عبدالرحمن عزت بدر شعبان",4,1," 4 / 1 ","ذكر","منقول","مسلم","مصرى","2008-08-03"]
[null,null,"م","عبدالرحمن على محفوظ عبدالمجيد",4,1," 4 / 1 ","ذكر","منقول","مسلم","مصرى","2008-08-24"]
[null,null,0,"عبدالرحمن ممدوح قدرى ابوبكر",4,1," 4 / 1 ","ذكر","منقول","مسلم","مصرى","2008-06-13"]
[null,null,0,"عبدالله محمد فتحى حسين",4,1," 4 / 1 ","ذكر","منقول","مسلم","مصرى","2008-08-21"]
[null,null,"م","عبده خميس عبدالتواب حسين",4,1," 4 / 1 ","ذكر","منقول","مسلم","مصرى","2008-01-26"]
[null,null,0,"على محمد محفوظ عبدالمجيد",4,1," 4 / 1 ","ذكر","منقول","مسلم","مصرى","2007-10-29"]
[null,null,0,"عماد رجب حمدى عطيه",4,1," 4 / 1 ","ذكر","منقول","مسلم","مصرى","2008-01-31"]
[null,null,"م","عمر خالد رزق الله ابوسريع",4,1," 4 / 1 ","ذكر","منقول","مسلم","مصرى","2008-08-30"]
[null,null,0,"عمر سمير ابراهيم حسن",4,1," 4 / 1 ","ذكر","منقول","مسلم","مصرى","2008-07-25"]
[null,null,0,"كريم ابراهيم قدرى احمد",4,1," 4 / 1 ","ذكر","منقول","مسلم","مصرى","2009-01-29"]
[null,null,"م","كريم سعيد ابراهيم عيد",4,1," 4 / 1 ","ذكر","منقول","مسلم","مصرى","2008-05-15"]
[null,null,0,"محمد ابراهيم حسن حسن",4,1," 4 / 1 ","ذكر","منقول","مسلم","مصرى","2008-07-05"]
[null,null,0,"محمد بهجت رجب محمد",4,1," 4 / 1 ","ذكر","منقول","مسلم","مصرى","2008-01-22"]
[null,null,"م","محمد ثابت محمود نجدى",4,1," 4 / 1 ","ذكر","منقول","مسلم","مصرى","2008-05-21"]
[null,null,0,"محمد جمعه سالم محمد",4,1," 4 / 1 ","ذكر","منقول","مسلم","مصرى","2008-04-05"]
[null,null,0,"محمد حازم سيد محمد",4,1," 4 / 1 ","ذكر","منقول","مسلم","مصرى","2008-04-19"]
[null,null,"م","محمد خليل عبدالتواب خليل",4,1," 4 / 1 ","ذكر","منقول","مسلم","مصرى","2008-05-30"]
[null,null,0,"محمد سامى عاشور محمود",4,1," 4 / 1 ","ذكر","منقول","مسلم","مصرى","2008-09-01"]
[null,null,0,"محمد طه محمود محمود",4,1," 4 / 1 ","ذكر","منقول","مسلم","مصرى","2007-11-03"]
[null,null,"م","محمد على سليمان على",4,1," 4 / 1 ","ذكر","منقول","مسلم","مصرى","2008-08-20"]
[null,null,0,"محمد عيد حسن حسن",4,1," 4 / 1 ","ذكر","منقول","مسلم","مصرى","2007-10-21"]
[null,null,0,"محمد فتحى جمعه مصطفى",4,1," 4 / 1 ","ذكر","منقول","مسلم","مصرى","2008-06-17"]
[null,null,"م","محمد منير فتحى عبدالجواد",4,1," 4 / 1 ","ذكر","منقول","مسلم","مصرى","2007-11-05"]
[null,null,{"$f":"C968","v":0},"محمد يحيى ابراهيم محمد",4,1,{"$f":"\" \"&E971&\" / \"&F971&\" \"","v":" 4 / 1 "},"ذكر","منقول","مسلم","مصرى","2008-07-08"]
[null,null,0,"محمود فرحات عبدالحليم جمعه",4,1," 4 / 1 ","ذكر","منقول","مسلم","مصرى","2008-02-26"]
[null,null,"م","مصطفى سعودى فهمى محمود",4,1," 4 / 1 ","ذكر","منقول","مسلم","مصرى","2008-08-31"]
[null,null,0,"مصطفى ممدوح عيد طه",4,1," 4 / 1 ","ذكر","منقول","مسلم","مصرى","2007-11-30"]
[null,null,0,"ممدوح محمد جمال محمد",4,1," 4 / 1 ","ذكر","منقول","مسلم","مصرى","2008-03-08"]
[null,null,"م","يوسف عزت قدرى محمود",4,1," 4 / 1 ","ذكر","منقول","مسلم","مصرى","2008-02-28"]
[null,null,0,"يوسف محمد محمود على",4,1," 4 / 1 ","ذكر","منقول","مسلم","مصرى","2007-09-05"]
[null,null,0,"اسراء محمد صابر جمعه",4,2," 4 / 2 ","أنثى","منقول","مسلم","مصرى","2008-03-28"]
[null,null,"م","اسراء وليد عادل حسن",4,2," 4 / 2 ","أنثى","منقول","مسلم","مصرى","2008-03-03"]
[null,null,0,"الاء شعبان سلطان صابر",4,2," 4 / 2 ","أنثى","منقول","مسلم","مصرى","2008-08-27"]
[null,null,0,"امال محمد فاروق محمد",4,2," 4 / 2 ","أنثى","منقول","مسلم","مصرى","2008-08-29"]
[null,null,"م","امنيه سعيد حسن احمد",4,2," 4 / 2 ","أنثى","منقول","مسلم","مصرى","2008-09-27"]
[null,null,0,"بسمله عزت رجب عبدالله",4,2," 4 / 2 ","أنثى","منقول","مسلم","مصرى","2008-08-01"]
[null,null,0,"حبيبه عاطف شعبان هنداوى",4,2," 4 / 2 ","أنثى","منقول","مسلم","مصرى","2008-07-03"]
[null,null,"م","حنين محمد ابراهيم موسى",4,2," 4 / 2 ","أنثى","منقول","مسلم","مصرى","2008-02-02"]
[null,null,0,"دينا نبيل رجب محمود",4,2," 4 / 2 ","أنثى","منقول","مسلم","مصرى","2007-07-17"]
[null,null,0,"راضيه محمد عبدالفضيل درويش",4,2," 4 / 2 ","أنثى","منقول","مسلم","مصرى","2008-04-22"]
[null,null,"م","رشا محمد عادل هليل",4,2," 4 / 2 ","أنثى","منقول","مسلم","مصرى","2007-10-11"]
[null,null,0,"روضه محمد فتحى مكاوى",4,2," 4 / 2 ","أنثى","منقول","مسلم","مصرى","2008-03-01"]
[null,null,0,"ساره جمعه نجدى محمود",4,2," 4 / 2 ","أنثى","منقول","مسلم","مصرى","2008-07-21"]
[null,null,"م","ساره علاء مبارك حنفى",4,2," 4 / 2 ","أنثى","منقول","مسلم","مصرى","2007-11-05"]
[null,null,0,"سلمى احمد جمعه يوسف",4,2," 4 / 2 ","أنثى","منقول","مسلم","مصرى","2008-06-16"]
[null,null,0,"سمر سعيد سيد محمد",4,2," 4 / 2 ","أنثى","منقول","مسلم","مصرى","2008-08-29"]
[null,null,"م","سميه صابر على احمد",4,2," 4 / 2 ","أنثى","منقول","مسلم","مصرى","2007-10-26"]
[null,null,0,"سوميه عمر محفوظ عبدالمجيد",4,2," 4 / 2 ","أنثى","منقول","مسلم","مصرى","2008-06-01"]
[null,null,0,"شروق احمد عبدالستار احمد",4,2," 4 / 2 ","أنثى","منقول","مسلم","مصرى","2008-07-30"]
[null,null,"م","شهد اشرف محمد محمود",4,2," 4 / 2 ","أنثى","منقول","مسلم","مصرى","2008-05-01"]
[null,null,0,"شهد عزت محمد عبدالعزيز",4,2," 4 / 2 ","أنثى","منقول","مسلم","مصرى","2008-05-05"]
[null,null,0,"شهد محمد منصور يوسف",4,2," 4 / 2 ","أنثى","منقول","مسلم","مصرى","2008-06-26"]
[null,null,"م","صابرين جمال سيد عبدالحكيم",4,2," 4 / 2 ","أنثى","منقول","مسلم","مصرى","2008-03-12"]
[null,null,0,"عزيزه كاسب عيد خليفه",4,2," 4 / 2 ","أنثى","منقول","مسلم","مصرى","2008-03-05"]
[null,null,0,"فاطمه ابراهيم محمد ابراهيم",4,2," 4 / 2 ","أنثى","منقول","مسلم","مصرى","2007-10-19"]
[null,null,"م","فاطمه عبده على رمضان",4,2," 4 / 2 ","أنثى","منقول","مسلم","مصرى","2008-02-09"]
[null,null,0,"فاطمه فتحى رزق بشير",4,2," 4 / 2 ","أنثى","منقول","مسلم","مصرى","2008-04-18"]
[null,null,0,"فرحه عبدالتواب فاروق عبدالله",4,2," 4 / 2 ","أنثى","منقول","مسلم","مصرى","2008-07-12"]
[null,null,"م","مروه رمضان حامد اسماعيل",4,2," 4 / 2 ","أنثى","منقول","مسلم","مصرى","2007-12-09"]
[null,null,0,"مريم حازم مشحوت محمد",4,2," 4 / 2 ","أنثى","منقول","مسلم","مصرى","2008-06-04"]
[null,null,0,"مريم عبدالله سعيد عبدالعزيز",4,2," 4 / 2 ","أنثى","منقول","مسلم","مصرى","2008-04-01"]
[null,null,"م","مريم محمود عبده محمود",4,2," 4 / 2 ","أنثى","منقول","مسلم","مصرى","2008-09-22"]
[null,null,0,"ملك ابراهيم عبدالخالق محفوظ",4,2," 4 / 2 ","أنثى","منقول","مسلم","مصرى","2008-07-20"]
[null,null,0,"ناديه فارس رمضان هنداوى",4,2," 4 / 2 ","أنثى","منقول","مسلم","مصرى","2008-08-02"]
[null,null,"م","ندا رمضان على رمضان",4,2," 4 / 2 ","أنثى","منقول","مسلم","مصرى","2008-03-31"]
[null,null,0,"ندى ايمن سيد محمد",4,2," 4 / 2 ","أنثى","منقول","مسلم","مصرى","2008-06-13"]
[null,null,0,"نيره ابراهيم عبدالحميد خليل",4,2," 4 / 2 ","أنثى","منقول","مسلم","مصرى","2008-04-25"]
[null,null,"م","هاجر عيد سيد محمد",4,2," 4 / 2 ","أنثى","منقول","مسلم","مصرى","2007-12-20"]
[null,null,0,"هدى عادل عبدالرحمن جمعه",4,2," 4 / 2 ","أنثى","منقول","مسلم","مصرى","2008-08-06"]
[null,null,0,"احمد اسماعيل عبدالتواب عبدالمنعم",4,2," 4 / 2 ","ذكر","منقول","مسلم","مصرى","2007-11-16"]
[null,null,"م","احمد درويش عبده درويش",4,2," 4 / 2 ","ذكر","منقول","مسلم","مصرى","2008-05-06"]
[null,null,0,"احمد سعيد حسن جمعه",4,2," 4 / 2 ","ذكر","منقول","مسلم","مصرى","2008-09-10"]
[null,null,0,"احمد نادى محمد غريب",4,2," 4 / 2 ","ذكر","منقول","مسلم","مصرى","2008-02-06"]
[null,null,"م","اسلام على عبده على",4,2," 4 / 2 ","ذكر","منقول","مسلم","مصرى","2007-12-25"]
[null,null,0,"اسماعيل عيد عبدالتواب عبدالله",4,2," 4 / 2 ","ذكر","منقول","مسلم","مصرى","2008-04-28"]
[null,null,0,"حسن حسين حسن على",4,2," 4 / 2 ","ذكر","منقول","مسلم","مصرى","2008-03-20"]
[null,null,"م","حسنى على حسنى احمد",4,2," 4 / 2 ","ذكر","منقول","مسلم","مصرى","2008-03-13"]
[null,null,0,"حمدى محمد ثابت مرسى",4,2," 4 / 2 ","ذكر","منقول","مسلم","مصرى","2008-09-06"]
[null,null,0,"ربيع سيد فرج ربيع",4,2," 4 / 2 ","ذكر","منقول","مسلم","مصرى","2007-11-19"]
[null,null,"م","سيد صابر سيد محمد",4,2," 4 / 2 ","ذكر","منقول","مسلم","مصرى","2007-12-05"]
[null,null,0,"سيد محمد عبدالتواب محمد",4,2," 4 / 2 ","ذكر","منقول","مسلم","مصرى","2008-08-03"]
[null,null,0,"طه عبدالظاهر طه محمد",4,2," 4 / 2 ","ذكر","منقول","مسلم","مصرى","2008-09-08"]
[null,null,"م","عبدالرحمن حماده حمدى فهمى",4,2," 4 / 2 ","ذكر","منقول","مسلم","مصرى","2007-12-19"]
[null,null,0,"عبدالرحمن رمضان محمود نجدى",4,2," 4 / 2 ","ذكر","منقول","مسلم","مصرى","2007-07-09"]
[null,null,0,"عبدالرحمن محمد محمد جوده",4,2," 4 / 2 ","ذكر","منقول","مسلم","مصرى","2008-08-19"]
[null,null,"م","عبدالرحمن ناصر سيد حسن",4,2," 4 / 2 ","ذكر","منقول","مسلم","مصرى","2008-01-06"]
[null,null,0,"عبدالله محمود اسعد محمد",4,2," 4 / 2 ","ذكر","منقول","مسلم","مصرى","2008-06-11"]
[null,null,{"$f":"C1032","v":0},"على حسانين رجب عبدالعزيز",4,2,{"$f":"\" \"&E1035&\" / \"&F1035&\" \"","v":" 4 / 2 "},"ذكر","منقول","مسلم","مصرى","2008-08-02"]
[null,null,"م","على يوسف على احمد",4,2," 4 / 2 ","ذكر","منقول","مسلم","مصرى","2008-09-15"]
[null,null,0,"عمر ربيع سيد محمد",4,2," 4 / 2 ","ذكر","منقول","مسلم","مصرى","2008-03-14"]
[null,null,0,"فوزى عبدالتواب فوزى محمد",4,2," 4 / 2 ","ذكر","منقول","مسلم","مصرى","2008-07-20"]
[null,null,"م","كريم حسين رمضان ابوسريع",4,2," 4 / 2 ","ذكر","منقول","مسلم","مصرى","2007-09-01"]
[null,null,0,"لؤى سيد مخيمر يوسف",4,2," 4 / 2 ","ذكر","منقول","مسلم","مصرى","2008-08-24"]
[null,null,0,"محسن وحيد صابر عبدالله",4,2," 4 / 2 ","ذكر","منقول","مسلم","مصرى","2007-02-22"]
[null,null,"م","محمد ايمن عبده درويش",4,2," 4 / 2 ","ذكر","منقول","مسلم","مصرى","2007-10-29"]
[null,null,0,"محمد بدر بدر عادل",4,2," 4 / 2 ","ذكر","منقول","مسلم","مصرى","2007-10-10"]
[null,null,0,"محمد تامر ابراهيم محمد",4,2," 4 / 2 ","ذكر","منقول","مسلم","مصرى","2007-10-17"]
[null,null,"م","محمد جمعه قدرى فهيم",4,2," 4 / 2 ","ذكر","منقول","مسلم","مصرى","2008-05-03"]
[null,null,0,"محمد حمدان محمد زكى",4,2," 4 / 2 ","ذكر","منقول","مسلم","مصرى","2006-08-01"]
[null,null,0,"محمد رمضان يوسف احمد",4,2," 4 / 2 ","ذكر","منقول","مسلم","مصرى","2008-05-06"]
[null,null,"م","محمد سيد رجب ابراهيم",4,2," 4 / 2 ","ذكر","منقول","مسلم","مصرى","2008-09-18"]
[null,null,0,"محمد سيد سيد عيد",4,2," 4 / 2 ","ذكر","منقول","مسلم","مصرى","2008-09-02"]
[null,null,0,"محمد عاشور رمضان ابوسريع",4,2," 4 / 2 ","ذكر","منقول","مسلم","مصرى","2008-01-06"]
[null,null,"م","محمد عبدالفتاح عادل عبدالفتاح",4,2," 4 / 2 ","ذكر","منقول","مسلم","مصرى","2008-01-08"]
[null,null,0,"محمد عزت محمد عيسى",4,2," 4 / 2 ","ذكر","منقول","مسلم","مصرى","2008-01-01"]
[null,null,0,"محمد عيد حسن احمد",4,2," 4 / 2 ","ذكر","منقول","مسلم","مصرى","2008-09-09"]
[null,null,"م","محمد محمود عزمى سيد",4,2," 4 / 2 ","ذكر","منقول","مسلم","مصرى","2008-04-07"]
[null,null,0,"محمد محمود فتحى على",4,2," 4 / 2 ","ذكر","منقول","مسلم","مصرى","2008-08-07"]
[null,null,0,"محمد نبيل زكى عبدالرازق",4,2," 4 / 2 ","ذكر","منقول","مسلم","مصرى","2008-09-21"]
[null,null,"م","محمود اسماعيل فهمى محمد",4,2," 4 / 2 ","ذكر","منقول","مسلم","مصرى","2008-07-10"]
[null,null,0,"مدحت علاء صلاح جمعه",4,2," 4 / 2 ","ذكر","منقول","مسلم","مصرى","2008-02-10"]
[null,null,0,"مصطفى جابر عبدالرؤف جمعه",4,2," 4 / 2 ","ذكر","منقول","مسلم","مصرى","2008-08-03"]
[null,null,"م","مصطفى عبده نجدى محمود",4,2," 4 / 2 ","ذكر","منقول","مسلم","مصرى","2008-07-21"]
[null,null,0,"منصور محمد منصور صابر",4,2," 4 / 2 ","ذكر","منقول","مسلم","مصرى","2008-02-17"]
[null,null,0,"نعمان اسماعيل حسن حسن",4,2," 4 / 2 ","ذكر","منقول","مسلم","مصرى","2007-07-16"]
[null,null,"م","يوسف ايمن ابوالخير محمود",4,2," 4 / 2 ","ذكر","منقول","مسلم","مصرى","2008-03-18"]
[null,null,0,"يوسف عيد قدرى عابد",4,2," 4 / 2 ","ذكر","منقول","مسلم","مصرى","2007-10-20"]
[null,null,0,"يوسف محمد مرزوق عمار",4,2," 4 / 2 ","ذكر","منقول","مسلم","مصرى","2008-06-19"]
[null,null,"م","اسماء على على سيد",4,3," 4 / 3 ","أنثى","منقول","مسلم","مصرى","2007-10-05"]
[null,null,0,"اسماء محمد سيد داود",4,3," 4 / 3 ","أنثى","منقول","مسلم","مصرى","2006-12-18"]
[null,null,0,"الاء محمود احمد عوض",4,3," 4 / 3 ","أنثى","منقول","مسلم","مصرى","2008-05-18"]
[null,null,"م","امانى عبده محمد داود",4,3," 4 / 3 ","أنثى","منقول","مسلم","مصرى","2008-03-22"]
[null,null,0,"جنى احمد طه عثمان",4,3," 4 / 3 ","أنثى","منقول","مسلم","مصرى","2008-06-07"]
[null,null,0,"داليا محمد سعيد عبدالمنعم",4,3," 4 / 3 ","أنثى","منقول","مسلم","مصرى","2007-10-24"]
[null,null,"م","دنيا محمد سعيد عبدالمنعم",4,3," 4 / 3 ","أنثى","منقول","مسلم","مصرى","2007-10-24"]
[null,null,0,"رشا صبرى رمضان خميس",4,3," 4 / 3 ","أنثى","منقول","مسلم","مصرى","2007-03-29"]
[null,null,0,"ساره عاشور ابوالعلا صديق",4,3," 4 / 3 ","أنثى","منقول","مسلم","مصرى","2008-03-17"]
[null,null,"م","شروق محمد محمد داود",4,3," 4 / 3 ","أنثى","منقول","مسلم","مصرى","2008-01-01"]
[null,null,0,"شيماء محمد رجب داود",4,3," 4 / 3 ","أنثى","منقول","مسلم","مصرى","2008-09-24"]
[null,null,0,"شيماء محمد فهمى احمد",4,3," 4 / 3 ","أنثى","منقول","مسلم","مصرى","2007-10-25"]
[null,null,"م","عزيزه سعد عبدالرازق حسن",4,3," 4 / 3 ","أنثى","منقول","مسلم","مصرى","2008-07-03"]
[null,null,0,"عفاف عزت محمد عيسى",4,3," 4 / 3 ","أنثى","منقول","مسلم","مصرى","2008-01-01"]
[null,null,0,"فرح فتحى جمعه حسانين",4,3," 4 / 3 ","أنثى","منقول","مسلم","مصرى","2008-06-14"]
[null,null,"م","مريم حامد سعيد عبدالمنعم",4,3," 4 / 3 ","أنثى","منقول","مسلم","مصرى","2008-02-02"]
[null,null,0,"ملك ابوزيد عبدالمقصود سيد",4,3," 4 / 3 ","أنثى","منقول","مسلم","مصرى","2008-02-19"]
[null,null,0,"منار حداد عبدالتواب ربيع",4,3," 4 / 3 ","أنثى","باق","مسلم","مصرى","2006-11-21"]
[null,null,"م","منة الله عبدالنبى محمد محمد",4,3," 4 / 3 ","أنثى","باق","مسلم","مصرى","2006-11-10"]
[null,null,0,"منه سعيد عبدالمنعم سالم",4,3," 4 / 3 ","أنثى","منقول","مسلم","مصرى","2008-04-07"]
[null,null,0,"منى داود محمد داود",4,3," 4 / 3 ","أنثى","منقول","مسلم","مصرى","2008-09-08"]
[null,null,"م","نجار فارس فرج عبدالمقصود",4,3," 4 / 3 ","أنثى","منقول","مسلم","مصرى","2008-04-25"]
[null,null,0,"ندا شرف يسرى على",4,3," 4 / 3 ","أنثى","منقول","مسلم","مصرى","2007-11-16"]
[null,null,0,"هاجر عبده رمضان سيد",4,3," 4 / 3 ","أنثى","منقول","مسلم","مصرى","2008-07-05"]
[null,null,"م","ياسمين محمد عبدالحميد مليجى",4,3," 4 / 3 ","أنثى","منقول","مسلم","مصرى","2008-06-13"]
[null,null,0,"ابراهيم عزت فتحى شعبان",4,3," 4 / 3 ","ذكر","منقول","مسلم","مصرى","2008-04-25"]
[null,null,0,"احمد ربيع عبدالعاطى ربيع",4,3," 4 / 3 ","ذكر","منقول","مسلم","مصرى","2008-06-17"]
[null,null,"م","احمد صلاح محمود عبدالحميد",4,3," 4 / 3 ","ذكر","منقول","مسلم","مصرى","2007-08-07"]
[null,null,0,"اشرف جمال احمد عكاشه",4,3," 4 / 3 ","ذكر","منقول","مسلم","مصرى","2008-05-06"]
[null,null,0,"بلال اشرف محمد زكى",4,3," 4 / 3 ","ذكر","منقول","مسلم","مصرى","2008-02-14"]
[null,null,"م","جمعه حسنى جمعه عبدالله",4,3," 4 / 3 ","ذكر","منقول","مسلم","مصرى","2007-11-09"]
[null,null,0,"خليل صلاح شافعى مكاوى",4,3," 4 / 3 ","ذكر","منقول","مسلم","مصرى","2007-12-02"]
[null,null,0,"صابر عماد فاروق موسى",4,3," 4 / 3 ","ذكر","منقول","مسلم","مصرى","2008-04-14"]
[null,null,{"$f":"C1096","v":"م"},"عبدالخالق وائل عبدالخالق محفوظ",4,3,{"$f":"\" \"&E1099&\" / \"&F1099&\" \"","v":" 4 / 3 "},"ذكر","منقول","مسلم","مصرى","2008-08-10"]
[null,null,0,"عبدالله عبدالباسط فزاع رجب",4,3," 4 / 3 ","ذكر","منقول","مسلم","مصرى","2008-01-01"]
[null,null,0,"عبدالوهاب محمد عبدالوهاب عبود",4,3," 4 / 3 ","ذكر","منقول","مسلم","مصرى","2008-05-14"]
[null,null,"م","عبده حماده عبدالعاطى ربيع",4,3," 4 / 3 ","ذكر","منقول","مسلم","مصرى","2008-07-01"]
[null,null,0,"على هشام محمد حسين",4,3," 4 / 3 ","ذكر","منقول","مسلم","مصرى","2008-02-28"]
[null,null,0,"عمر حمدى فهمى عبده",4,3," 4 / 3 ","ذكر","منقول","مسلم","مصرى","2007-10-03"]
[null,null,"م","عمرو طارق محمود عبدالحميد",4,3," 4 / 3 ","ذكر","منقول","مسلم","مصرى","2007-10-23"]
[null,null,0,"محمد حمدى على عبدالوارث",4,3," 4 / 3 ","ذكر","منقول","مسلم","مصرى","2008-04-19"]
[null,null,0,"محمد رمضان جمعه عبدالله",4,3," 4 / 3 ","ذكر","منقول","مسلم","مصرى","2008-01-30"]
[null,null,"م","محمد طلعت رجب عبدالسلام",4,3," 4 / 3 ","ذكر","منقول","مسلم","مصرى","2008-08-20"]
[null,null,0,"محمد عبدالنبى محمود نجدى",4,3," 4 / 3 ","ذكر","منقول","مسلم","مصرى","2007-04-21"]
[null,null,0,"محمد عيد محمد طه",4,3," 4 / 3 ","ذكر","منقول","مسلم","مصرى","2008-03-11"]
[null,null,"م","مصطفى ابوبكر فهمى خليفه",4,3," 4 / 3 ","ذكر","منقول","مسلم","مصرى","2008-05-02"]
[null,null,0,"ناصر ابراهيم محمد ابراهيم",4,3," 4 / 3 ","ذكر","منقول","مسلم","مصرى","2008-05-01"]
[null,null,0,"نبيل شعبان رجب جمعه",4,3," 4 / 3 ","ذكر","باق","مسلم","مصرى","2006-10-22"]
[null,null,"م","ياسين حسن محمد جمعه",4,3," 4 / 3 ","ذكر","منقول","مسلم","مصرى","2007-10-30"]
[null,null,0,"يوسف على قدرى على",4,3," 4 / 3 ","ذكر","منقول","مسلم","مصرى","2008-03-20"]
[null,null,0,"ابتسام محمد طه خميس",5,1," 5 / 1 ","أنثى","منقول","مسلم","مصرى","2007-02-08"]
[null,null,"م","اسماء حسنى عبده عبدالعاطى",5,1," 5 / 1 ","أنثى","منقول","مسلم","مصرى","2007-09-10"]
[null,null,0,"الهام اشرف عبدالوهاب محمود",5,1," 5 / 1 ","أنثى","منقول","مسلم","مصرى","2007-01-17"]
[null,null,0,"ايات رجب شحاته عيد",5,1," 5 / 1 ","أنثى","منقول","مسلم","مصرى","2007-09-22"]
[null,null,"م","ايمان طلعت قدرى عابد ",5,1," 5 / 1 ","أنثى","باق","مسلم","مصرى","2006-08-14"]
[null,null,0,"ايه اشرف محمد خليل",5,1," 5 / 1 ","أنثى","منقول","مسلم","مصرى","2007-01-27"]
[null,null,0,"بسمه مجدى عبدالتواب عبدالخالق",5,1," 5 / 1 ","أنثى","منقول","مسلم","مصرى","2007-01-09"]
[null,null,"م","جويريه رضا صابر جوده",5,1," 5 / 1 ","أنثى","منقول","مسلم","مصرى","2007-09-01"]
[null,null,0,"حبيبه شريف عاشور جمعه",5,1," 5 / 1 ","أنثى","منقول","مسلم","مصرى","2007-06-01"]
[null,null,0,"حسناء هانى حسن سعيد",5,1," 5 / 1 ","أنثى","منقول","مسلم","مصرى","2007-05-23"]
[null,null,"م","دعاء احمد محمد الطيبى",5,1," 5 / 1 ","أنثى","منقول","مسلم","مصرى","2006-10-16"]
[null,null,0,"دعاء زكى عبدالنبى جمعه",5,1," 5 / 1 ","أنثى","منقول","مسلم","مصرى","2007-09-19"]
[null,null,0,"دعاء محمد يوسف محمود",5,1," 5 / 1 ","أنثى","منقول","مسلم","مصرى","2007-06-01"]
[null,null,"م","دينا احمد سعيد عبدالحكيم",5,1," 5 / 1 ","أنثى","منقول","مسلم","مصرى","2007-03-28"]
[null,null,0,"روان عزمى جمعه محمد",5,1," 5 / 1 ","أنثى","منقول","مسلم","مصرى","2006-12-14"]
[null,null,0,"زينب حسن سعد داود",5,1," 5 / 1 ","أنثى","حكم قانون","مسلم","مصرى","2005-09-03"]
[null,null,"م","ساره ابوبكر رمضان صالح",5,1," 5 / 1 ","أنثى","منقول","مسلم","مصرى","2007-07-29"]
[null,null,0,"سحر محمد عاشور حسن",5,1," 5 / 1 ","أنثى","منقول","مسلم","مصرى","2007-05-24"]
[null,null,0,"سندس حامد امام حمد امام",5,1," 5 / 1 ","أنثى","منقول","مسلم","مصرى","2007-09-11"]
[null,null,"م","شاهنده شحات كامل ابوبكر",5,1," 5 / 1 ","أنثى","منقول","مسلم","مصرى","2006-11-10"]
[null,null,0,"شرين رمضان سيد شاكر",5,1," 5 / 1 ","أنثى","باق","مسلم","مصرى","2005-12-09"]
[null,null,0,"شمس عادل صابر خميس",5,1," 5 / 1 ","أنثى","منقول","مسلم","مصرى","2007-07-24"]
[null,null,"م","شهد سيد عاشور محمد",5,1," 5 / 1 ","أنثى","منقول","مسلم","مصرى","2007-05-07"]
[null,null,0,"شهد هانى محمود عبدالسلام",5,1," 5 / 1 ","أنثى","منقول","مسلم","مصرى","2007-09-11"]
[null,null,0,"شيرين على عبدالتواب عبدالنعيم",5,1," 5 / 1 ","أنثى","منقول","مسلم","مصرى","2007-03-01"]
[null,null,"م","شيماء شعبان جابر رمضان",5,1," 5 / 1 ","أنثى","منقول","مسلم","مصرى","2007-06-30"]
[null,null,0,"ضحى احمد سعيد حامد",5,1," 5 / 1 ","أنثى","منقول","مسلم","مصرى","2007-03-26"]
[null,null,0,"فاطمه اسامه عبدالتواب عرفه",5,1," 5 / 1 ","أنثى","منقول","مسلم","مصرى","2007-07-10"]
[null,null,"م","فاطمه سعد خفاجه محمد",5,1," 5 / 1 ","أنثى","منقول","مسلم","مصرى","2007-04-16"]
[null,null,0,"فاطمه محمد سيد داود",5,1," 5 / 1 ","أنثى","منقول","مسلم","مصرى","2006-12-18"]
[null,null,0,"كنزى وائل عادل رجب الفقى",5,1," 5 / 1 ","أنثى","منقول","مسلم","مصرى","2006-10-30"]
[null,null,"م","ماجده محمود سعد محمد",5,1," 5 / 1 ","أنثى","منقول","مسلم","مصرى","2007-06-15"]
[null,null,0,"مريم سعد عاشور محمد",5,1," 5 / 1 ","أنثى","منقول","مسلم","مصرى","2007-09-24"]
[null,null,0,"مريم لملوم عدلى محمد",5,1," 5 / 1 ","أنثى","منقول","مسلم","مصرى","2007-05-03"]
[null,null,"م","مريم مصطفى عبده محمد",5,1," 5 / 1 ","أنثى","منقول","مسلم","مصرى","2006-11-06"]
[null,null,0,"ملك فراج معوض عبدالقادر",5,1," 5 / 1 ","أنثى","منقول","مسلم","مصرى","2007-02-22"]
[null,null,0,"منار رمضان علام حسين",5,1," 5 / 1 ","أنثى","منقول","مسلم","مصرى","2007-07-06"]
[null,null,"م","منة الله محمد رجب عبدالحكيم",5,1," 5 / 1 ","أنثى","منقول","مسلم","مصرى","2007-03-13"]
[null,null,0,"منه محمد عبده بشير",5,1," 5 / 1 ","أنثى","منقول","مسلم","مصرى","2007-09-15"]
[null,null,0,"نجاة ابراهيم طه محمد",5,1," 5 / 1 ","أنثى","منقول","مسلم","مصرى","2007-02-28"]
[null,null,"م","نجوى عبدالناصر احمد عبدالعظيم",5,1," 5 / 1 ","أنثى","منقول","مسلم","مصرى","2007-02-15"]
[null,null,0,"ندا عبدالتواب حامد ابوبكر",5,1," 5 / 1 ","أنثى","منقول","مسلم","مصرى","2007-01-01"]
[null,null,0,"ندا مجدى حسين حسن",5,1," 5 / 1 ","أنثى","منقول","مسلم","مصرى","2007-08-01"]
[null,null,"م","ندى جمال احمد عكاشه",5,1," 5 / 1 ","أنثى","منقول","مسلم","مصرى","2007-05-16"]
[null,null,0,"ندى عبدالمقصود على عبدالمقصود",5,1," 5 / 1 ","أنثى","منقول","مسلم","مصرى","2006-03-01"]
[null,null,0,"ندى نصر ابراهيم حسن",5,1," 5 / 1 ","أنثى","منقول","مسلم","مصرى","2007-07-27"]
[null,null,"م","ندى وليد ثابت مرسى",5,1," 5 / 1 ","أنثى","منقول","مسلم","مصرى","2007-08-22"]
[null,null,{"$f":"C1160","v":0},"نورا حماده مجاهد عاشور",5,1,{"$f":"\" \"&E1163&\" / \"&F1163&\" \"","v":" 5 / 1 "},"أنثى","منقول","مسلم","مصرى","2007-05-22"]
[null,null,0,"هاجر تامر عبدالحليم سيد",5,1," 5 / 1 ","أنثى","منقول","مسلم","مصرى","2006-12-09"]
[null,null,"م","هايدى شعبان محمد عبدالحكيم",5,1," 5 / 1 ","أنثى","منقول","مسلم","مصرى","2007-08-20"]
[null,null,0,"هدى محمود عبدالتواب محمود",5,1," 5 / 1 ","أنثى","منقول","مسلم","مصرى","2006-08-06"]
[null,null,0,"هناء احمد اسماعيل اسماعيل",5,1," 5 / 1 ","أنثى","منقول","مسلم","مصرى","2007-02-16"]
[null,null,"م","هند حمدى على عبدالوارث",5,1," 5 / 1 ","أنثى","منقول","مسلم","مصرى","2006-06-25"]
[null,null,0,"هنيه هانى محمد عبدالله",5,1," 5 / 1 ","أنثى","منقول","مسلم","مصرى","2007-06-19"]
[null,null,0,"وفاء عبده محمد عبده",5,1," 5 / 1 ","أنثى","منقول","مسلم","مصرى","2007-05-29"]
[null,null,"م","ابراهيم محمد عبده جمعه",5,1," 5 / 1 ","ذكر","منقول","مسلم","مصرى","2007-07-16"]
[null,null,0,"ابوبكر سعيد علام حسين",5,1," 5 / 1 ","ذكر","منقول","مسلم","مصرى","2007-08-11"]
[null,null,0,"احمد جمال عبدالناصر عبدالغفار",5,1," 5 / 1 ","ذكر","منقول","مسلم","مصرى","2007-03-16"]
[null,null,"م","احمد رمضان عبدالله محمد",5,1," 5 / 1 ","ذكر","منقول","مسلم","مصرى","2007-03-05"]
[null,null,0,"احمد طه محمد عبدالرحمن",5,1," 5 / 1 ","ذكر","منقول","مسلم","مصرى","2007-04-21"]
[null,null,0,"احمد فؤاد امام عبدالحليم",5,1," 5 / 1 ","ذكر","منقول","مسلم","مصرى","2006-11-20"]
[null,null,"م","احمد منتصر فتحى منتصر",5,1," 5 / 1 ","ذكر","منقول","مسلم","مصرى","2006-04-30"]
[null,null,0,"اسلام صابر حجاج عبدالمقصود ",5,1," 5 / 1 ","ذكر","منقول","مسلم","مصرى","2006-09-13"]
[null,null,0,"امام على محمد امام",5,1," 5 / 1 ","ذكر","منقول","مسلم","مصرى","2007-05-20"]
[null,null,"م","ايمن عبدالتواب زكى عباس",5,1," 5 / 1 ","ذكر","منقول","مسلم","مصرى","2006-05-01"]
[null,null,0,"بلال طلعت قدرى عابد",5,1," 5 / 1 ","ذكر","باق","مسلم","مصرى","2005-02-27"]
[null,null,0,"تامر نبيل قدرى ابوبكر",5,1," 5 / 1 ","ذكر","منقول","مسلم","مصرى","2007-09-17"]
[null,null,"م","حسن رمضان حسن حسين",5,1," 5 / 1 ","ذكر","منقول","مسلم","مصرى","2007-01-12"]
[null,null,0,"حماده شعبان اسماعيل امبابى",5,1," 5 / 1 ","ذكر","منقول","مسلم","مصرى","2007-10-01"]
[null,null,0,"حمدى عبدالتواب احمد محمود",5,1," 5 / 1 ","ذكر","منقول","مسلم","مصرى","2007-02-14"]
[null,null,"م","خالد محمد عبدالله محمد",5,1," 5 / 1 ","ذكر","منقول","مسلم","مصرى","2007-01-19"]
[null,null,0,"درويش محمد قدرى عطا الله",5,1," 5 / 1 ","ذكر","منقول","مسلم","مصرى","2007-05-17"]
[null,null,0,"زياد حسنى سيد حسن",5,1," 5 / 1 ","ذكر","منقول","مسلم","مصرى","2007-05-25"]
[null,null,"م","سالم احمد ابوالعلا حسن",5,1," 5 / 1 ","ذكر","منقول","مسلم","مصرى","2007-06-04"]
[null,null,0,"سعد على سعد على عبدالرحمن",5,1," 5 / 1 ","ذكر","منقول","مسلم","مصرى","2007-08-10"]
[null,null,0,"سمير ممدوح جمال محمد",5,1," 5 / 1 ","ذكر","منقول","مسلم","مصرى","2007-08-29"]
[null,null,"م","صابر محمود ناصر جمعه",5,1," 5 / 1 ","ذكر","منقول","مسلم","مصرى","2007-01-01"]
[null,null,0,"طه حامد احمد عبدالتواب",5,1," 5 / 1 ","ذكر","منقول","مسلم","مصرى","2007-06-22"]
[null,null,0,"عادل امام ربيع عثمان",5,1," 5 / 1 ","ذكر","منقول","مسلم","مصرى","2007-01-07"]
[null,null,"م","عبدالرحمن احمد طه محمد",5,1," 5 / 1 ","ذكر","منقول","مسلم","مصرى","2007-03-15"]
[null,null,0,"عبدالرحمن عادل على عبدالمقصود",5,1," 5 / 1 ","ذكر","منقول","مسلم","مصرى","2007-01-17"]
[null,null,0,"عبدالرحمن محمد كامل عكاشه",5,1," 5 / 1 ","ذكر","منقول","مسلم","مصرى","2007-06-09"]
[null,null,"م","عبدالرحمن نصف سيد عبدالله",5,1," 5 / 1 ","ذكر","منقول","مسلم","مصرى","2007-06-01"]
[null,null,0,"عبدالله حسام محمد امام",5,1," 5 / 1 ","ذكر","منقول","مسلم","مصرى","2006-10-30"]
[null,null,0,"عبدالله محمد عيد عبدربه",5,1," 5 / 1 ","ذكر","منقول","مسلم","مصرى","2007-06-01"]
[null,null,"م","على حمد على سيد",5,1," 5 / 1 ","ذكر","منقول","مسلم","مصرى","2007-08-20"]
[null,null,0,"على محمد اسماعيل امبابى",5,1," 5 / 1 ","ذكر","منقول","مسلم","مصرى","2007-08-20"]
[null,null,0,"على نزيه صلاح محمد",5,1," 5 / 1 ","ذكر","منقول","مسلم","مصرى","2007-04-21"]
[null,null,"م","عمرو سمير محمد كامل",5,1," 5 / 1 ","ذكر","منقول","مسلم","مصرى","2006-02-12"]
[null,null,0,"فهد طه ابراهيم محمد",5,1," 5 / 1 ","ذكر","منقول","مسلم","مصرى","2007-09-13"]
[null,null,0,"مجدى صلاح احمد صالح",5,1," 5 / 1 ","ذكر","منقول","مسلم","مصرى","2007-05-19"]
[null,null,"م","محمد احمد يوسف احمد",5,1," 5 / 1 ","ذكر","منقول","مسلم","مصرى","2006-12-14"]
[null,null,0,"محمد ايمن ابراهيم عبدالحميد",5,1," 5 / 1 ","ذكر","منقول","مسلم","مصرى","2007-05-11"]
[null,null,0,"محمد جمعه احمد ابراهيم",5,1," 5 / 1 ","ذكر","منقول","مسلم","مصرى","2007-07-23"]
[null,null,"م","محمد حسنى عبده عبدالعاطى",5,1," 5 / 1 ","ذكر","منقول","مسلم","مصرى","2007-09-10"]
[null,null,0,"محمد رجب مجاهد محمد",5,1," 5 / 1 ","ذكر","منقول","مسلم","مصرى","2007-06-06"]
[null,null,0,"محمد سامح محمد محمد",5,1," 5 / 1 ","ذكر","منقول","مسلم","مصرى","2007-02-03"]
[null,null,"م","محمد سمير حسن بيومى",5,1," 5 / 1 ","ذكر","منقول","مسلم","مصرى","2006-11-27"]
[null,null,0,"محمد شكرى مصطفى رجب",5,1," 5 / 1 ","ذكر","منقول","مسلم","مصرى","2006-04-04"]
[null,null,0,"محمد ضاحى على بدر",5,1," 5 / 1 ","ذكر","منقول","مسلم","مصرى","2007-03-30"]
[null,null,"م","محمد عبدالرازق دردير محمد",5,1," 5 / 1 ","ذكر","منقول","مسلم","مصرى","2007-03-15"]
[null,null,0,"محمد محمود طه خميس",5,1," 5 / 1 ","ذكر","منقول","مسلم","مصرى","2006-11-01"]
[null,null,0,"محمد وليد عادل امام",5,1," 5 / 1 ","ذكر","منقول","مسلم","مصرى","2007-05-15"]
[null,null,"م","محمود صبرى منصور زكى",5,1," 5 / 1 ","ذكر","منقول","مسلم","مصرى","2007-06-06"]
[null,null,0,"محمود فتحى عبدالتواب محمود",5,1," 5 / 1 ","ذكر","منقول","مسلم","مصرى","2007-07-10"]
[null,null,0,"محمود هانى صادق درويش",5,1," 5 / 1 ","ذكر","منقول","مسلم","مصرى","2006-11-04"]
[null,null,"م","مصطفى ربيع سيد محمد",5,1," 5 / 1 ","ذكر","منقول","مسلم","مصرى","2006-06-15"]
[null,null,0,"مصطفى محمود عبدالخالق احمد",5,1," 5 / 1 ","ذكر","منقول","مسلم","مصرى","2007-05-15"]
[null,null,0,"ناجى عبدالحميد سيد عبدالحميد",5,1," 5 / 1 ","ذكر","منقول","مسلم","مصرى","2005-03-25"]
[null,null,"م","نورالدين عمر محمود عبدالعظيم",5,1," 5 / 1 ","ذكر","منقول","مسلم","مصرى","2006-10-10"]
[null,null,0,"وليد حمدان اسماعيل عبدالعزيز",5,1," 5 / 1 ","ذكر","منقول","مسلم","مصرى","2007-07-11"]
[null,null,{"$f":"C1224","v":0},"ياسين مصطفى محمود صادق",5,1,{"$f":"\" \"&E1227&\" / \"&F1227&\" \"","v":" 5 / 1 "},"ذكر","منقول","مسلم","مصرى","2007-09-09"]
[null,null,"م","يوسف رمضان امبابى خليل",5,1," 5 / 1 ","ذكر","منقول","مسلم","مصرى","2007-01-08"]
[null,null,0,"يوسف صابر امام حمد امام",5,1," 5 / 1 ","ذكر","منقول","مسلم","مصرى","2007-09-03"]
[null,null,0,"يوسف فاروق فتحى سيد",5,1," 5 / 1 ","ذكر","منقول","مسلم","مصرى","2006-06-16"]
[null,null,"م","يوسف محمد اسماعيل امبابى",5,1," 5 / 1 ","ذكر","منقول","مسلم","مصرى","2007-08-20"]
[null,null,0,"يوسف محمد سلامه طه",5,1," 5 / 1 ","ذكر","منقول","مسلم","مصرى","2007-08-26"]
[null,null,0,"اسراء عبدالله احمد على",5,2," 5 / 2 ","أنثى","منقول","مسلم","مصرى","2007-09-01"]
[null,null,"م","اسماء هانى محمد خليل",5,2," 5 / 2 ","أنثى","منقول","مسلم","مصرى","2006-12-12"]
[null,null,0,"انجى خليل محمود محمود",5,2," 5 / 2 ","أنثى","منقول","مسلم","مصرى","2007-08-31"]
[null,null,0,"ايمان صلاح عطا على خلاف",5,2," 5 / 2 ","أنثى","منقول","مسلم","مصرى","2007-07-25"]
[null,null,"م","ايناس عبدالناصر على محمود",5,2," 5 / 2 ","أنثى","باق","مسلم","مصرى","2006-01-15"]
[null,null,0,"ايه يوسف داود سيد",5,2," 5 / 2 ","أنثى","منقول","مسلم","مصرى","2007-07-31"]
[null,null,0,"جهاد محمد زوق على",5,2," 5 / 2 ","أنثى","منقول","مسلم","مصرى","2007-03-24"]
[null,null,"م","حبيبه سيد محمود سيد",5,2," 5 / 2 ","أنثى","منقول","مسلم","مصرى","2007-10-01"]
[null,null,0,"حبيبه مصطفى عبدالخالق طه",5,2," 5 / 2 ","أنثى","منقول","مسلم","مصرى","2007-07-17"]
[null,null,0,"داليا رمضان عبده على",5,2," 5 / 2 ","أنثى","منقول","مسلم","مصرى","2007-08-01"]
[null,null,"م","دعاء رمضان صادق محمد",5,2," 5 / 2 ","أنثى","منقول","مسلم","مصرى","2007-07-27"]
[null,null,0,"دعاء سيد عبدالسلام محمود",5,2," 5 / 2 ","أنثى","منقول","مسلم","مصرى","2007-04-15"]
[null,null,0,"دنيا عبدالتواب محمد على ",5,2," 5 / 2 ","أنثى","باق","مسلم","مصرى","2003-08-06"]
[null,null,"م","رضا حسين شعبان عبدالحميد",5,2," 5 / 2 ","أنثى","منقول","مسلم","مصرى","2007-08-25"]
[null,null,0,"رويدا رجب احمد طه",5,2," 5 / 2 ","أنثى","منقول","مسلم","مصرى","2007-07-20"]
[null,null,0,"ساره حسن احمد عمر",5,2," 5 / 2 ","أنثى","منقول","مسلم","مصرى","2007-04-20"]
[null,null,"م","ساره عماد محمد محمود",5,2," 5 / 2 ","أنثى","منقول","مسلم","مصرى","2007-07-07"]
[null,null,0,"سماح عبدالناصر محمد جمعه",5,2," 5 / 2 ","أنثى","منقول","مسلم","مصرى","2006-06-13"]
[null,null,0,"سهيله مكاوى فتحى مكاوى",5,2," 5 / 2 ","أنثى","منقول","مسلم","مصرى","2007-07-21"]
[null,null,"م","شرين احمد اسماعيل اسماعيل",5,2," 5 / 2 ","أنثى","منقول","مسلم","مصرى","2007-02-16"]
[null,null,0,"شرين هانى ابراهيم عيد",5,2," 5 / 2 ","أنثى","منقول","مسلم","مصرى","2006-12-13"]
[null,null,0,"شهد صالح مهدى عبده مشرف",5,2," 5 / 2 ","أنثى","منقول","مسلم","مصرى","2006-12-09"]
[null,null,"م","شهيره اشرف صلاح سيد ",5,2," 5 / 2 ","أنثى","باق","مسلم","مصرى","2004-11-17"]
[null,null,0,"شيماء سيد عبدالرؤف جمعه",5,2," 5 / 2 ","أنثى","منقول","مسلم","مصرى","2007-05-19"]
[null,null,0,"صابرين صلاح محمود عبدالحميد",5,2," 5 / 2 ","أنثى","منقول","مسلم","مصرى","2004-10-19"]
[null,null,"م","علا سعيد محمد عبده",5,2," 5 / 2 ","أنثى","منقول","مسلم","مصرى","2007-05-07"]
[null,null,0,"فاطمه رمضان جمعه محمود",5,2," 5 / 2 ","أنثى","منقول","مسلم","مصرى","2007-06-23"]
[null,null,0,"فاطمه كمال دياب عبدالمقصود",5,2," 5 / 2 ","أنثى","منقول","مسلم","مصرى","2007-09-12"]
[null,null,"م","كريمه هلال جادالحق محمد",5,2," 5 / 2 ","أنثى","منقول","مسلم","مصرى","2007-09-14"]
[null,null,0,"ماجده سعيد على عبدالعزيز",5,2," 5 / 2 ","أنثى","منقول","مسلم","مصرى","2006-12-23"]
[null,null,0,"مروه محمد عبدالصمد طه",5,2," 5 / 2 ","أنثى","منقول","مسلم","مصرى","2007-03-24"]
[null,null,"م","مريم عيد فتحى جمعه",5,2," 5 / 2 ","أنثى","منقول","مسلم","مصرى","2007-09-12"]
[null,null,0,"مريم محمد طه محمد",5,2," 5 / 2 ","أنثى","منقول","مسلم","مصرى","2007-05-10"]
[null,null,0,"ملك طه صابر جمعه",5,2," 5 / 2 ","أنثى","منقول","مسلم","مصرى","2007-06-17"]
[null,null,"م","ملك محمد عيد ربيع",5,2," 5 / 2 ","أنثى","منقول","مسلم","مصرى","2007-08-01"]
[null,null,0,"منة الله عماد محمد عبده",5,2," 5 / 2 ","أنثى","منقول","مسلم","مصرى","2007-03-15"]
[null,null,0,"منه محمد ابوشناف رمضان",5,2," 5 / 2 ","أنثى","منقول","مسلم","مصرى","2007-01-22"]
[null,null,"م","ناديه درويش عبدالرؤف جمعه",5,2," 5 / 2 ","أنثى","منقول","مسلم","مصرى","2007-05-12"]
[null,null,0,"نجاة فتحى على سيد",5,2," 5 / 2 ","أنثى","منقول","مسلم","مصرى","2006-12-13"]
[null,null,0,"ندا عباس محمود عباس",5,2," 5 / 2 ","أنثى","منقول","مسلم","مصرى","2007-07-04"]
[null,null,"م","ندا على عمر بدر جمعه",5,2," 5 / 2 ","أنثى","منقول","مسلم","مصرى","2007-10-01"]
[null,null,0,"ندا هانى ربيع موسى",5,2," 5 / 2 ","أنثى","منقول","مسلم","مصرى","2007-01-29"]
[null,null,0,"ندى صلاح محمود محمد",5,2," 5 / 2 ","أنثى","منقول","مسلم","مصرى","2007-06-15"]
[null,null,"م","ندى محمود مصطفى رجب",5,2," 5 / 2 ","أنثى","منقول","مسلم","مصرى","2007-02-16"]
[null,null,0,"نواره جمعه عبدالحكيم جمعه",5,2," 5 / 2 ","أنثى","منقول","مسلم","مصرى","2007-05-10"]
[null,null,0,"هاجر اشرف عبدالفضيل زيدان",5,2," 5 / 2 ","أنثى","منقول","مسلم","مصرى","2007-01-01"]
[null,null,"م","هدى رامى سعيد عبدالنعيم ",5,2," 5 / 2 ","أنثى","باق","مسلم","مصرى","2006-08-30"]
[null,null,0,"هديه يوسف صابر يوسف ",5,2," 5 / 2 ","أنثى","باق","مسلم","مصرى","2006-07-30"]
[null,null,0,"هناء مسعود عبدالهادى والى",5,2," 5 / 2 ","أنثى","منقول","مسلم","مصرى","2007-08-24"]
[null,null,"م","هند محمد طه رمضان",5,2," 5 / 2 ","أنثى","منقول","مسلم","مصرى","2007-08-20"]
[null,null,0,"وفاء حسن حسن بيومى",5,2," 5 / 2 ","أنثى","منقول","مسلم","مصرى","2007-02-21"]
[null,null,0,"ابراهيم محمد سالم محمد",5,2," 5 / 2 ","ذكر","منقول","مسلم","مصرى","2007-03-27"]
[null,null,"م","ابوبكر خالد فهمى خليفه",5,2," 5 / 2 ","ذكر","منقول","مسلم","مصرى","2007-08-23"]
[null,null,0,"ابوبكر وحيد ابوبكر هاشم",5,2," 5 / 2 ","ذكر","منقول","مسلم","مصرى","2005-10-15"]
[null,null,0,"احمد رامى سيد سيد",5,2," 5 / 2 ","ذكر","منقول","مسلم","مصرى","2007-09-25"]
[null,null,"م","احمد سمير عزمى رجب",5,2," 5 / 2 ","ذكر","منقول","مسلم","مصرى","2007-04-14"]
[null,null,0,"احمد عبدالرحمن حمدى عاشور",5,2," 5 / 2 ","ذكر","منقول","مسلم","مصرى","2007-06-24"]
[null,null,0,"احمد عمر احمد عواد",5,2," 5 / 2 ","ذكر","منقول","مسلم","مصرى","2007-04-28"]
[null,null,{"$f":"C1288","v":"م"},"احمد محمد عبدالوارث خليل",5,2,{"$f":"\" \"&E1291&\" / \"&F1291&\" \"","v":" 5 / 2 "},"ذكر","منقول","مسلم","مصرى","2007-10-01"]
[null,null,0,"اسلام رمضان محمد زكى",5,2," 5 / 2 ","ذكر","منقول","مسلم","مصرى","2006-10-22"]
[null,null,0,"اسلام عبدالتواب عبدالناصر مهدى",5,2," 5 / 2 ","ذكر","منقول","مسلم","مصرى","2007-05-04"]
[null,null,"م","ايمن سليمان رشدى عبدالمقصود",5,2," 5 / 2 ","ذكر","منقول","مسلم","مصرى","2007-06-03"]
[null,null,0,"بدر طه عبدالوارث خليل ",5,2," 5 / 2 ","ذكر","باق","مسلم","مصرى","2004-09-01"]
[null,null,0,"تامر محمد منتصر محمد",5,2," 5 / 2 ","ذكر","منقول","مسلم","مصرى","2006-11-01"]
[null,null,"م","حامد محمود احمد ابوبكر",5,2," 5 / 2 ","ذكر","منقول","مسلم","مصرى","2006-11-15"]
[null,null,0,"حسن على حسن عبدالسلام",5,2," 5 / 2 ","ذكر","منقول","مسلم","مصرى","2007-01-21"]
[null,null,0,"حمدان عبدالتواب محمد على",5,2," 5 / 2 ","ذكر","باق","مسلم","مصرى","2005-05-13"]
[null,null,"م","خالد عبدالله عبدالحكيم قطب",5,2," 5 / 2 ","ذكر","منقول","مسلم","مصرى","2007-07-11"]
[null,null,0,"خليل محمد شافعى خليل",5,2," 5 / 2 ","ذكر","منقول","مسلم","مصرى","2007-04-11"]
[null,null,0,"رجب طه رجب جمعه ",5,2," 5 / 2 ","ذكر","منقول","مسلم","مصرى","2006-09-15"]
[null,null,"م","زياد عبدالنبى ابراهيم محمد",5,2," 5 / 2 ","ذكر","منقول","مسلم","مصرى","2007-01-09"]
[null,null,0,"سراج على حسن محمد",5,2," 5 / 2 ","ذكر","منقول","مسلم","مصرى","2007-06-01"]
[null,null,0,"سمير محمد سمير سعيد",5,2," 5 / 2 ","ذكر","باق","مسلم","مصرى","2005-12-25"]
[null,null,"م","شعبان ابراهيم رجب سيد",5,2," 5 / 2 ","ذكر","منقول","مسلم","مصرى","2007-05-25"]
[null,null,0,"طارق سلامه رجب محمد",5,2," 5 / 2 ","ذكر","منقول","مسلم","مصرى","2006-03-09"]
[null,null,0,"طه رمضان عاشور عبدالخالق",5,2," 5 / 2 ","ذكر","منقول","مسلم","مصرى","2007-09-12"]
[null,null,"م","عبدالتواب عرفه اسماعيل عبدالعزيز",5,2," 5 / 2 ","ذكر","منقول","مسلم","مصرى","2007-02-17"]
[null,null,0,"عبدالرحمن سامى على عبدالعزيز",5,2," 5 / 2 ","ذكر","منقول","مسلم","مصرى","2007-01-19"]
[null,null,0,"عبدالرحمن محسن عبدالحكيم حسين",5,2," 5 / 2 ","ذكر","منقول","مسلم","مصرى","2007-09-18"]
[null,null,"م","عبدالرحمن محمد محروس محمد",5,2," 5 / 2 ","ذكر","منقول","مسلم","مصرى","2007-01-07"]
[null,null,0,"عبدالله انور صالح محمود",5,2," 5 / 2 ","ذكر","منقول","مسلم","مصرى","2006-11-29"]
[null,null,0,"عبدالله عزت سيد رجب",5,2," 5 / 2 ","ذكر","منقول","مسلم","مصرى","2007-07-24"]
[null,null,"م","عبده سعيد اصلان عبدالنبى ",5,2," 5 / 2 ","ذكر","منقول","مسلم","مصرى","2006-02-13"]
[null,null,0,"على خطاب على السيد",5,2," 5 / 2 ","ذكر","منقول","مسلم","مصرى","2007-06-02"]
[null,null,0,"على محمود محمد محمود",5,2," 5 / 2 ","ذكر","منقول","مسلم","مصرى","2007-09-01"]
[null,null,"م","عمر احمد درويش على",5,2," 5 / 2 ","ذكر","منقول","مسلم","مصرى","2007-10-01"]
[null,null,0,"عمرو عيد عبده على",5,2," 5 / 2 ","ذكر","منقول","مسلم","مصرى","2007-06-13"]
[null,null,0,"كاظم رجب حنفى محمود",5,2," 5 / 2 ","ذكر","منقول","مسلم","مصرى","2007-04-30"]
[null,null,"م","محمد احمد زينهم احمد ",5,2," 5 / 2 ","ذكر","منقول","مسلم","مصرى","2006-09-08"]
[null,null,0,"محمد اسماعيل محمود سيد بركات",5,2," 5 / 2 ","ذكر","منقول","مسلم","مصرى","2007-04-09"]
[null,null,0,"محمد تامر سعيد صديق ",5,2," 5 / 2 ","ذكر","باق","مسلم","مصرى","2006-04-17"]
[null,null,"م","محمد جمعه عيد رمضان",5,2," 5 / 2 ","ذكر","منقول","مسلم","مصرى","2007-07-14"]
[null,null,0,"محمد حسين محمد حسن",5,2," 5 / 2 ","ذكر","منقول","مسلم","مصرى","2006-11-16"]
[null,null,0,"محمد رمضان مرزوق محمود ",5,2," 5 / 2 ","ذكر","حكم قانون","مسلم","مصرى","2006-04-04"]
[null,null,"م","محمد سعيد عبدالخالق طه",5,2," 5 / 2 ","ذكر","منقول","مسلم","مصرى","2007-08-06"]
[null,null,0,"محمد سمير نجدى غرباوى ",5,2," 5 / 2 ","ذكر","منقول","مسلم","مصرى","2006-09-16"]
[null,null,0,"محمد صديق سعيد صديق",5,2," 5 / 2 ","ذكر","منقول","مسلم","مصرى","2007-02-16"]
[null,null,"م","محمد طه فضل توفيق",5,2," 5 / 2 ","ذكر","منقول","مسلم","مصرى","2007-03-03"]
[null,null,0,"محمد عزت عمر محمد",5,2," 5 / 2 ","ذكر","منقول","مسلم","مصرى","2007-08-26"]
[null,null,0,"محمد ناجى محمود مصطفى",5,2," 5 / 2 ","ذكر","منقول","مسلم","مصرى","2007-03-21"]
[null,null,"م","محمود ايمن رجب محمود",5,2," 5 / 2 ","ذكر","منقول","مسلم","مصرى","2007-08-18"]
[null,null,0,"محمود على محمود عبدالمقصود",5,2," 5 / 2 ","ذكر","منقول","مسلم","مصرى","2007-09-17"]
[null,null,0,"محمود محمد كمال محمد",5,2," 5 / 2 ","ذكر","منقول","مسلم","مصرى","2007-05-28"]
[null,null,"م","محمود هشام حسن بيومى",5,2," 5 / 2 ","ذكر","منقول","مسلم","مصرى","2007-06-25"]
[null,null,0,"مصطفى رجب اسماعيل محمد",5,2," 5 / 2 ","ذكر","منقول","مسلم","مصرى","2007-06-29"]
[null,null,0,"موسى عبده عبدالتواب محمود",5,2," 5 / 2 ","ذكر","منقول","مسلم","مصرى","2006-12-22"]
[null,null,"م","نبيل رمضان عيد رمضان",5,2," 5 / 2 ","ذكر","منقول","مسلم","مصرى","2006-10-26"]
[null,null,0,"هانى عماد محمد خليل",5,2," 5 / 2 ","ذكر","منقول","مسلم","مصرى","2006-12-24"]
[null,null,0,"هشام عيد حسن حسين",5,2," 5 / 2 ","ذكر","منقول","مسلم","مصرى","2006-03-22"]
[null,null,"م","وليد عبدالناصر ثابت مرسى",5,2," 5 / 2 ","ذكر","منقول","مسلم","مصرى","2006-11-10"]
[null,null,0,"يوسف حسان على سالم",5,2," 5 / 2 ","ذكر","منقول","مسلم","مصرى","2007-08-01"]
[null,null,0,"يوسف سعيد عبدالباسط سيد",5,2," 5 / 2 ","ذكر","منقول","مسلم","مصرى","2007-09-01"]
[null,null,"م","يوسف عماد حمدى فهمى",5,2," 5 / 2 ","ذكر","منقول","مسلم","مصرى","2007-05-01"]
[null,null,0,"يوسف فرحات ابوالعز عبدالمنعم",5,2," 5 / 2 ","ذكر","منقول","مسلم","مصرى","2007-04-05"]
[null,null,0,"يوسف محمد سعودى محمود",5,2," 5 / 2 ","ذكر","منقول","مسلم","مصرى","2006-12-05"]
[null,null,"م","اروى محمد مجاهد احمد",6,1," 6 / 1 ","أنثى","منقول","مسلم","مصرى","2005-09-26"]
[null,null,0,"اسراء احمد عطيه ضيف الله",6,1," 6 / 1 ","أنثى","منقول","مسلم","مصرى","2006-08-08"]
[null,null,0,"اسماء اسامه صلاح عبدالعال",6,1," 6 / 1 ","أنثى","منقول","مسلم","مصرى","2006-11-01"]
[null,null,"م","اسماء محمد شحات عبدالجواد ",6,1," 6 / 1 ","أنثى","منقول","مسلم","مصرى","2006-06-07"]
[null,null,0,"امل طارق عبدالنبى رياض ",6,1," 6 / 1 ","أنثى","منقول","مسلم","مصرى","2006-07-20"]
[null,null,0,"انجى احمد جمعه يوسف",6,1," 6 / 1 ","أنثى","منقول","مسلم","مصرى","2006-02-10"]
[null,null,"م","ايمان سيد على سيد ",6,1," 6 / 1 ","أنثى","منقول","مسلم","مصرى","2006-06-09"]
[null,null,{"$f":"C1352","v":0},"ايه يوسف سيد احمد محمد    ",6,1,{"$f":"\" \"&E1355&\" / \"&F1355&\" \"","v":" 6 / 1 "},"أنثى","منقول","مسلم","مصرى","2006-08-01"]
[null,null,0,"بسمله هانى صابر اسماعيل ",6,1," 6 / 1 ","أنثى","منقول","مسلم","مصرى","2006-03-17"]
[null,null,"م","جميله احمد عبدالحكيم محمد ",6,1," 6 / 1 ","أنثى","منقول","مسلم","مصرى","2005-10-25"]
[null,null,0,"خلود محمد جمعه محمد ",6,1," 6 / 1 ","أنثى","منقول","مسلم","مصرى","2006-03-03"]
[null,null,0,"دعاء عزت حماده محمد  ",6,1," 6 / 1 ","أنثى","منقول","مسلم","مصرى","2006-03-28"]
[null,null,"م","رحمه حسن عبدالتواب محمود ",6,1," 6 / 1 ","أنثى","منقول","مسلم","مصرى","2006/ 8 /15"]
[null,null,0,"سحر محمد سالم حسين ",6,1," 6 / 1 ","أنثى","منقول","مسلم","مصرى","2006/ 6 /14"]
[null,null,0,"سما خالد سيد عثمان ",6,1," 6 / 1 ","أنثى","منقول","مسلم","مصرى","2006/ 8 /1"]
[null,null,"م","سميره عزت محمد احمد",6,1," 6 / 1 ","أنثى","منقول","مسلم","مصرى","2006/ 6 /14"]
[null,null,0,"سندس ممدوح قدرى ابوبكر",6,1," 6 / 1 ","أنثى","منقول","مسلم","مصرى","2005/ 12 /18"]
[null,null,0,"شروق زين فتحى رزق ",6,1," 6 / 1 ","أنثى","منقول","مسلم","مصرى","2006/ 3 /28"]
[null,null,"م","شهد اكرامى محمد محمود ",6,1," 6 / 1 ","أنثى","منقول","مسلم","مصرى","2006/ 8 /10"]
[null,null,0,"شهد على فتحى عبده ",6,1," 6 / 1 ","أنثى","منقول","مسلم","مصرى","2006/ 6 /10"]
[null,null,0,"شيماء سعد امام حمد ",6,1," 6 / 1 ","أنثى","منقول","مسلم","مصرى","2006/ 5 /18"]
[null,null,"م","صابرين سعيد فضل هاشم ",6,1," 6 / 1 ","أنثى","منقول","مسلم","مصرى","2006/ 7 /29"]
[null,null,0,"علياء رمضان ابوبكر هاشم ",6,1," 6 / 1 ","أنثى","منقول","مسلم","مصرى","2006/ 2 /19"]
[null,null,0,"فاطمه احمد محمد زايد",6,1," 6 / 1 ","أنثى","منقول","مسلم","مصرى","2006-01-01"]
[null,null,"م","فاطمه حسنى عبدالنبى حسن",6,1," 6 / 1 ","أنثى","منقول","مسلم","مصرى","2005/ 10 /27"]
[null,null,0,"فاطمه رجب عبدالغنى محمد ",6,1," 6 / 1 ","أنثى","منقول","مسلم","مصرى","2006/ 3 /16"]
[null,null,0,"فاطمه عبدالفضيل احمد عبدالفضيل ",6,1," 6 / 1 ","أنثى","منقول","مسلم","مصرى","2006/ 7 /25"]
[null,null,"م","فاطمه محمود مهدى عبده",6,1," 6 / 1 ","أنثى","منقول","مسلم","مصرى","2005/ 11 /2"]
[null,null,0,"فلك محمد ابواليزيد محمد ",6,1," 6 / 1 ","أنثى","منقول","مسلم","مصرى","2006/ 6 /15"]
[null,null,0,"فيروز محمود فتحى مكاوى",6,1," 6 / 1 ","أنثى","منقول","مسلم","مصرى","2006-12-01"]
[null,null,"م","كريمه صابر احمد على",6,1," 6 / 1 ","أنثى","منقول","مسلم","مصرى","2004/ 2 /24"]
[null,null,0,"كريمه محمود سيد عبدالمقصود",6,1," 6 / 1 ","أنثى","منقول","مسلم","مصرى","2006-01-04"]
[null,null,0,"مريم احمد فتحى احمد ",6,1," 6 / 1 ","أنثى","منقول","مسلم","مصرى","2006/ 8 /24"]
[null,null,"م","مريم حازم سيد حسين ",6,1," 6 / 1 ","أنثى","منقول","مسلم","مصرى","2006/ 6 /22"]
[null,null,0,"مريم عبدالنبى سيد عبدالحكيم ",6,1," 6 / 1 ","أنثى","منقول","مسلم","مصرى","2006/ 8 /4"]
[null,null,0,"مريم يحيى رمضان منصور ",6,1," 6 / 1 ","أنثى","منقول","مسلم","مصرى","2006/ 9 /3"]
[null,null,"م","ملك ماجد صابر اسماعيل",6,1," 6 / 1 ","أنثى","منقول","مسلم","مصرى","2006/ 9 /2"]
[null,null,0,"منه احمد حامد محمد ",6,1," 6 / 1 ","أنثى","منقول","مسلم","مصرى","2005/ 7 /5"]
[null,null,0,"منه عادل على عبدالعزيز",6,1," 6 / 1 ","أنثى","منقول","مسلم","مصرى","2005/ 11 /19"]
[null,null,"م","نانسى حسن سعد داود",6,1," 6 / 1 ","أنثى","حكم قانون","مسلم","مصرى","2003/ 6 /4"]
[null,null,0,"نجلاء مصطفى صادق سيد ",6,1," 6 / 1 ","أنثى","منقول","مسلم","مصرى","2006/ 9 /1"]
[null,null,0,"ندا حمدى محمد دسوقى  ",6,1," 6 / 1 ","أنثى","منقول","مسلم","مصرى","2006/ 9 /22"]
[null,null,"م","ندا هانى محمد عبدالله ",6,1," 6 / 1 ","أنثى","منقول","مسلم","مصرى","2006/ 6 /9"]
[null,null,0,"ندى عبدالرحمن حمدى عاشور",6,1," 6 / 1 ","أنثى","منقول","مسلم","مصرى","2005-11-17"]
[null,null,0,"ندى محمد شافعى خليل",6,1," 6 / 1 ","أنثى","منقول","مسلم","مصرى","2005/ 7 /31"]
[null,null,"م","نورا ابراهيم عبدالخالق محفوظ ",6,1," 6 / 1 ","أنثى","منقول","مسلم","مصرى","2006/ 6 /27"]
[null,null,0,"هاجر سعيد حسن محمود",6,1," 6 / 1 ","أنثى","منقول","مسلم","مصرى","2006-07-21"]
[null,null,0,"هدى حسانين رجب عبدالعزيز ",6,1," 6 / 1 ","أنثى","منقول","مسلم","مصرى","2006/ 9 /25"]
[null,null,"م","هدى عبدالشافى محمد جمعه ",6,1," 6 / 1 ","أنثى","منقول","مسلم","مصرى","2006/ 6 /17"]
[null,null,0,"ياسمين عزت حنفى محمود ",6,1," 6 / 1 ","أنثى","منقول","مسلم","مصرى","2005/ 2 /10"]
[null,null,0,"احمد سعيد احمد عبدالحميد ",6,1," 6 / 1 ","ذكر","منقول","مسلم","مصرى","2006/ 9 /5"]
[null,null,"م","احمد صبري محمد ابراهيم ",6,1," 6 / 1 ","ذكر","منقول","مسلم","مصرى","2006/ 1 /13"]
[null,null,0,"احمد فارس فرج عبدالمقصود ",6,1," 6 / 1 ","ذكر","منقول","مسلم","مصرى","2006/ 7 /10"]
[null,null,0,"اسامه جمال عبدالناصر عبدالغفار",6,1," 6 / 1 ","ذكر","منقول","مسلم","مصرى","2005/ 7 /31"]
[null,null,"م","اشرف سمير نعمان عبدالمهدى",6,1," 6 / 1 ","ذكر","منقول","مسلم","مصرى","2006/ 4 /17"]
[null,null,0,"بلال جمال محمد محمد ",6,1," 6 / 1 ","ذكر","منقول","مسلم","مصرى","2006/ 6 /20"]
[null,null,0,"جمال عبدالناصر سيد عبدالحميد",6,1," 6 / 1 ","ذكر","منقول","مسلم","مصرى","2006-02-17"]
[null,null,"م","حسن اشرف فتحى احمد ",6,1," 6 / 1 ","ذكر","منقول","مسلم","مصرى","2005/ 9 /1"]
[null,null,0,"حسين جمال شعبان عبدالحميد ",6,1," 6 / 1 ","ذكر","منقول","مسلم","مصرى","2006/ 1 /28"]
[null,null,0,"حمدى احمد رمضان شاكر ",6,1," 6 / 1 ","ذكر","منقول","مسلم","مصرى","2006/ 5 /30"]
[null,null,"م","رمضان وليد سيد محمود",6,1," 6 / 1 ","ذكر","منقول","مسلم","مصرى","2006/ 1 /17"]
[null,null,0,"سامى عبدالعزيز عبدالله جوده",6,1," 6 / 1 ","ذكر","منقول","مسلم","مصرى","2006-02-05"]
[null,null,0,"صبرى عبدالحميد سيد عبدالحميد",6,1," 6 / 1 ","ذكر","منقول","مسلم","مصرى","2005/ 3 /25"]
[null,null,"م","طارق سيد رمضان سيد  ",6,1," 6 / 1 ","ذكر","منقول","مسلم","مصرى","2006/ 4 /22"]
[null,null,0,"عبدالرحمن تامر رفعت بهنساوى ",6,1," 6 / 1 ","ذكر","منقول","مسلم","مصرى","2006/ 7 /15"]
[null,null,0,"عبدالرحمن سمير عبدالعال احمد",6,1," 6 / 1 ","ذكر","منقول","مسلم","مصرى","2005/ 12 /11"]
[null,null,"م","عبدالرحمن عبدالتواب احمد عاشور ",6,1," 6 / 1 ","ذكر","منقول","مسلم","مصرى","2006/ 3 /6"]
[null,null,0,"عبدالرحمن محمد فاروق والى",6,1," 6 / 1 ","ذكر","منقول","مسلم","مصرى","2006-06-19"]
[null,null,0,"عبدالرحمن هشام ابوبكر محمود ",6,1," 6 / 1 ","ذكر","منقول","مسلم","مصرى","2006/ 4 /5"]
[null,null,"م","عبدالله محمود محمد محمود",6,1," 6 / 1 ","ذكر","منقول","مسلم","مصرى","2006-01-30"]
[null,null,0,"عبده حسانى عبدالحكيم صادق ",6,1," 6 / 1 ","ذكر","منقول","مسلم","مصرى","2005/ 1 /1"]
[null,null,{"$f":"C1416","v":0},"على عيد قدرى محمود ",6,1,{"$f":"\" \"&E1419&\" / \"&F1419&\" \"","v":" 6 / 1 "},"ذكر","منقول","مسلم","مصرى","2005/ 11 /22"]
[null,null,"م","عمر شعبان يوسف سيد",6,1," 6 / 1 ","ذكر","منقول","مسلم","مصرى","2006/ 3 /25"]
[null,null,0,"عمرو طه سيد على سيد",6,1," 6 / 1 ","ذكر","منقول","مسلم","مصرى","2005/ 10 /4"]
[null,null,0,"فارس عبدالوهاب رمضان هنداوى",6,1," 6 / 1 ","ذكر","منقول","مسلم","مصرى","2006/ 9 /19"]
[null,null,"م","كريم حمدى على حسين",6,1," 6 / 1 ","ذكر","منقول","مسلم","مصرى","2006-01-21"]
[null,null,0,"كريم عزت حنفى محمود",6,1," 6 / 1 ","ذكر","منقول","مسلم","مصرى","2005/ 2 /10"]
[null,null,0,"كريم محمود سعودى محمود",6,1," 6 / 1 ","ذكر","منقول","مسلم","مصرى","2005/ 5 /18"]
[null,null,"م","مجدى حامد عبدالفتاح عبداللا ",6,1," 6 / 1 ","ذكر","منقول","مسلم","مصرى","2006/ 8 /29"]
[null,null,0,"محمد حسنى جمعه عبدالله",6,1," 6 / 1 ","ذكر","منقول","مسلم","مصرى","2005/ 10 /6"]
[null,null,0,"محمد رمضان محمد ديب",6,1," 6 / 1 ","ذكر","باق","مسلم","مصرى","2003-04-16"]
[null,null,"م","محمد سيد جازى فرج ",6,1," 6 / 1 ","ذكر","منقول","مسلم","مصرى","2006/ 8 /11"]
[null,null,0,"محمود جمال عبدالناصر محمود ",6,1," 6 / 1 ","ذكر","منقول","مسلم","مصرى","2006/ 4 /5"]
[null,null,0,"مصطفى اسماعيل حسن حسن ",6,1," 6 / 1 ","ذكر","منقول","مسلم","مصرى","2005/ 9 /30"]
[null,null,"م","مصطفى عزام امين احمد ",6,1," 6 / 1 ","ذكر","منقول","مسلم","مصرى","2006/ 7 /4"]
[null,null,0,"مصطفى وليد محمد على",6,1," 6 / 1 ","ذكر","منقول","مسلم","مصرى","2005/ 9 /13"]
[null,null,0,"نادى عبدالناصر رمضان اسماعيل",6,1," 6 / 1 ","ذكر","منقول","مسلم","مصرى","2005/ 3 /15"]
[null,null,"م","هشام وحيد عبدالحكيم محمد ",6,1," 6 / 1 ","ذكر","منقول","مسلم","مصرى","2006/ 5 /15"]
[null,null,0,"يوسف رجب على محمد ",6,1," 6 / 1 ","ذكر","منقول","مسلم","مصرى","2006/ 5 /28"]
[null,null,0,"يوسف سيد سيد محمد ",6,1," 6 / 1 ","ذكر","منقول","مسلم","مصرى","2006/ 6 /26"]
[null,null,"م","يوسف محمد حسن حسن",6,1," 6 / 1 ","ذكر","منقول","مسلم","مصرى","2006/ 1 /15"]
[null,null,0,"يوسف محمد محمد محمود ",6,1," 6 / 1 ","ذكر","منقول","مسلم","مصرى","2006/ 8 /31"]
[null,null,0,"ازهار محمد عبدالخالق طه الشيمى",6,2," 6 / 2 ","أنثى","منقول","مسلم","مصرى","2006-04-03"]
[null,null,"م","اسراء عزت محمد على ",6,2," 6 / 2 ","أنثى","منقول","مسلم","مصرى","2006-08-19"]
[null,null,0,"اسماء عادل عبدالفتاح شاكر",6,2," 6 / 2 ","أنثى","منقول","مسلم","مصرى","2006-02-21"]
[null,null,0,"امانى عيد عبده مبروك",6,2," 6 / 2 ","أنثى","منقول","مسلم","مصرى","2005-11-14"]
[null,null,"م","امل محمد ياسين ابراهيم ",6,2," 6 / 2 ","أنثى","منقول","مسلم","مصرى","2006-07-30"]
[null,null,0,"ايمان احمد سعودى محمود ",6,2," 6 / 2 ","أنثى","منقول","مسلم","مصرى","2006-09-26"]
[null,null,0,"ايه عزت قدرى محمود",6,2," 6 / 2 ","أنثى","منقول","مسلم","مصرى","2005-10-18"]
[null,null,"م","بسمله رامى سيد سيد",6,2," 6 / 2 ","أنثى","منقول","مسلم","مصرى","2006-05-26"]
[null,null,0,"تبارك احمد عاشور محمد",6,2," 6 / 2 ","أنثى","منقول","مسلم","مصرى","2006-06-10"]
[null,null,0,"حبيبه شكرى محمد اسماعيل",6,2," 6 / 2 ","أنثى","منقول","مسلم","مصرى","2005-05-02"]
[null,null,"م","دعاء جابر عبدالخالق محفوظ ",6,2," 6 / 2 ","أنثى","منقول","مسلم","مصرى","2006-05-11"]
[null,null,0,"دعاء على زيدان عثمان ",6,2," 6 / 2 ","أنثى","منقول","مسلم","مصرى","2005-12-19"]
[null,null,0,"رحاب محمد فرحات حسن ",6,2," 6 / 2 ","أنثى","منقول","مسلم","مصرى","2006/ 2 /14"]
[null,null,"م","رضوى رمضان سالم حسين",6,2," 6 / 2 ","أنثى","منقول","مسلم","مصرى","2005/ 12 /17"]
[null,null,0,"سعاد فايز عبدالخالق طه",6,2," 6 / 2 ","أنثى","منقول","مسلم","مصرى","2005-11-26"]
[null,null,0,"سما سعيد عاشور عبدالصمد",6,2," 6 / 2 ","أنثى","منقول","مسلم","مصرى","2005/ 11 /1"]
[null,null,"م","سندس حسين شعبان كمال ",6,2," 6 / 2 ","أنثى","منقول","مسلم","مصرى","2006/ 4 /25"]
[null,null,0,"شروق ابوبكر شيمى عبدربه ",6,2," 6 / 2 ","أنثى","منقول","مسلم","مصرى","2005/ 11 /19"]
[null,null,0,"شروق محمد حسين عبدالحكيم",6,2," 6 / 2 ","أنثى","منقول","مسلم","مصرى","2005/ 9 /25"]
[null,null,"م","شهد شريف عيد رمضان",6,2," 6 / 2 ","أنثى","منقول","مسلم","مصرى","2006/ 9 /10"]
[null,null,0,"شهد محمود محمد اسماعيل ",6,2," 6 / 2 ","أنثى","منقول","مسلم","مصرى","2006/ 7 /7"]
[null,null,0,"شيماء احمد ابراهيم دسوقى ",6,2," 6 / 2 ","أنثى","منقول","مسلم","مصرى","2006/ 9 /12"]
[null,null,"م","شيماء صابر محمود احمد ",6,2," 6 / 2 ","أنثى","منقول","مسلم","مصرى","2006/ 8 /25"]
[null,null,0,"صفاء سعيد سيد محمد",6,2," 6 / 2 ","أنثى","منقول","مسلم","مصرى","2005/ 12 /1"]
[null,null,0,"فاطمه ابراهيم سعد عاشور",6,2," 6 / 2 ","أنثى","حكم قانون","مسلم","مصرى","2005/ 3 /14"]
[null,null,"م","فاطمه بحيرى عبدالهادى والى ",6,2," 6 / 2 ","أنثى","منقول","مسلم","مصرى","2006/ 7 /18"]
[null,null,0,"فاطمه حموده سيد عبدالحكيم ",6,2," 6 / 2 ","أنثى","منقول","مسلم","مصرى","2006/ 3 /25"]
[null,null,0,"فاطمه سيد ابراهيم على ",6,2," 6 / 2 ","أنثى","منقول","مسلم","مصرى","2006/ 7 /17"]
[null,null,"م","فاطمه عبدالناصر طه احمد ",6,2," 6 / 2 ","أنثى","منقول","مسلم","مصرى","2006/ 9 /24"]
[null,null,0,"فتحيه انور منصور زكى",6,2," 6 / 2 ","أنثى","منقول","مسلم","مصرى","2005/ 3 /6"]
[null,null,0,"فوزيه رفعت عبدالحى عبدالمقصود",6,2," 6 / 2 ","أنثى","منقول","مسلم","مصرى","2006/ 5 /23"]
[null,null,"م","قوت عادل عبدالفتاح عبدالصمد ",6,2," 6 / 2 ","أنثى","منقول","مسلم","مصرى","2006/ 5 /25"]
[null,null,0,"كريمه محمد صابر جمعه",6,2," 6 / 2 ","أنثى","منقول","مسلم","مصرى","2005/ 12 /6"]
[null,null,0,"مريم جمعه احمد ابراهيم ",6,2," 6 / 2 ","أنثى","منقول","مسلم","مصرى","2006/ 6 /26"]
[null,null,"م","مريم سعودى فهمى محمود ",6,2," 6 / 2 ","أنثى","منقول","مسلم","مصرى","2006/ 3 /26"]
[null,null,0,"مريم صابر محمد حسين",6,2," 6 / 2 ","أنثى","منقول","مسلم","مصرى","2005-11-17"]
[null,null,0,"مريم محمود احمد محمد ",6,2," 6 / 2 ","أنثى","منقول","مسلم","مصرى","2006/ 1 /30"]
[null,null,"م","منة الله هانى عاشور جمعه ",6,2," 6 / 2 ","أنثى","منقول","مسلم","مصرى","2006/ 3 /21"]
[null,null,0,"منه عادل رضوان حسن",6,2," 6 / 2 ","أنثى","منقول","مسلم","مصرى","2005/ 11 /19"]
[null,null,0,"مياده عيد حسن احمد ",6,2," 6 / 2 ","أنثى","منقول","مسلم","مصرى","2006/ 2 /11"]
[null,null,"م","نجلاء عماد يوسف محمود ",6,2," 6 / 2 ","أنثى","منقول","مسلم","مصرى","2006/ 9 /18"]
[null,null,0,"نجوى محمد ابراهيم محمد ",6,2," 6 / 2 ","أنثى","منقول","مسلم","مصرى","2005/ 11 /22"]
[null,null,0,"ندا عبدالنبى سليمان فرج ",6,2," 6 / 2 ","أنثى","منقول","مسلم","مصرى","2005/ 6 /6"]
[null,null,{"$f":"C1480","v":"م"},"ندى سمير منصور زكى",6,2,{"$f":"\" \"&E1483&\" / \"&F1483&\" \"","v":" 6 / 2 "},"أنثى","منقول","مسلم","مصرى","2005/ 9 /25"]
[null,null,0,"نسمه عبدالتواب شعبان سيد احمد ",6,2," 6 / 2 ","أنثى","منقول","مسلم","مصرى","2006/ 6 /5"]
[null,null,0,"نورا عزت عبدالتواب اسماعيل",6,2," 6 / 2 ","أنثى","منقول","مسلم","مصرى","2004-12-15"]
[null,null,"م","هاجر عماد محمد محمود",6,2," 6 / 2 ","أنثى","منقول","مسلم","مصرى","2005/ 10 /31"]
[null,null,0,"هدير عبدالتواب خميس اسماعيل",6,2," 6 / 2 ","أنثى","منقول","مسلم","مصرى","2006/ 8 /25"]
[null,null,0,"ياسمين شعبان ربيع عبدالمقصود ",6,2," 6 / 2 ","أنثى","منقول","مسلم","مصرى","2006/ 8 /1"]
[null,null,"م","ابوالسعود اشرف صلاح سيد ",6,2," 6 / 2 ","ذكر","منقول","مسلم","مصرى","2006/ 3 /16"]
[null,null,0,"احمد صابر عبدالواحد جمعه ",6,2," 6 / 2 ","ذكر","منقول","مسلم","مصرى","2006/ 1 /1"]
[null,null,0,"احمد عزت جمعه مصطفى ",6,2," 6 / 2 ","ذكر","منقول","مسلم","مصرى","2006/ 1 /12"]
[null,null,"م","احمد وليد عادل امام ",6,2," 6 / 2 ","ذكر","منقول","مسلم","مصرى","2006/ 3 /3"]
[null,null,0,"اسلام سعيد حسن سعيد ",6,2," 6 / 2 ","ذكر","منقول","مسلم","مصرى","2006/ 5 /10"]
[null,null,0,"بلال رمضان محمد ابراهيم ",6,2," 6 / 2 ","ذكر","منقول","مسلم","مصرى","2006/ 7 /28"]
[null,null,"م","بلال وحيد عبدالحكيم محمد ",6,2," 6 / 2 ","ذكر","منقول","مسلم","مصرى","2006/ 5 /15"]
[null,null,0,"جمعه حسن سعيد حسن ",6,2," 6 / 2 ","ذكر","منقول","مسلم","مصرى","2006/ 3 /14"]
[null,null,0,"حسن فكرى حسن امام ",6,2," 6 / 2 ","ذكر","منقول","مسلم","مصرى","2006/ 4 /1"]
[null,null,"م","حفنى محمود رجب محمد",6,2," 6 / 2 ","ذكر","منقول","مسلم","مصرى","2006/ 4 /8"]
[null,null,0,"زياد احمد شعبان محفوظ",6,2," 6 / 2 ","ذكر","منقول","مسلم","مصرى","2006/ 8 /9"]
[null,null,0,"سمير شعبان عبدالرحمن عبدالله ",6,2," 6 / 2 ","ذكر","منقول","مسلم","مصرى","2006/ 4 /24"]
[null,null,"م","شريف صابر رشدى عبدالمقصود ",6,2," 6 / 2 ","ذكر","منقول","مسلم","مصرى","2006/ 8 /4"]
[null,null,0,"صلاح سعد سليم عاشور",6,2," 6 / 2 ","ذكر","منقول","مسلم","مصرى","2005/ 9 /14"]
[null,null,0,"طارق عبدالنبى محمد غريب ",6,2," 6 / 2 ","ذكر","منقول","مسلم","مصرى","2006/ 7 /16"]
[null,null,"م","عبدالرحمن حظ رمضان سيد ",6,2," 6 / 2 ","ذكر","منقول","مسلم","مصرى","2005/ 11 /3"]
[null,null,0,"عبدالرحمن طه منصور يوسف",6,2," 6 / 2 ","ذكر","منقول","مسلم","مصرى","2006/ 9 /15"]
[null,null,0,"عبدالرحمن عبده داود عبدالحميد ",6,2," 6 / 2 ","ذكر","منقول","مسلم","مصرى","2006/ 3 /16"]
[null,null,"م","عبدالرحمن هانى على على ",6,2," 6 / 2 ","ذكر","منقول","مسلم","مصرى","2006/ 9 /27"]
[null,null,0,"عبدالله جابر عبدالرؤف جمعه ",6,2," 6 / 2 ","ذكر","منقول","مسلم","مصرى","2006/ 8 /25"]
[null,null,0,"عبدالوهاب علاء الدين عبدالله محمد ",6,2," 6 / 2 ","ذكر","منقول","مسلم","مصرى","2005/ 11 /27"]
[null,null,"م","عزت رمضان عبدالجواد محمد",6,2," 6 / 2 ","ذكر","منقول","مسلم","مصرى","2006/ 2 /10"]
[null,null,0,"على فرحات عبدالحليم جمعه ",6,2," 6 / 2 ","ذكر","منقول","مسلم","مصرى","2006/ 3 /20"]
[null,null,0,"عمر عبدالله سيد عبدالموجود ",6,2," 6 / 2 ","ذكر","منقول","مسلم","مصرى","2006/ 4 /4"]
[null,null,"م","عمرو وحيد ابوبكر هاشم",6,2," 6 / 2 ","ذكر","منقول","مسلم","مصرى","2005/ 10 /15"]
[null,null,0,"فاروق عبدالنبى فاروق والى",6,2," 6 / 2 ","ذكر","منقول","مسلم","مصرى","2006-08-12"]
[null,null,0,"كريم رمضان محمد ديب",6,2," 6 / 2 ","ذكر","منقول","مسلم","مصرى","2005-10-15"]
[null,null,"م","كريم محمد رجب داود ",6,2," 6 / 2 ","ذكر","منقول","مسلم","مصرى","2006/ 8 /18"]
[null,null,0,"كمال محمود عمار محمود ",6,2," 6 / 2 ","ذكر","منقول","مسلم","مصرى","2006/ 6 /4"]
[null,null,0,"محمد حمدى محمد عبدالعزيز ",6,2," 6 / 2 ","ذكر","منقول","مسلم","مصرى","2006/ 4 /20"]
[null,null,"م","محمد صابر عبده على",6,2," 6 / 2 ","ذكر","منقول","مسلم","مصرى","2006/ 3 /14"]
[null,null,0,"محمود احمد بشير فرج ",6,2," 6 / 2 ","ذكر","منقول","مسلم","مصرى","2005/ 12 /1"]
[null,null,0,"محمود طه محمود على ",6,2," 6 / 2 ","ذكر","منقول","مسلم","مصرى","2006/ 5 /17"]
[null,null,"م","مصطفى رمضان محمد ابراهيم ",6,2," 6 / 2 ","ذكر","منقول","مسلم","مصرى","2006/ 7 /28"]
[null,null,0,"مصطفى محمد ابراهيم محمد",6,2," 6 / 2 ","ذكر","باق","مسلم","مصرى","2005/ 8 /17"]
[null,null,0,"مصطفى محمد سيد احمد",6,2," 6 / 2 ","ذكر","منقول","مسلم","مصرى","2006/ 1 /19"]
[null,null,"م","ممدوح رجب محمد ديب ",6,2," 6 / 2 ","ذكر","منقول","مسلم","مصرى","2005/ 12 /4"]
[null,null,0,"هانى اشرف رجب عبدالحكيم",6,2," 6 / 2 ","ذكر","منقول","مسلم","مصرى","2006/ 1 /23"]
[null,null,0,"يوسف ايمن رجب محمود ",6,2," 6 / 2 ","ذكر","منقول","مسلم","مصرى","2005/ 4 /17"]
[null,null,"م","يوسف رمضان يوسف محمود ",6,2," 6 / 2 ","ذكر","منقول","مسلم","مصرى","2006/ 6 /8"]
[null,null,0,"يوسف عبدالتواب عبدالناصر مهدى",6,2," 6 / 2 ","ذكر","منقول","مسلم","مصرى","2005-02-05"]
[null,null,0,"يوسف محمد عبدالتواب معوض",6,2," 6 / 2 ","ذكر","منقول","مسلم","مصرى","2005/ 10 /19"]
[null,null,"م","يوسف مصطفى عبدالخالق طه",6,2," 6 / 2 ","ذكر","منقول","مسلم","مصرى","2006-02-12"]

{"sheet":"مواظبة","index":1,"n_rows":105,"n_cols":256,"rows_kept":105,"cut":false,"hidden":false,"merged":[[3,34,3,35],[1,2,1,19],[0,0,0,1],[1,0,1,1],[2,0,2,1],[0,33,0,35],[1,33,1,35],[1,22,1,29],[1,20,1,21],[3,0,4,0],[3,1,4,1],[3,33,4,33]]}
[null,null,null,null,null,null,null,null,null,null,null,null,null,null,null,null,null,null,null,null,null,null,null,null,null,null,null,null,null,null,null,null,null,"الفصل",null,null,"الشهر","السنة"," 1 / 1 ","2018-03-01",null,null,null,null,null,null,null,null,null,null,null,null,null,null,null,null,null,null,null,null,null,null,null,null,null,null,null,null,null,null,null,null,null,null,null,null,null,null,null,null,null,null,null,null,null,null,null,null,null,null,null,null,null,null,null,null,null,null,null,null,null,null,null,null,null,null,null,null,null,null,null,null,null,null,null,null,null,null,null,null,null,null,null,null,null,null,null,null,null,null,null,null,null,null,null,null,null,null,null,null,null,null,null,null,null,null,null,null,null,null,null,null,null,null,null,null,null,null,null,null,null,null,null,null,null,null,null,null,null,null,null,null,null,null,null,null,null,null,null,null,null,null,null,null,null,null,null,null,null,null,null,null,null,null,null,null,null,null,null,null,null,null,null,null,null,null,null,null,null,null,null,null,null,null,null,null,null,null,null,null,null,null,null,null,null,null,null,null,null,null,null,null,null,null,null,null,null,null,null,null,null,null,null,null,null,null,null,null,null,null,null,null,null,null,null,"اسم الفصل"]
[null,null," دفتــــــر الحضــــور والمواظبـــة (( 5 سلــوك )) الخـــاص بتـلاميــذ  فصــل ",null,null,null,null,null,null,null,null,null,null,null,null,null,null,null,null,null,{"$f":"AH2","v":" 1 / 2 "},null,{"$f":"\"عـن شهــر \"& VLOOKUP($AK$2,{1,\"ينايـر\";2,\"فبرايـر\";3,\"مـارس\";4,\"إبريـل\";5,\"مايـو\";6,\"يونيـو\";7,\"يوليـو\";8,\"أغسطـس\";9,\"سبتمبـر\";10,\"أكتوبـر\";11,\"نوفمبـر\";12,\"ديسمبـر\"},2,0)&\" \"&$AL$2&\" م\"","v":"عـن شهــر إبريـل 2018 م"},null,null,null,null,null,null,null,null,null,null," 1 / 2 ",null,null,4,2018," 1 / 2 ",null,null,null,null,null,null,null,null,null,null,null,null,null,null,null,null,null,null,null,null,null,null,null,null,null,null,null,null,null,null,null,null,null,null,null,null,null,null,null,null,null,null,null,null,null,null,null,null,null,null,null,null,null,null,null,null,null,null,null,null,null,null,null,null,null,null,null,null,null,null,null,null,null,null,null,null,null,null,null,null,null,null,null,null,null,null,null,null,null,null,null,null,null,null,null,null,null,null,null,null,null,null,null,null,null,null,null,null,null,null,null,null,null,null,null,null,null,null,null,null,null,null,null,null,null,null,null,null,null,null,null,null,null,null,null,null,null,null,null,null,null,null,null,null,null,null,null,null,null,null,null,null,null,null,null,null,null,null,null,null,null,null,null,null,null,null,null,null,null,null,null,null,null,null,null,null,null,null,null,null,null,null,null,null,null,null,null,null,null,null,null,null,null,null,null,null,null,null,null,null,null,null,null,null,null,null,null,null,null,null,null,null,null,null,null,null," 1 / 2 "]
[null,null,null,null,null,null,null,null,null,null,null,null,null,null,null,null,null,null,null,null,null,null,null,null,null,null,null,null,null,null,null,null,null,null,null,null,null,null," 1 / 3 "]
["م","الاســـــــــــــــم",{"$f":"C5","v":"2018-03-01"},{"$f":"D5","v":"2018-03-02"},"2018-03-03","2018-03-04","2018-03-05","2018-03-06","2018-03-07","2018-03-08","2018-03-09","2018-03-10","2018-03-11","2018-03-12","2018-03-13","2018-03-14","2018-03-15","2018-03-16","2018-03-17","2018-03-18","2018-03-19","2018-03-20","2018-03-21",{"$f":"X5","v":"2018-03-22"},"2018-03-23","2018-03-24","2018-03-25","2018-03-26","2018-03-27","2018-03-28","2018-03-29","2018-03-30","2018-03-31","المجمــوع",{"$f":"\" \"& VLOOKUP($AK$2,{1,\"ينايـر\";2,\"فبرايـر\";3,\"مـارس\";4,\"إبريـل\";5,\"مايـو\";6,\"يونيـو\";7,\"يوليـو\";8,\"أغسطـس\";9,\"سبتمبـر\";10,\"أكتوبـر\";11,\"نوفمبـر\";12,\"ديسمبـر\"},2,0)&\" \"&$AL$2&\" م\"","v":" إبريـل 2018 م"},null,null,null," 2 / 2 "]
[null,null,{"$f":"AN1","v":"2018-03-01"},{"$f":"C5+1","v":"2018-03-02"},{"$f":"D5+1","v":"2018-03-03"},"2018-03-04","2018-03-05","2018-03-06","2018-03-07","2018-03-08","2018-03-09","2018-03-10","2018-03-11","2018-03-12","2018-03-13","2018-03-14","2018-03-15","2018-03-16","2018-03-17","2018-03-18","2018-03-19","2018-03-20","2018-03-21",{"$f":"W5+1","v":"2018-03-22"},"2018-03-23","2018-03-24","2018-03-25","2018-03-26","2018-03-27","2018-03-28","2018-03-29","2018-03-30","2018-03-31",null,"بعـــذر","بدون عذر",null,null," 2 / 3 "]
[null,"اســـــــم التـلميذ",null,null,null,null,null,null,null,null,null,null,null,null,null,null,null,null,null,null,null,null,null,null,null,null,null,null,null,null,null,null,null,null,null,null,null,null," 2 / 4 "]
[1,"اسراء عبدالله رشدى على",null,null,null,null,null,null,null,null,null,null,null,null,null,null,null,null,null,null,null,null,null,null,null,null,null,null,null,null,null,null,null,null,null,null,null,null," 3 / 1 "]
[2,"ايمان ابوزيد عبدالمقصود سيد",null,null,null,null,null,null,null,null,null,null,null,null,null,null,null,null,null,null,null,null,null,null,null,null,null,null,null,null,null,null,null,null,null,null,null,null," 3 / 2 "]
[3,"ايه عكاشه كامل عكاشه",null,null,null,null,null,null,null,null,null,null,null,null,null,null,null,null,null,null,null,null,null,null,null,null,null,null,null,null,null,null,null,null,null,null,null,null," 3 / 3 "]
[4,"بسنت جمعه صبرى جمعه",null,null,null,null,null,null,null,null,null,null,null,null,null,null,null,null,null,null,null,null,null,null,null,null,null,null,null,null,null,null,null,null,null,null,null,null," 4 / 1 "]
[5,"جميله اشرف احمد عكاشه",null,null,null,null,null,null,null,null,null,null,null,null,null,null,null,null,null,null,null,null,null,null,null,null,null,null,null,null,null,null,null,null,null,null,null,null," 4 / 2 "]
[6,"جنى حازم سيد محمد",null,null,null,null,null,null,null,null,null,null,null,null,null,null,null,null,null,null,null,null,null,null,null,null,null,null,null,null,null,null,null,null,null,null,null,null," 4 / 3 "]
[7,"جنى محمد عويس محمد",null,null,null,null,null,null,null,null,null,null,null,null,null,null,null,null,null,null,null,null,null,null,null,null,null,null,null,null,null,null,null,null,null,null,null,null," 5 / 1 "]
[8,"جوليا معروف صابر هنداوى",null,null,null,null,null,null,null,null,null,null,null,null,null,null,null,null,null,null,null,null,null,null,null,null,null,null,null,null,null,null,null,null,null,null,null,null," 5 / 2 "]
[9,"حبيبه حازم رمضان حسين",null,null,null,null,null,null,null,null,null,null,null,null,null,null,null,null,null,null,null,null,null,null,null,null,null,null,null,null,null,null,null,null,null,null,null,null," 6 / 1 "]
[10,"حبيبه على حسنى احمد",null,null,null,null,null,null,null,null,null,null,null,null,null,null,null,null,null,null,null,null,null,null,null,null,null,null,null,null,null,null,null,null,null,null,null,null," 6 / 2 "]
[11,"حنان احمد عبدالرحمن غنيم"]
[12,"دينا احمد عبدالحق سيد"]
[13,"رحمه عاشور رمضان ابوسريع"]
[14,"رضوه خالد طه ابراهيم"]
[15,"رودينا اسماعيل عبدالوهاب اسماعيل"]
[16,"زينب رمضان حفنى سيد"]
[17,"ساميه رجب ثابت ثابت"]
[18,"سهى صلاح محمود محمد"]
[19,"شروق قدرى حمدى قدرى"]
[20,"شهد احمد ربيع عبدالمعطى"]
[21,"شهد رجب امام عبدالحكيم"]
[22,"شهنده اسعد على محمد"]
[23,"عفاف صابر محمود احمد"]
[24,"فاطمه حسن على سالم"]
[25,"فاطمه فاروق فتحى سيد"]
[26,"فرحه اشرف مرزوق عابد"]
[27,"كريمه محمود سعودى محمود"]
[28,"ماجده اسماعيل محمود سيد"]
[29,"مروه محمود محمد اسماعيل"]
[30,"مريم جمال شعبان عبدالحميد"]
[31,"مريم مؤمن عبدالمنعم احمد"]
[32,"مريم وليد محمد محمود"]
[33,"ملك شعبان عبدالكريم سيد"]
[34,"ملك محمود شعبان عبدالحميد"]
[35,"منار سعودى فهمى محمود"]
[36,"منى احمد عبدالحق سيد"]
[37,"مي عماد فوزي عبدالله"]
[38,"ندى رجب احمد خميس"]
[39,"ندى عزت حماد عبدالفتاح"]
[40,"ندى يحى رمضان منصور"]
[41,"نعمه خليل عبدالتواب خليل"]
[42,"نورا صابر ابوالغيط على"]
[43,"نيره احمد جمال محمد"]
[44,"هناء علاء محمد رياض"]
[45,"ياسمين نصر ابراهيم حسن"]
[46,"ابراهيم صبرى عبدالخالق عبدالفتاح"]
[47,"احمد شكرى مصطفى رجب"]
[48,"احمد عزت سيد على"]
[49,"احمد محمد منتصر محمد"]
[50,"اسامه محمد محمد طه"]
[51,"باسم عبدالمقصود سيد عبدالمقصود"]
[52,"بلال عبدالسلام سلامه حسن"]
[53,"جمال عاطف سيد احمد فرغل"]
[54,"حامد عبدالفتاح عادل عبدالفتاح"]
[55,"حسنى خالد احمد حسنى"]
[56,"حمدى محمود محمد محمود"]
[57,"رمضان صبرى رمضان خميس"]
[58,"زياد اسماعيل عبده مبروك"]
[59,"زياد محمد سيد محمد"]
[60,"سراج سعيد عبدالخالق طه"]
[61,"سيد صالح محمود يوسف"]
[62,"شيمى سيد عبدالتواب سيد"]
[63,"صبرى سعيد صبرى محمد"]
[64,"طه محمد طه رمضان"]
[65,"عادل صابر عادل مرزوق"]
[66,"عاطف رمضان رجب محمود"]
[67,"عبدالرحمن انور صالح محمود"]
[68,"عبدالرحمن سلامه عبدالحكيم عبدالمقصود"]
[69,"عبدالرحمن عبدالتواب فاروق عبدالله"]
[70,"عبدالعزيز حامد عبدالعزيز عبدالتواب"]
[71,"عبدالله حسين شعبان عبدالحميد"]
[72,"عبدالله عزت محمد على درويش"]
[73,"عصام رجب جمعه ابوطالب"]
[74,"على خميس داود سيد"]
[75,"على محمد عبدالفضيل درويش"]
[76,"عمر سليمان رشدى عبدالمقصود"]
[77,"عمرو ربيع عبدالعاطى ربيع"]
[78,"فهد صابر جمعه محمد"]
[79,"كريم عيد فتحى جمعه"]
[80,"محمد ابوزيد عبده على"]
[81,"محمد اشرف مرزوق عابد"]
[82,"محمد حسام حسن فاروق"]
[83,"محمد حسين حسن على"]
[84,"محمد رمضان يوسف محمود"]
[85,"محمد شرف يسرى على"]
[86,"محمد عبده محمود على"]
[87,"محمد عمر عبدالتواب اسماعيل"]
[88,"محمد محمود زيدان عاشور"]
[89,"محمد يوسف عنتر جاد الرب"]
[90,"محمود ماهر يوسف ابوبكر"]
[91,"مصطفى علاء جمعه موسى"]
[92,"مصطفى محمد محمد داود"]
[93,"نور رمضان احمد اسماعيل"]
[94,"ياسين عبدالنبى سيد عبدالحكيم"]
[95,"يوسف عبدالله رشدى عنكيلى"]
[96,"يوسف محمد عبدالرافع عبدالحميد"]
[null,"مقيّد"]
[null,"حاضر"]
[null,"غائب"]